Workbook

Sheet Shop Briefing
A1: RMV | D1: =TODAY() -> 2025-12-07 | I1: LY DEC MTD | K1: 3334923
A2: 本月 | B2: 生意 | D2: ATV | F2: UPT | H2: 單數 | J2: 件数 | L2: 人流 | N2: 轉化率
C3: VS+/-%
A4: 昨天生意 | B4: 78405 | C4: =SUM(B4/B5)-1 -> 1% | D4: =SUM(B4/H4) -> 2376 | F4: =SUM(J4/H4) -> 3.3 | H4: 33 | J4: 109 | L4: 676 | N4: =SUM(H4/L4)*100% -> 5%
A5: 去年同期 | B5: 77360
A6: 本月累计 | B6: 432329 | C6: =B6/K1 -> 13% | D6: =SUM(B6/H6) -> 2389 | F6: =SUM(J6/H6) -> 3.5 | H6: 181 | J6: 636
A8: 當天 | B8: Promotion
B9: 項目 | F9: 單價 | H9: 單數 | J9: 銷售占比
B10: 2件88折 | F10: 16184 | H10: 7 | J10: =F10/B4 -> 21%
B11: 3500-500 | F11: 20587 | H11: 6 | J11: =F11/B4 -> 26%
B12: 6000-1000 | F12: 16522 | H12: 3 | J12: =F12/B4 -> 21%
B13: 10000-2200 | F13: 0 | H13: 0 | J13: =F13/B4 -> 0%
B14: Q4羽棉1件8折 | F14: 7729 | H14: 3 | J14: =F14/B4 -> 10%
J15: =F15/B4 -> 0%
J16: =F16/B4 -> 0%
A18: 當天 | B18: 系列/品類 | F18: 銷售金額 | H18: 件數 | J18: 銷售占比
B19: FILA ORIGINALE | F19: =SUMIFS('Sales receipt((當天)'!K:K,'Sales receipt((當天)'!B:B,'Sales receipt((當天)'!B4,'Sales receipt((當天)'!G:G,'Sales receipt((當天)'!G6) -> 4256 | H19: =SUMIFS('Sales receipt((當天)'!J:J,'Sales receipt((當天)'!B:B,'Sales receipt((當天)'!B4,'Sales receipt((當天)'!G:G,'Sales receipt((當天)'!G6) -> 3 | J19: =F19/F30 -> 7%
B20: HERITAGE | F20: =SUMIFS('Sales receipt((當天)'!K:K,'Sales receipt((當天)'!B:B,'Sales receipt((當天)'!B4,'Sales receipt((當天)'!G:G,'Sales receipt((當天)'!G9) -> 7700 | H20: =SUMIFS('Sales receipt((當天)'!J:J,'Sales receipt((當天)'!B:B,'Sales receipt((當天)'!B4,'Sales receipt((當天)'!G:G,'Sales receipt((當天)'!G9) -> 9 | J20: =F20/F30 -> 12%
B21: WHITE | F21: =SUMIFS('Sales receipt((當天)'!K:K,'Sales receipt((當天)'!B:B,'Sales receipt((當天)'!B4,'Sales receipt((當天)'!G:G,'Sales receipt((當天)'!G17) -> 5654 | H21: =SUMIFS('Sales receipt((當天)'!J:J,'Sales receipt((當天)'!B:B,'Sales receipt((當天)'!B4,'Sales receipt((當天)'!G:G,'Sales receipt((當天)'!G17) -> 4 | J21: =F21/F30 -> 9%
B22: BLUE | F22: =SUMIFS('Sales receipt((當天)'!K:K,'Sales receipt((當天)'!B:B,'Sales receipt((當天)'!B4,'Sales receipt((當天)'!G:G,'Sales receipt((當天)'!G3) -> 0 | H22: =SUMIFS('Sales receipt((當天)'!J:J,'Sales receipt((當天)'!B:B,'Sales receipt((當天)'!B4,'Sales receipt((當天)'!G:G,'Sales receipt((當天)'!G3) -> 0 | J22: =F22/F30 -> 0%
B23: FITNESS | F23: =SUMIFS('Sales receipt((當天)'!K:K,'Sales receipt((當天)'!B:B,'Sales receipt((當天)'!B4,'Sales receipt((當天)'!G:G,'Sales receipt((當天)'!G7) -> 7200 | H23: =SUMIFS('Sales receipt((當天)'!J:J,'Sales receipt((當天)'!B:B,'Sales receipt((當天)'!B4,'Sales receipt((當天)'!G:G,'Sales receipt((當天)'!G7) -> 7 | J23: =F23/F30 -> 12%
B24: A.P. | F24: =SUMIFS('Sales receipt((當天)'!K:K,'Sales receipt((當天)'!B:B,'Sales receipt((當天)'!B4,'Sales receipt((當天)'!G:G,'Sales receipt((當天)'!G2) -> 1930 | H24: =SUMIFS('Sales receipt((當天)'!J:J,'Sales receipt((當天)'!B:B,'Sales receipt((當天)'!B4,'Sales receipt((當天)'!G:G,'Sales receipt((當天)'!G2) -> 2 | J24: =F24/F30 -> 3%
B25: GOLF | F25: =SUMIFS('Sales receipt((當天)'!K:K,'Sales receipt((當天)'!B:B,'Sales receipt((當天)'!B4,'Sales receipt((當天)'!G:G,'Sales receipt((當天)'!G8) -> 28654 | H25: =SUMIFS('Sales receipt((當天)'!J:J,'Sales receipt((當天)'!B:B,'Sales receipt((當天)'!B4,'Sales receipt((當天)'!G:G,'Sales receipt((當天)'!G8) -> 16 | J25: =F25/F30 -> 46%
B26: EXPLORE | F26: =SUMIFS('Sales receipt((當天)'!K:K,'Sales receipt((當天)'!B:B,'Sales receipt((當天)'!B4,'Sales receipt((當天)'!G:G,'Sales receipt((當天)'!G4) -> 4291 | H26: =SUMIFS('Sales receipt((當天)'!J:J,'Sales receipt((當天)'!B:B,'Sales receipt((當天)'!B4,'Sales receipt((當天)'!G:G,'Sales receipt((當天)'!G4) -> 2 | J26: =F26/F30 -> 7%
B27: TENNIS | F27: =SUMIFS('Sales receipt((當天)'!K:K,'Sales receipt((當天)'!B:B,'Sales receipt((當天)'!B4,'Sales receipt((當天)'!G:G,'Sales receipt((當天)'!G16) -> 2764 | H27: =SUMIFS('Sales receipt((當天)'!J:J,'Sales receipt((當天)'!B:B,'Sales receipt((當天)'!B4,'Sales receipt((當天)'!G:G,'Sales receipt((當天)'!G16) -> 2 | J27: =F27/F30 -> 4%
A28: 服裝 | B28: 男 | F28: =SUM(SUMIFS('Sales receipt((當天)'!K:K,'Sales receipt((當天)'!B:B,'Sales receipt((當天)'!B4,'Sales receipt((當天)'!H:H,{"MALE","男"})) -> 49254 | H28: =SUM(SUMIFS('Sales receipt((當天)'!J:J,'Sales receipt((當天)'!B:B,'Sales receipt((當天)'!B4,'Sales receipt((當天)'!H:H,{"MALE","男"})) -> 34 | J28: =F28/F30 -> 79%
B29: 女 | F29: =SUM(SUMIFS('Sales receipt((當天)'!K:K,'Sales receipt((當天)'!B:B,'Sales receipt((當天)'!B4,'Sales receipt((當天)'!H:H,{"FEMALE","女"})) -> 13195 | H29: =SUM(SUMIFS('Sales receipt((當天)'!J:J,'Sales receipt((當天)'!B:B,'Sales receipt((當天)'!B4,'Sales receipt((當天)'!H:H,{"FEMALE","女"})) -> 11 | J29: =F29/F30 -> 21%
B30: Total | F30: =SUM(F28:G29) -> 62449 | H30: =SUM(H28:I29) -> 45 | J30: =F30/B4 -> 80%
A31: 鞋 | F31: =SUMIFS('Sales receipt((當天)'!K:K,'Sales receipt((當天)'!B:B,'Sales receipt((當天)'!B6) -> 11630 | H31: =SUMIFS('Sales receipt((當天)'!J:J,'Sales receipt((當天)'!B:B,'Sales receipt((當天)'!B6) -> 12 | J31: =F31/B4 -> 15%
A32: 配件 | F32: =SUMIFS('Sales receipt((當天)'!K:K,'Sales receipt((當天)'!B:B,'Sales receipt((當天)'!B5) -> 4149 | H32: =SUMIFS('Sales receipt((當天)'!J:J,'Sales receipt((當天)'!B:B,'Sales receipt((當天)'!B5) -> 25 | J32: =F32/B4 -> 5%
A34: 姓名 | C34: 生意
C35: 當天目標 | E35: 實際 | G35: 月累計 | I35: 单数 | K35: 件数 | M35: ATV | O35: UPT
A36: M0989 Susanna | C36: RO | G36: 39963 | M36: =SUM(E36/I36) ->  | O36: =SUM(K36/I36) -> 
A37: M1436 Khaki | C37: 20200 | E37: 13149 | G37: 43413 | I37: 9 | K37: 29 | M37: =SUM(E37/I37) -> 1461 | O37: =SUM(K37/I37) -> 3.2
A38: M2172 Janet | C38: 20200 | E38: 18641 | G38: 90859 | I38: 8 | K38: 20 | M38: 2330 | O38: =SUM(K38/I38) -> 2.5
A39: M2801 Fanny | C39: 20200 | E39: 13420 | G39: 81815 | I39: 4 | K39: 14 | M39: 3355 | O39: 3.5
A40: M2798 Ryan | C40: RO | M40: =SUM(E40/I40) -> 
A41: M2902 Carmen | C41: 20200 | E41: 15401 | G41: 68797 | I41: 6 | K41: 28 | M41: 2567 | O41: 4.7
A42: M3060 Anson | C42: 20200 | E42: 17794 | G42: 54323 | I42: 6 | K42: 18 | M42: 2966 | O42: 3.0
B45: M0989 Susanna | D45: M2172 Janet | F45: M2801 Fanny | H45: M2798 Ryan | J45: M2902 Carmen | L45: M3060 Anson | N45: M1436 Khaki
B46: Sales | C46: Qty | D46: Sales | E46: Qty | F46: Sales | G46: Qty | H46: Sales | I46: Qty | J46: Sales | K46: Qty | L46: Sales | M46: Qty | N46: Sales | O46: Qty
A47: ORIGINALE | B47: =SUMIFS('Sales receipt((當天)'!K:K,'Sales receipt((當天)'!A:A,'Sales receipt((當天)'!A2,'Sales receipt((當天)'!B:B,'Sales receipt((當天)'!B4,'Sales receipt((當天)'!G:G,'Sales receipt((當天)'!G6) -> 0 | C47: =SUMIFS('Sales receipt((當天)'!J:J,'Sales receipt((當天)'!A:A,'Sales receipt((當天)'!A2,'Sales receipt((當天)'!B:B,'Sales receipt((當天)'!B4,'Sales receipt((當天)'!G:G,'Sales receipt((當天)'!G6) -> 0 | D47: =SUMIFS('Sales receipt((當天)'!K:K,'Sales receipt((當天)'!A:A,'Sales receipt((當天)'!A3,'Sales receipt((當天)'!B:B,'Sales receipt((當天)'!B4,'Sales receipt((當天)'!G:G,'Sales receipt((當天)'!G6) -> 2973 | E47: =SUMIFS('Sales receipt((當天)'!J:J,'Sales receipt((當天)'!A:A,'Sales receipt((當天)'!A3,'Sales receipt((當天)'!B:B,'Sales receipt((當天)'!B4,'Sales receipt((當天)'!G:G,'Sales receipt((當天)'!G6) -> 1 | F47: =SUMIFS('Sales receipt((當天)'!K:K,'Sales receipt((當天)'!A:A,'Sales receipt((當天)'!A7,'Sales receipt((當天)'!B:B,'Sales receipt((當天)'!B4,'Sales receipt((當天)'!G:G,'Sales receipt((當天)'!G6) -> 0 | G47: =SUMIFS('Sales receipt((當天)'!J:J,'Sales receipt((當天)'!A:A,'Sales receipt((當天)'!A7,'Sales receipt((當天)'!B:B,'Sales receipt((當天)'!B4,'Sales receipt((當天)'!G:G,'Sales receipt((當天)'!G6) -> 0 | H47: =SUMIFS('Sales receipt((當天)'!K:K,'Sales receipt((當天)'!A:A,'Sales receipt((當天)'!A6,'Sales receipt((當天)'!B:B,'Sales receipt((當天)'!B4,'Sales receipt((當天)'!G:G,'Sales receipt((當天)'!G6) -> 0 | I47: =SUMIFS('Sales receipt((當天)'!J:J,'Sales receipt((當天)'!A:A,'Sales receipt((當天)'!A6,'Sales receipt((當天)'!B:B,'Sales receipt((當天)'!B4,'Sales receipt((當天)'!G:G,'Sales receipt((當天)'!G6) -> 0 | J47: =SUMIFS('Sales receipt((當天)'!K:K,'Sales receipt((當天)'!A:A,'Sales receipt((當天)'!A8,'Sales receipt((當天)'!B:B,'Sales receipt((當天)'!B4,'Sales receipt((當天)'!G:G,'Sales receipt((當天)'!G6) -> 603 | K47: =SUMIFS('Sales receipt((當天)'!J:J,'Sales receipt((當天)'!A:A,'Sales receipt((當天)'!A8,'Sales receipt((當天)'!B:B,'Sales receipt((當天)'!B4,'Sales receipt((當天)'!G:G,'Sales receipt((當天)'!G6) -> 1 | L47: =SUMIFS('Sales receipt((當天)'!K:K,'Sales receipt((當天)'!A:A,'Sales receipt((當天)'!A4,'Sales receipt((當天)'!B:B,'Sales receipt((當天)'!B4,'Sales receipt((當天)'!G:G,'Sales receipt((當天)'!G6) -> 680 | M47: =SUMIFS('Sales receipt((當天)'!J:J,'Sales receipt((當天)'!A:A,'Sales receipt((當天)'!A4,'Sales receipt((當天)'!B:B,'Sales receipt((當天)'!B4,'Sales receipt((當天)'!G:G,'Sales receipt((當天)'!G6) -> 1 | N47: =SUMIFS('Sales receipt((當天)'!K:K,'Sales receipt((當天)'!A:A,'Sales receipt((當天)'!A5,'Sales receipt((當天)'!B:B,'Sales receipt((當天)'!B4,'Sales receipt((當天)'!G:G,'Sales receipt((當天)'!G6) -> 0 | O47: =SUMIFS('Sales receipt((當天)'!J:J,'Sales receipt((當天)'!A:A,'Sales receipt((當天)'!A5,'Sales receipt((當天)'!B:B,'Sales receipt((當天)'!B4,'Sales receipt((當天)'!G:G,'Sales receipt((當天)'!G6) -> 0
A48: HERITAGE | B48: =SUMIFS('Sales receipt((當天)'!K:K,'Sales receipt((當天)'!A:A,'Sales receipt((當天)'!A2,'Sales receipt((當天)'!B:B,'Sales receipt((當天)'!B4,'Sales receipt((當天)'!G:G,'Sales receipt((當天)'!G9) -> 0 | C48: =SUMIFS('Sales receipt((當天)'!J:J,'Sales receipt((當天)'!A:A,'Sales receipt((當天)'!A2,'Sales receipt((當天)'!B:B,'Sales receipt((當天)'!B4,'Sales receipt((當天)'!G:G,'Sales receipt((當天)'!G9) -> 0 | D48: =SUMIFS('Sales receipt((當天)'!K:K,'Sales receipt((當天)'!A:A,'Sales receipt((當天)'!A3,'Sales receipt((當天)'!B:B,'Sales receipt((當天)'!B4,'Sales receipt((當天)'!G:G,'Sales receipt((當天)'!G9) -> 1302 | E48: =SUMIFS('Sales receipt((當天)'!J:J,'Sales receipt((當天)'!A:A,'Sales receipt((當天)'!A3,'Sales receipt((當天)'!B:B,'Sales receipt((當天)'!B4,'Sales receipt((當天)'!G:G,'Sales receipt((當天)'!G9) -> 1 | F48: =SUMIFS('Sales receipt((當天)'!K:K,'Sales receipt((當天)'!A:A,'Sales receipt((當天)'!A7,'Sales receipt((當天)'!B:B,'Sales receipt((當天)'!B4,'Sales receipt((當天)'!G:G,'Sales receipt((當天)'!G9) -> 775 | G48: =SUMIFS('Sales receipt((當天)'!J:J,'Sales receipt((當天)'!A:A,'Sales receipt((當天)'!A7,'Sales receipt((當天)'!B:B,'Sales receipt((當天)'!B4,'Sales receipt((當天)'!G:G,'Sales receipt((當天)'!G9) -> 1 | H48: =SUMIFS('Sales receipt((當天)'!K:K,'Sales receipt((當天)'!A:A,'Sales receipt((當天)'!A6,'Sales receipt((當天)'!B:B,'Sales receipt((當天)'!B4,'Sales receipt((當天)'!G:G,'Sales receipt((當天)'!G9) -> 0 | I48: =SUMIFS('Sales receipt((當天)'!J:J,'Sales receipt((當天)'!A:A,'Sales receipt((當天)'!A6,'Sales receipt((當天)'!B:B,'Sales receipt((當天)'!B4,'Sales receipt((當天)'!G:G,'Sales receipt((當天)'!G9) -> 0 | J48: =SUMIFS('Sales receipt((當天)'!K:K,'Sales receipt((當天)'!A:A,'Sales receipt((當天)'!A8,'Sales receipt((當天)'!B:B,'Sales receipt((當天)'!B4,'Sales receipt((當天)'!G:G,'Sales receipt((當天)'!G9) -> 3358 | K48: =SUMIFS('Sales receipt((當天)'!J:J,'Sales receipt((當天)'!A:A,'Sales receipt((當天)'!A8,'Sales receipt((當天)'!B:B,'Sales receipt((當天)'!B4,'Sales receipt((當天)'!G:G,'Sales receipt((當天)'!G9) -> 4 | L48: =SUMIFS('Sales receipt((當天)'!K:K,'Sales receipt((當天)'!A:A,'Sales receipt((當天)'!A4,'Sales receipt((當天)'!B:B,'Sales receipt((當天)'!B4,'Sales receipt((當天)'!G:G,'Sales receipt((當天)'!G9) -> 1614 | M48: =SUMIFS('Sales receipt((當天)'!J:J,'Sales receipt((當天)'!A:A,'Sales receipt((當天)'!A4,'Sales receipt((當天)'!B:B,'Sales receipt((當天)'!B4,'Sales receipt((當天)'!G:G,'Sales receipt((當天)'!G9) -> 2 | N48: =SUMIFS('Sales receipt((當天)'!K:K,'Sales receipt((當天)'!A:A,'Sales receipt((當天)'!A5,'Sales receipt((當天)'!B:B,'Sales receipt((當天)'!B4,'Sales receipt((當天)'!G:G,'Sales receipt((當天)'!G9) -> 651 | O48: =SUMIFS('Sales receipt((當天)'!J:J,'Sales receipt((當天)'!A:A,'Sales receipt((當天)'!A5,'Sales receipt((當天)'!B:B,'Sales receipt((當天)'!B4,'Sales receipt((當天)'!G:G,'Sales receipt((當天)'!G9) -> 1
A49: WHITE | B49: =SUMIFS('Sales receipt((當天)'!K:K,'Sales receipt((當天)'!A:A,'Sales receipt((當天)'!A2,'Sales receipt((當天)'!B:B,'Sales receipt((當天)'!B4,'Sales receipt((當天)'!G:G,'Sales receipt((當天)'!G17) -> 0 | C49: =SUMIFS('Sales receipt((當天)'!J:J,'Sales receipt((當天)'!A:A,'Sales receipt((當天)'!A2,'Sales receipt((當天)'!B:B,'Sales receipt((當天)'!B4,'Sales receipt((當天)'!G:G,'Sales receipt((當天)'!G17) -> 0 | D49: =SUMIFS('Sales receipt((當天)'!K:K,'Sales receipt((當天)'!A:A,'Sales receipt((當天)'!A3,'Sales receipt((當天)'!B:B,'Sales receipt((當天)'!B4,'Sales receipt((當天)'!G:G,'Sales receipt((當天)'!G17) -> 880 | E49: =SUMIFS('Sales receipt((當天)'!J:J,'Sales receipt((當天)'!A:A,'Sales receipt((當天)'!A3,'Sales receipt((當天)'!B:B,'Sales receipt((當天)'!B4,'Sales receipt((當天)'!G:G,'Sales receipt((當天)'!G17) -> 1 | F49: =SUMIFS('Sales receipt((當天)'!K:K,'Sales receipt((當天)'!A:A,'Sales receipt((當天)'!A7,'Sales receipt((當天)'!B:B,'Sales receipt((當天)'!B4,'Sales receipt((當天)'!G:G,'Sales receipt((當天)'!G17) -> 0 | G49: =SUMIFS('Sales receipt((當天)'!J:J,'Sales receipt((當天)'!A:A,'Sales receipt((當天)'!A7,'Sales receipt((當天)'!B:B,'Sales receipt((當天)'!B4,'Sales receipt((當天)'!G:G,'Sales receipt((當天)'!G17) -> 0 | H49: =SUMIFS('Sales receipt((當天)'!K:K,'Sales receipt((當天)'!A:A,'Sales receipt((當天)'!A6,'Sales receipt((當天)'!B:B,'Sales receipt((當天)'!B4,'Sales receipt((當天)'!G:G,'Sales receipt((當天)'!G17) -> 0 | I49: =SUMIFS('Sales receipt((當天)'!J:J,'Sales receipt((當天)'!A:A,'Sales receipt((當天)'!A6,'Sales receipt((當天)'!B:B,'Sales receipt((當天)'!B4,'Sales receipt((當天)'!G:G,'Sales receipt((當天)'!G17) -> 0 | J49: =SUMIFS('Sales receipt((當天)'!K:K,'Sales receipt((當天)'!A:A,'Sales receipt((當天)'!A8,'Sales receipt((當天)'!B:B,'Sales receipt((當天)'!B4,'Sales receipt((當天)'!G:G,'Sales receipt((當天)'!G17) -> 834 | K49: =SUMIFS('Sales receipt((當天)'!J:J,'Sales receipt((當天)'!A:A,'Sales receipt((當天)'!A8,'Sales receipt((當天)'!B:B,'Sales receipt((當天)'!B4,'Sales receipt((當天)'!G:G,'Sales receipt((當天)'!G17) -> 1 | L49: =SUMIFS('Sales receipt((當天)'!K:K,'Sales receipt((當天)'!A:A,'Sales receipt((當天)'!A4,'Sales receipt((當天)'!B:B,'Sales receipt((當天)'!B4,'Sales receipt((當天)'!G:G,'Sales receipt((當天)'!G17) -> 3940 | M49: =SUMIFS('Sales receipt((當天)'!J:J,'Sales receipt((當天)'!A:A,'Sales receipt((當天)'!A4,'Sales receipt((當天)'!B:B,'Sales receipt((當天)'!B4,'Sales receipt((當天)'!G:G,'Sales receipt((當天)'!G17) -> 2 | N49: =SUMIFS('Sales receipt((當天)'!K:K,'Sales receipt((當天)'!A:A,'Sales receipt((當天)'!A5,'Sales receipt((當天)'!B:B,'Sales receipt((當天)'!B4,'Sales receipt((當天)'!G:G,'Sales receipt((當天)'!G17) -> 0 | O49: =SUMIFS('Sales receipt((當天)'!J:J,'Sales receipt((當天)'!A:A,'Sales receipt((當天)'!A5,'Sales receipt((當天)'!B:B,'Sales receipt((當天)'!B4,'Sales receipt((當天)'!G:G,'Sales receipt((當天)'!G17) -> 0
A50: BLUE | B50: =SUMIFS('Sales receipt((當天)'!K:K,'Sales receipt((當天)'!A:A,'Sales receipt((當天)'!A2,'Sales receipt((當天)'!B:B,'Sales receipt((當天)'!B4,'Sales receipt((當天)'!G:G,'Sales receipt((當天)'!G3) -> 0 | C50: =SUMIFS('Sales receipt((當天)'!J:J,'Sales receipt((當天)'!A:A,'Sales receipt((當天)'!A2,'Sales receipt((當天)'!B:B,'Sales receipt((當天)'!B4,'Sales receipt((當天)'!G:G,'Sales receipt((當天)'!G3) -> 0 | D50: =SUMIFS('Sales receipt((當天)'!K:K,'Sales receipt((當天)'!A:A,'Sales receipt((當天)'!A3,'Sales receipt((當天)'!B:B,'Sales receipt((當天)'!B4,'Sales receipt((當天)'!G:G,'Sales receipt((當天)'!G3) -> 0 | E50: =SUMIFS('Sales receipt((當天)'!J:J,'Sales receipt((當天)'!A:A,'Sales receipt((當天)'!A3,'Sales receipt((當天)'!B:B,'Sales receipt((當天)'!B4,'Sales receipt((當天)'!G:G,'Sales receipt((當天)'!G3) -> 0 | F50: =SUMIFS('Sales receipt((當天)'!K:K,'Sales receipt((當天)'!A:A,'Sales receipt((當天)'!A7,'Sales receipt((當天)'!B:B,'Sales receipt((當天)'!B4,'Sales receipt((當天)'!G:G,'Sales receipt((當天)'!G3) -> 0 | G50: =SUMIFS('Sales receipt((當天)'!J:J,'Sales receipt((當天)'!A:A,'Sales receipt((當天)'!A7,'Sales receipt((當天)'!B:B,'Sales receipt((當天)'!B4,'Sales receipt((當天)'!G:G,'Sales receipt((當天)'!G3) -> 0 | H50: =SUMIFS('Sales receipt((當天)'!K:K,'Sales receipt((當天)'!A:A,'Sales receipt((當天)'!A6,'Sales receipt((當天)'!B:B,'Sales receipt((當天)'!B4,'Sales receipt((當天)'!G:G,'Sales receipt((當天)'!G3) -> 0 | I50: =SUMIFS('Sales receipt((當天)'!J:J,'Sales receipt((當天)'!A:A,'Sales receipt((當天)'!A6,'Sales receipt((當天)'!B:B,'Sales receipt((當天)'!B4,'Sales receipt((當天)'!G:G,'Sales receipt((當天)'!G3) -> 0 | J50: =SUMIFS('Sales receipt((當天)'!K:K,'Sales receipt((當天)'!A:A,'Sales receipt((當天)'!A8,'Sales receipt((當天)'!B:B,'Sales receipt((當天)'!B4,'Sales receipt((當天)'!G:G,'Sales receipt((當天)'!G3) -> 0 | K50: =SUMIFS('Sales receipt((當天)'!J:J,'Sales receipt((當天)'!A:A,'Sales receipt((當天)'!A8,'Sales receipt((當天)'!B:B,'Sales receipt((當天)'!B4,'Sales receipt((當天)'!G:G,'Sales receipt((當天)'!G3) -> 0 | L50: =SUMIFS('Sales receipt((當天)'!K:K,'Sales receipt((當天)'!A:A,'Sales receipt((當天)'!A4,'Sales receipt((當天)'!B:B,'Sales receipt((當天)'!B4,'Sales receipt((當天)'!G:G,'Sales receipt((當天)'!G3) -> 0 | M50: =SUMIFS('Sales receipt((當天)'!J:J,'Sales receipt((當天)'!A:A,'Sales receipt((當天)'!A4,'Sales receipt((當天)'!B:B,'Sales receipt((當天)'!B4,'Sales receipt((當天)'!G:G,'Sales receipt((當天)'!G3) -> 0 | N50: =SUMIFS('Sales receipt((當天)'!K:K,'Sales receipt((當天)'!A:A,'Sales receipt((當天)'!A5,'Sales receipt((當天)'!B:B,'Sales receipt((當天)'!B4,'Sales receipt((當天)'!G:G,'Sales receipt((當天)'!G3) -> 0 | O50: =SUMIFS('Sales receipt((當天)'!J:J,'Sales receipt((當天)'!A:A,'Sales receipt((當天)'!A5,'Sales receipt((當天)'!B:B,'Sales receipt((當天)'!B4,'Sales receipt((當天)'!G:G,'Sales receipt((當天)'!G3) -> 0
A51: FITNESS | B51: =SUMIFS('Sales receipt((當天)'!K:K,'Sales receipt((當天)'!A:A,'Sales receipt((當天)'!A2,'Sales receipt((當天)'!B:B,'Sales receipt((當天)'!B4,'Sales receipt((當天)'!G:G,'Sales receipt((當天)'!G7) -> 0 | C51: =SUMIFS('Sales receipt((當天)'!J:J,'Sales receipt((當天)'!A:A,'Sales receipt((當天)'!A2,'Sales receipt((當天)'!B:B,'Sales receipt((當天)'!B4,'Sales receipt((當天)'!G:G,'Sales receipt((當天)'!G7) -> 0 | D51: =SUMIFS('Sales receipt((當天)'!K:K,'Sales receipt((當天)'!A:A,'Sales receipt((當天)'!A3,'Sales receipt((當天)'!B:B,'Sales receipt((當天)'!B4,'Sales receipt((當天)'!G:G,'Sales receipt((當天)'!G7) -> 0 | E51: =SUMIFS('Sales receipt((當天)'!J:J,'Sales receipt((當天)'!A:A,'Sales receipt((當天)'!A3,'Sales receipt((當天)'!B:B,'Sales receipt((當天)'!B4,'Sales receipt((當天)'!G:G,'Sales receipt((當天)'!G7) -> 0 | F51: =SUMIFS('Sales receipt((當天)'!K:K,'Sales receipt((當天)'!A:A,'Sales receipt((當天)'!A7,'Sales receipt((當天)'!B:B,'Sales receipt((當天)'!B4,'Sales receipt((當天)'!G:G,'Sales receipt((當天)'!G7) -> 3260 | G51: =SUMIFS('Sales receipt((當天)'!J:J,'Sales receipt((當天)'!A:A,'Sales receipt((當天)'!A7,'Sales receipt((當天)'!B:B,'Sales receipt((當天)'!B4,'Sales receipt((當天)'!G:G,'Sales receipt((當天)'!G7) -> 2 | H51: =SUMIFS('Sales receipt((當天)'!K:K,'Sales receipt((當天)'!A:A,'Sales receipt((當天)'!A6,'Sales receipt((當天)'!B:B,'Sales receipt((當天)'!B4,'Sales receipt((當天)'!G:G,'Sales receipt((當天)'!G7) -> 0 | I51: =SUMIFS('Sales receipt((當天)'!J:J,'Sales receipt((當天)'!A:A,'Sales receipt((當天)'!A6,'Sales receipt((當天)'!B:B,'Sales receipt((當天)'!B4,'Sales receipt((當天)'!G:G,'Sales receipt((當天)'!G7) -> 0 | J51: =SUMIFS('Sales receipt((當天)'!K:K,'Sales receipt((當天)'!A:A,'Sales receipt((當天)'!A8,'Sales receipt((當天)'!B:B,'Sales receipt((當天)'!B4,'Sales receipt((當天)'!G:G,'Sales receipt((當天)'!G7) -> 0 | K51: =SUMIFS('Sales receipt((當天)'!J:J,'Sales receipt((當天)'!A:A,'Sales receipt((當天)'!A8,'Sales receipt((當天)'!B:B,'Sales receipt((當天)'!B4,'Sales receipt((當天)'!G:G,'Sales receipt((當天)'!G7) -> 0 | L51: =SUMIFS('Sales receipt((當天)'!K:K,'Sales receipt((當天)'!A:A,'Sales receipt((當天)'!A4,'Sales receipt((當天)'!B:B,'Sales receipt((當天)'!B4,'Sales receipt((當天)'!G:G,'Sales receipt((當天)'!G7) -> 2302 | M51: =SUMIFS('Sales receipt((當天)'!J:J,'Sales receipt((當天)'!A:A,'Sales receipt((當天)'!A4,'Sales receipt((當天)'!B:B,'Sales receipt((當天)'!B4,'Sales receipt((當天)'!G:G,'Sales receipt((當天)'!G7) -> 3 | N51: =SUMIFS('Sales receipt((當天)'!K:K,'Sales receipt((當天)'!A:A,'Sales receipt((當天)'!A5,'Sales receipt((當天)'!B:B,'Sales receipt((當天)'!B4,'Sales receipt((當天)'!G:G,'Sales receipt((當天)'!G7) -> 1638 | O51: =SUMIFS('Sales receipt((當天)'!J:J,'Sales receipt((當天)'!A:A,'Sales receipt((當天)'!A5,'Sales receipt((當天)'!B:B,'Sales receipt((當天)'!B4,'Sales receipt((當天)'!G:G,'Sales receipt((當天)'!G7) -> 2
A52: A.P. | B52: =SUMIFS('Sales receipt((當天)'!K:K,'Sales receipt((當天)'!A:A,'Sales receipt((當天)'!A2,'Sales receipt((當天)'!B:B,'Sales receipt((當天)'!B4,'Sales receipt((當天)'!G:G,'Sales receipt((當天)'!G2) -> 0 | C52: =SUMIFS('Sales receipt((當天)'!J:J,'Sales receipt((當天)'!A:A,'Sales receipt((當天)'!A2,'Sales receipt((當天)'!B:B,'Sales receipt((當天)'!B4,'Sales receipt((當天)'!G:G,'Sales receipt((當天)'!G2) -> 0 | D52: =SUMIFS('Sales receipt((當天)'!K:K,'Sales receipt((當天)'!A:A,'Sales receipt((當天)'!A3,'Sales receipt((當天)'!B:B,'Sales receipt((當天)'!B4,'Sales receipt((當天)'!G:G,'Sales receipt((當天)'!G2) -> 0 | E52: =SUMIFS('Sales receipt((當天)'!J:J,'Sales receipt((當天)'!A:A,'Sales receipt((當天)'!A3,'Sales receipt((當天)'!B:B,'Sales receipt((當天)'!B4,'Sales receipt((當天)'!G:G,'Sales receipt((當天)'!G2) -> 0 | F52: =SUMIFS('Sales receipt((當天)'!K:K,'Sales receipt((當天)'!A:A,'Sales receipt((當天)'!A7,'Sales receipt((當天)'!B:B,'Sales receipt((當天)'!B4,'Sales receipt((當天)'!G:G,'Sales receipt((當天)'!G2) -> 0 | G52: =SUMIFS('Sales receipt((當天)'!J:J,'Sales receipt((當天)'!A:A,'Sales receipt((當天)'!A7,'Sales receipt((當天)'!B:B,'Sales receipt((當天)'!B4,'Sales receipt((當天)'!G:G,'Sales receipt((當天)'!G2) -> 0 | H52: =SUMIFS('Sales receipt((當天)'!K:K,'Sales receipt((當天)'!A:A,'Sales receipt((當天)'!A6,'Sales receipt((當天)'!B:B,'Sales receipt((當天)'!B4,'Sales receipt((當天)'!G:G,'Sales receipt((當天)'!G2) -> 0 | I52: =SUMIFS('Sales receipt((當天)'!J:J,'Sales receipt((當天)'!A:A,'Sales receipt((當天)'!A6,'Sales receipt((當天)'!B:B,'Sales receipt((當天)'!B4,'Sales receipt((當天)'!G:G,'Sales receipt((當天)'!G2) -> 0 | J52: =SUMIFS('Sales receipt((當天)'!K:K,'Sales receipt((當天)'!A:A,'Sales receipt((當天)'!A8,'Sales receipt((當天)'!B:B,'Sales receipt((當天)'!B4,'Sales receipt((當天)'!G:G,'Sales receipt((當天)'!G2) -> 1930 | K52: =SUMIFS('Sales receipt((當天)'!J:J,'Sales receipt((當天)'!A:A,'Sales receipt((當天)'!A8,'Sales receipt((當天)'!B:B,'Sales receipt((當天)'!B4,'Sales receipt((當天)'!G:G,'Sales receipt((當天)'!G2) -> 2 | L52: =SUMIFS('Sales receipt((當天)'!K:K,'Sales receipt((當天)'!A:A,'Sales receipt((當天)'!A4,'Sales receipt((當天)'!B:B,'Sales receipt((當天)'!B4,'Sales receipt((當天)'!G:G,'Sales receipt((當天)'!G2) -> 0 | M52: =SUMIFS('Sales receipt((當天)'!J:J,'Sales receipt((當天)'!A:A,'Sales receipt((當天)'!A4,'Sales receipt((當天)'!B:B,'Sales receipt((當天)'!B4,'Sales receipt((當天)'!G:G,'Sales receipt((當天)'!G2) -> 0 | N52: =SUMIFS('Sales receipt((當天)'!K:K,'Sales receipt((當天)'!A:A,'Sales receipt((當天)'!A5,'Sales receipt((當天)'!B:B,'Sales receipt((當天)'!B4,'Sales receipt((當天)'!G:G,'Sales receipt((當天)'!G2) -> 0 | O52: =SUMIFS('Sales receipt((當天)'!J:J,'Sales receipt((當天)'!A:A,'Sales receipt((當天)'!A5,'Sales receipt((當天)'!B:B,'Sales receipt((當天)'!B4,'Sales receipt((當天)'!G:G,'Sales receipt((當天)'!G2) -> 0
A53: GOLF | B53: =SUMIFS('Sales receipt((當天)'!K:K,'Sales receipt((當天)'!A:A,'Sales receipt((當天)'!A2,'Sales receipt((當天)'!B:B,'Sales receipt((當天)'!B4,'Sales receipt((當天)'!G:G,'Sales receipt((當天)'!G8) -> 0 | C53: =SUMIFS('Sales receipt((當天)'!J:J,'Sales receipt((當天)'!A:A,'Sales receipt((當天)'!A2,'Sales receipt((當天)'!B:B,'Sales receipt((當天)'!B4,'Sales receipt((當天)'!G:G,'Sales receipt((當天)'!G8) -> 0 | D53: =SUMIFS('Sales receipt((當天)'!K:K,'Sales receipt((當天)'!A:A,'Sales receipt((當天)'!A3,'Sales receipt((當天)'!B:B,'Sales receipt((當天)'!B4,'Sales receipt((當天)'!G:G,'Sales receipt((當天)'!G8) -> 5668 | E53: =SUMIFS('Sales receipt((當天)'!J:J,'Sales receipt((當天)'!A:A,'Sales receipt((當天)'!A3,'Sales receipt((當天)'!B:B,'Sales receipt((當天)'!B4,'Sales receipt((當天)'!G:G,'Sales receipt((當天)'!G8) -> 3 | F53: =SUMIFS('Sales receipt((當天)'!K:K,'Sales receipt((當天)'!A:A,'Sales receipt((當天)'!A7,'Sales receipt((當天)'!B:B,'Sales receipt((當天)'!B4,'Sales receipt((當天)'!G:G,'Sales receipt((當天)'!G8) -> 6676 | G53: =SUMIFS('Sales receipt((當天)'!J:J,'Sales receipt((當天)'!A:A,'Sales receipt((當天)'!A7,'Sales receipt((當天)'!B:B,'Sales receipt((當天)'!B4,'Sales receipt((當天)'!G:G,'Sales receipt((當天)'!G8) -> 4 | H53: =SUMIFS('Sales receipt((當天)'!K:K,'Sales receipt((當天)'!A:A,'Sales receipt((當天)'!A6,'Sales receipt((當天)'!B:B,'Sales receipt((當天)'!B4,'Sales receipt((當天)'!G:G,'Sales receipt((當天)'!G8) -> 0 | I53: =SUMIFS('Sales receipt((當天)'!J:J,'Sales receipt((當天)'!A:A,'Sales receipt((當天)'!A6,'Sales receipt((當天)'!B:B,'Sales receipt((當天)'!B4,'Sales receipt((當天)'!G:G,'Sales receipt((當天)'!G8) -> 0 | J53: =SUMIFS('Sales receipt((當天)'!K:K,'Sales receipt((當天)'!A:A,'Sales receipt((當天)'!A8,'Sales receipt((當天)'!B:B,'Sales receipt((當天)'!B4,'Sales receipt((當天)'!G:G,'Sales receipt((當天)'!G8) -> 4308 | K53: =SUMIFS('Sales receipt((當天)'!J:J,'Sales receipt((當天)'!A:A,'Sales receipt((當天)'!A8,'Sales receipt((當天)'!B:B,'Sales receipt((當天)'!B4,'Sales receipt((當天)'!G:G,'Sales receipt((當天)'!G8) -> 2 | L53: =SUMIFS('Sales receipt((當天)'!K:K,'Sales receipt((當天)'!A:A,'Sales receipt((當天)'!A4,'Sales receipt((當天)'!B:B,'Sales receipt((當天)'!B4,'Sales receipt((當天)'!G:G,'Sales receipt((當天)'!G8) -> 9253 | M53: =SUMIFS('Sales receipt((當天)'!J:J,'Sales receipt((當天)'!A:A,'Sales receipt((當天)'!A4,'Sales receipt((當天)'!B:B,'Sales receipt((當天)'!B4,'Sales receipt((當天)'!G:G,'Sales receipt((當天)'!G8) -> 5 | N53: =SUMIFS('Sales receipt((當天)'!K:K,'Sales receipt((當天)'!A:A,'Sales receipt((當天)'!A5,'Sales receipt((當天)'!B:B,'Sales receipt((當天)'!B4,'Sales receipt((當天)'!G:G,'Sales receipt((當天)'!G8) -> 2749 | O53: =SUMIFS('Sales receipt((當天)'!J:J,'Sales receipt((當天)'!A:A,'Sales receipt((當天)'!A5,'Sales receipt((當天)'!B:B,'Sales receipt((當天)'!B4,'Sales receipt((當天)'!G:G,'Sales receipt((當天)'!G8) -> 2
A54: EXPLORE | B54: =SUMIFS('Sales receipt((當天)'!K:K,'Sales receipt((當天)'!A:A,'Sales receipt((當天)'!A2,'Sales receipt((當天)'!B:B,'Sales receipt((當天)'!B4,'Sales receipt((當天)'!G:G,'Sales receipt((當天)'!G4) -> 0 | C54: =SUMIFS('Sales receipt((當天)'!J:J,'Sales receipt((當天)'!A:A,'Sales receipt((當天)'!A2,'Sales receipt((當天)'!B:B,'Sales receipt((當天)'!B4,'Sales receipt((當天)'!G:G,'Sales receipt((當天)'!G4) -> 0 | D54: =SUMIFS('Sales receipt((當天)'!K:K,'Sales receipt((當天)'!A:A,'Sales receipt((當天)'!A3,'Sales receipt((當天)'!B:B,'Sales receipt((當天)'!B4,'Sales receipt((當天)'!G:G,'Sales receipt((當天)'!G4) -> 4291 | E54: =SUMIFS('Sales receipt((當天)'!J:J,'Sales receipt((當天)'!A:A,'Sales receipt((當天)'!A3,'Sales receipt((當天)'!B:B,'Sales receipt((當天)'!B4,'Sales receipt((當天)'!G:G,'Sales receipt((當天)'!G4) -> 2 | F54: =SUMIFS('Sales receipt((當天)'!K:K,'Sales receipt((當天)'!A:A,'Sales receipt((當天)'!A7,'Sales receipt((當天)'!B:B,'Sales receipt((當天)'!B4,'Sales receipt((當天)'!G:G,'Sales receipt((當天)'!G4) -> 0 | G54: =SUMIFS('Sales receipt((當天)'!J:J,'Sales receipt((當天)'!A:A,'Sales receipt((當天)'!A7,'Sales receipt((當天)'!B:B,'Sales receipt((當天)'!B4,'Sales receipt((當天)'!G:G,'Sales receipt((當天)'!G4) -> 0 | H54: =SUMIFS('Sales receipt((當天)'!K:K,'Sales receipt((當天)'!A:A,'Sales receipt((當天)'!A6,'Sales receipt((當天)'!B:B,'Sales receipt((當天)'!B4,'Sales receipt((當天)'!G:G,'Sales receipt((當天)'!G4) -> 0 | I54: =SUMIFS('Sales receipt((當天)'!J:J,'Sales receipt((當天)'!A:A,'Sales receipt((當天)'!A6,'Sales receipt((當天)'!B:B,'Sales receipt((當天)'!B4,'Sales receipt((當天)'!G:G,'Sales receipt((當天)'!G4) -> 0 | J54: =SUMIFS('Sales receipt((當天)'!K:K,'Sales receipt((當天)'!A:A,'Sales receipt((當天)'!A8,'Sales receipt((當天)'!B:B,'Sales receipt((當天)'!B4,'Sales receipt((當天)'!G:G,'Sales receipt((當天)'!G4) -> 0 | K54: =SUMIFS('Sales receipt((當天)'!J:J,'Sales receipt((當天)'!A:A,'Sales receipt((當天)'!A8,'Sales receipt((當天)'!B:B,'Sales receipt((當天)'!B4,'Sales receipt((當天)'!G:G,'Sales receipt((當天)'!G4) -> 0 | L54: =SUMIFS('Sales receipt((當天)'!K:K,'Sales receipt((當天)'!A:A,'Sales receipt((當天)'!A4,'Sales receipt((當天)'!B:B,'Sales receipt((當天)'!B4,'Sales receipt((當天)'!G:G,'Sales receipt((當天)'!G4) -> 0 | M54: =SUMIFS('Sales receipt((當天)'!J:J,'Sales receipt((當天)'!A:A,'Sales receipt((當天)'!A4,'Sales receipt((當天)'!B:B,'Sales receipt((當天)'!B4,'Sales receipt((當天)'!G:G,'Sales receipt((當天)'!G4) -> 0 | N54: =SUMIFS('Sales receipt((當天)'!K:K,'Sales receipt((當天)'!A:A,'Sales receipt((當天)'!A5,'Sales receipt((當天)'!B:B,'Sales receipt((當天)'!B4,'Sales receipt((當天)'!G:G,'Sales receipt((當天)'!G4) -> 0 | O54: =SUMIFS('Sales receipt((當天)'!J:J,'Sales receipt((當天)'!A:A,'Sales receipt((當天)'!A5,'Sales receipt((當天)'!B:B,'Sales receipt((當天)'!B4,'Sales receipt((當天)'!G:G,'Sales receipt((當天)'!G4) -> 0
A55: TENNIS | B55: =SUMIFS('Sales receipt((當天)'!K:K,'Sales receipt((當天)'!A:A,'Sales receipt((當天)'!A2,'Sales receipt((當天)'!B:B,'Sales receipt((當天)'!B4,'Sales receipt((當天)'!G:G,'Sales receipt((當天)'!G16) -> 0 | C55: =SUMIFS('Sales receipt((當天)'!J:J,'Sales receipt((當天)'!A:A,'Sales receipt((當天)'!A2,'Sales receipt((當天)'!B:B,'Sales receipt((當天)'!B4,'Sales receipt((當天)'!G:G,'Sales receipt((當天)'!G16) -> 0 | D55: =SUMIFS('Sales receipt((當天)'!K:K,'Sales receipt((當天)'!A:A,'Sales receipt((當天)'!A3,'Sales receipt((當天)'!B:B,'Sales receipt((當天)'!B4,'Sales receipt((當天)'!G:G,'Sales receipt((當天)'!G16) -> 0 | E55: =SUMIFS('Sales receipt((當天)'!J:J,'Sales receipt((當天)'!A:A,'Sales receipt((當天)'!A3,'Sales receipt((當天)'!B:B,'Sales receipt((當天)'!B4,'Sales receipt((當天)'!G:G,'Sales receipt((當天)'!G16) -> 0 | F55: =SUMIFS('Sales receipt((當天)'!K:K,'Sales receipt((當天)'!A:A,'Sales receipt((當天)'!A7,'Sales receipt((當天)'!B:B,'Sales receipt((當天)'!B4,'Sales receipt((當天)'!G:G,'Sales receipt((當天)'!G16) -> 0 | G55: =SUMIFS('Sales receipt((當天)'!J:J,'Sales receipt((當天)'!A:A,'Sales receipt((當天)'!A7,'Sales receipt((當天)'!B:B,'Sales receipt((當天)'!B4,'Sales receipt((當天)'!G:G,'Sales receipt((當天)'!G16) -> 0 | H55: =SUMIFS('Sales receipt((當天)'!K:K,'Sales receipt((當天)'!A:A,'Sales receipt((當天)'!A6,'Sales receipt((當天)'!B:B,'Sales receipt((當天)'!B4,'Sales receipt((當天)'!G:G,'Sales receipt((當天)'!G16) -> 0 | I55: =SUMIFS('Sales receipt((當天)'!J:J,'Sales receipt((當天)'!A:A,'Sales receipt((當天)'!A6,'Sales receipt((當天)'!B:B,'Sales receipt((當天)'!B4,'Sales receipt((當天)'!G:G,'Sales receipt((當天)'!G16) -> 0 | J55: =SUMIFS('Sales receipt((當天)'!K:K,'Sales receipt((當天)'!A:A,'Sales receipt((當天)'!A8,'Sales receipt((當天)'!B:B,'Sales receipt((當天)'!B4,'Sales receipt((當天)'!G:G,'Sales receipt((當天)'!G16) -> 1404 | K55: =SUMIFS('Sales receipt((當天)'!J:J,'Sales receipt((當天)'!A:A,'Sales receipt((當天)'!A8,'Sales receipt((當天)'!B:B,'Sales receipt((當天)'!B4,'Sales receipt((當天)'!G:G,'Sales receipt((當天)'!G16) -> 1 | L55: =SUMIFS('Sales receipt((當天)'!K:K,'Sales receipt((當天)'!A:A,'Sales receipt((當天)'!A4,'Sales receipt((當天)'!B:B,'Sales receipt((當天)'!B4,'Sales receipt((當天)'!G:G,'Sales receipt((當天)'!G16) -> 0 | M55: =SUMIFS('Sales receipt((當天)'!J:J,'Sales receipt((當天)'!A:A,'Sales receipt((當天)'!A4,'Sales receipt((當天)'!B:B,'Sales receipt((當天)'!B4,'Sales receipt((當天)'!G:G,'Sales receipt((當天)'!G16) -> 0 | N55: =SUMIFS('Sales receipt((當天)'!K:K,'Sales receipt((當天)'!A:A,'Sales receipt((當天)'!A5,'Sales receipt((當天)'!B:B,'Sales receipt((當天)'!B4,'Sales receipt((當天)'!G:G,'Sales receipt((當天)'!G16) -> 1360 | O55: =SUMIFS('Sales receipt((當天)'!J:J,'Sales receipt((當天)'!A:A,'Sales receipt((當天)'!A5,'Sales receipt((當天)'!B:B,'Sales receipt((當天)'!B4,'Sales receipt((當天)'!G:G,'Sales receipt((當天)'!G16) -> 1
A57: FOT | B57: =SUMIFS('Sales receipt((當天)'!K:K,'Sales receipt((當天)'!A:A,'Sales receipt((當天)'!A2,'Sales receipt((當天)'!B:B,'Sales receipt((當天)'!B6) -> 0 | C57: =SUMIFS('Sales receipt((當天)'!J:J,'Sales receipt((當天)'!A:A,'Sales receipt((當天)'!A2,'Sales receipt((當天)'!B:B,'Sales receipt((當天)'!B6) -> 0 | D57: =SUMIFS('Sales receipt((當天)'!K:K,'Sales receipt((當天)'!A:A,'Sales receipt((當天)'!A3,'Sales receipt((當天)'!B:B,'Sales receipt((當天)'!B6) -> 3519 | E57: =SUMIFS('Sales receipt((當天)'!J:J,'Sales receipt((當天)'!A:A,'Sales receipt((當天)'!A3,'Sales receipt((當天)'!B:B,'Sales receipt((當天)'!B6) -> 4 | F57: =SUMIFS('Sales receipt((當天)'!K:K,'Sales receipt((當天)'!A:A,'Sales receipt((當天)'!A7,'Sales receipt((當天)'!B:B,'Sales receipt((當天)'!B6) -> 2705 | G57: =SUMIFS('Sales receipt((當天)'!J:J,'Sales receipt((當天)'!A:A,'Sales receipt((當天)'!A7,'Sales receipt((當天)'!B:B,'Sales receipt((當天)'!B6) -> 3 | H57: =SUMIFS('Sales receipt((當天)'!K:K,'Sales receipt((當天)'!A:A,'Sales receipt((當天)'!A6,'Sales receipt((當天)'!B:B,'Sales receipt((當天)'!B6) -> 0 | I57: =SUMIFS('Sales receipt((當天)'!J:J,'Sales receipt((當天)'!A:A,'Sales receipt((當天)'!A6,'Sales receipt((當天)'!B:B,'Sales receipt((當天)'!B6) -> 0 | J57: =SUMIFS('Sales receipt((當天)'!K:K,'Sales receipt((當天)'!A:A,'Sales receipt((當天)'!A8,'Sales receipt((當天)'!B:B,'Sales receipt((當天)'!B6) -> 1140 | K57: =SUMIFS('Sales receipt((當天)'!J:J,'Sales receipt((當天)'!A:A,'Sales receipt((當天)'!A8,'Sales receipt((當天)'!B:B,'Sales receipt((當天)'!B6) -> 1 | L57: =SUMIFS('Sales receipt((當天)'!K:K,'Sales receipt((當天)'!A:A,'Sales receipt((當天)'!A4,'Sales receipt((當天)'!B:B,'Sales receipt((當天)'!B6) -> 0 | M57: =SUMIFS('Sales receipt((當天)'!J:J,'Sales receipt((當天)'!A:A,'Sales receipt((當天)'!A4,'Sales receipt((當天)'!B:B,'Sales receipt((當天)'!B6) -> 0 | N57: =SUMIFS('Sales receipt((當天)'!K:K,'Sales receipt((當天)'!A:A,'Sales receipt((當天)'!A5,'Sales receipt((當天)'!B:B,'Sales receipt((當天)'!B6) -> 4266 | O57: =SUMIFS('Sales receipt((當天)'!J:J,'Sales receipt((當天)'!A:A,'Sales receipt((當天)'!A5,'Sales receipt((當天)'!B:B,'Sales receipt((當天)'!B6) -> 4
A58: M | B58: =SUM(SUMIFS('Sales receipt((當天)'!K:K,'Sales receipt((當天)'!A:A,'Sales receipt((當天)'!A2,'Sales receipt((當天)'!B:B,'Sales receipt((當天)'!B6,'Sales receipt((當天)'!H:H,{"MALE","男"})) -> 0 | C58: =SUM(SUMIFS('Sales receipt((當天)'!J:J,'Sales receipt((當天)'!A:A,'Sales receipt((當天)'!A2,'Sales receipt((當天)'!B:B,'Sales receipt((當天)'!B6,'Sales receipt((當天)'!H:H,{"MALE","男"})) -> 0 | D58: =SUM(SUMIFS('Sales receipt((當天)'!K:K,'Sales receipt((當天)'!A:A,'Sales receipt((當天)'!A3,'Sales receipt((當天)'!B:B,'Sales receipt((當天)'!B6,'Sales receipt((當天)'!H:H,{"MALE","男"})) -> 3519 | E58: =SUM(SUMIFS('Sales receipt((當天)'!J:J,'Sales receipt((當天)'!A:A,'Sales receipt((當天)'!A3,'Sales receipt((當天)'!B:B,'Sales receipt((當天)'!B6,'Sales receipt((當天)'!H:H,{"MALE","男"})) -> 4 | F58: =SUM(SUMIFS('Sales receipt((當天)'!K:K,'Sales receipt((當天)'!A:A,'Sales receipt((當天)'!A7,'Sales receipt((當天)'!B:B,'Sales receipt((當天)'!B6,'Sales receipt((當天)'!H:H,{"MALE","男"})) -> 863 | G58: =SUM(SUMIFS('Sales receipt((當天)'!J:J,'Sales receipt((當天)'!A:A,'Sales receipt((當天)'!A7,'Sales receipt((當天)'!B:B,'Sales receipt((當天)'!B6,'Sales receipt((當天)'!H:H,{"MALE","男"})) -> 1 | H58: =SUM(SUMIFS('Sales receipt((當天)'!K:K,'Sales receipt((當天)'!A:A,'Sales receipt((當天)'!A6,'Sales receipt((當天)'!B:B,'Sales receipt((當天)'!B6,'Sales receipt((當天)'!H:H,{"MALE","男"})) -> 0 | I58: =SUM(SUMIFS('Sales receipt((當天)'!J:J,'Sales receipt((當天)'!A:A,'Sales receipt((當天)'!A6,'Sales receipt((當天)'!B:B,'Sales receipt((當天)'!B6,'Sales receipt((當天)'!H:H,{"MALE","男"})) -> 0 | J58: =SUM(SUMIFS('Sales receipt((當天)'!K:K,'Sales receipt((當天)'!A:A,'Sales receipt((當天)'!A8,'Sales receipt((當天)'!B:B,'Sales receipt((當天)'!B6,'Sales receipt((當天)'!H:H,{"MALE","男"})) -> 0 | K58: =SUM(SUMIFS('Sales receipt((當天)'!J:J,'Sales receipt((當天)'!A:A,'Sales receipt((當天)'!A8,'Sales receipt((當天)'!B:B,'Sales receipt((當天)'!B6,'Sales receipt((當天)'!H:H,{"MALE","男"})) -> 0 | L58: =SUM(SUMIFS('Sales receipt((當天)'!K:K,'Sales receipt((當天)'!A:A,'Sales receipt((當天)'!A4,'Sales receipt((當天)'!B:B,'Sales receipt((當天)'!B6,'Sales receipt((當天)'!H:H,{"MALE","男"})) -> 0 | M58: =SUM(SUMIFS('Sales receipt((當天)'!J:J,'Sales receipt((當天)'!A:A,'Sales receipt((當天)'!A4,'Sales receipt((當天)'!B:B,'Sales receipt((當天)'!B6,'Sales receipt((當天)'!H:H,{"MALE","男"})) -> 0 | N58: =SUM(SUMIFS('Sales receipt((當天)'!K:K,'Sales receipt((當天)'!A:A,'Sales receipt((當天)'!A5,'Sales receipt((當天)'!B:B,'Sales receipt((當天)'!B6,'Sales receipt((當天)'!H:H,{"MALE","男"})) -> 3376 | O58: =SUM(SUMIFS('Sales receipt((當天)'!J:J,'Sales receipt((當天)'!A:A,'Sales receipt((當天)'!A5,'Sales receipt((當天)'!B:B,'Sales receipt((當天)'!B6,'Sales receipt((當天)'!H:H,{"MALE","男"})) -> 3
A59: F | B59: =SUM(SUMIFS('Sales receipt((當天)'!K:K,'Sales receipt((當天)'!A:A,'Sales receipt((當天)'!A2,'Sales receipt((當天)'!B:B,'Sales receipt((當天)'!B6,'Sales receipt((當天)'!H:H,{"FEMALE","女"})) -> 0 | C59: =SUM(SUMIFS('Sales receipt((當天)'!J:J,'Sales receipt((當天)'!A:A,'Sales receipt((當天)'!A2,'Sales receipt((當天)'!B:B,'Sales receipt((當天)'!B6,'Sales receipt((當天)'!H:H,{"FEMALE","女"})) -> 0 | D59: =SUM(SUMIFS('Sales receipt((當天)'!K:K,'Sales receipt((當天)'!A:A,'Sales receipt((當天)'!A3,'Sales receipt((當天)'!B:B,'Sales receipt((當天)'!B6,'Sales receipt((當天)'!H:H,{"FEMALE","女"})) -> 0 | E59: =SUM(SUMIFS('Sales receipt((當天)'!J:J,'Sales receipt((當天)'!A:A,'Sales receipt((當天)'!A3,'Sales receipt((當天)'!B:B,'Sales receipt((當天)'!B6,'Sales receipt((當天)'!H:H,{"FEMALE","女"})) -> 0 | F59: =SUM(SUMIFS('Sales receipt((當天)'!K:K,'Sales receipt((當天)'!A:A,'Sales receipt((當天)'!A7,'Sales receipt((當天)'!B:B,'Sales receipt((當天)'!B6,'Sales receipt((當天)'!H:H,{"FEMALE","女"})) -> 1842 | G59: =SUM(SUMIFS('Sales receipt((當天)'!J:J,'Sales receipt((當天)'!A:A,'Sales receipt((當天)'!A7,'Sales receipt((當天)'!B:B,'Sales receipt((當天)'!B6,'Sales receipt((當天)'!H:H,{"FEMALE","女"})) -> 2 | H59: =SUM(SUMIFS('Sales receipt((當天)'!K:K,'Sales receipt((當天)'!A:A,'Sales receipt((當天)'!A6,'Sales receipt((當天)'!B:B,'Sales receipt((當天)'!B6,'Sales receipt((當天)'!H:H,{"FEMALE","女"})) -> 0 | I59: =SUM(SUMIFS('Sales receipt((當天)'!J:J,'Sales receipt((當天)'!A:A,'Sales receipt((當天)'!A6,'Sales receipt((當天)'!B:B,'Sales receipt((當天)'!B6,'Sales receipt((當天)'!H:H,{"FEMALE","女"})) -> 0 | J59: =SUM(SUMIFS('Sales receipt((當天)'!K:K,'Sales receipt((當天)'!A:A,'Sales receipt((當天)'!A8,'Sales receipt((當天)'!B:B,'Sales receipt((當天)'!B6,'Sales receipt((當天)'!H:H,{"FEMALE","女"})) -> 1140 | K59: =SUM(SUMIFS('Sales receipt((當天)'!J:J,'Sales receipt((當天)'!A:A,'Sales receipt((當天)'!A8,'Sales receipt((當天)'!B:B,'Sales receipt((當天)'!B6,'Sales receipt((當天)'!H:H,{"FEMALE","女"})) -> 1 | L59: =SUM(SUMIFS('Sales receipt((當天)'!K:K,'Sales receipt((當天)'!A:A,'Sales receipt((當天)'!A4,'Sales receipt((當天)'!B:B,'Sales receipt((當天)'!B6,'Sales receipt((當天)'!H:H,{"FEMALE","女"})) -> 0 | M59: =SUM(SUMIFS('Sales receipt((當天)'!J:J,'Sales receipt((當天)'!A:A,'Sales receipt((當天)'!A4,'Sales receipt((當天)'!B:B,'Sales receipt((當天)'!B6,'Sales receipt((當天)'!H:H,{"FEMALE","女"})) -> 0 | N59: =SUM(SUMIFS('Sales receipt((當天)'!K:K,'Sales receipt((當天)'!A:A,'Sales receipt((當天)'!A5,'Sales receipt((當天)'!B:B,'Sales receipt((當天)'!B6,'Sales receipt((當天)'!H:H,{"FEMALE","女"})) -> 890 | O59: =SUM(SUMIFS('Sales receipt((當天)'!J:J,'Sales receipt((當天)'!A:A,'Sales receipt((當天)'!A5,'Sales receipt((當天)'!B:B,'Sales receipt((當天)'!B6,'Sales receipt((當天)'!H:H,{"FEMALE","女"})) -> 1
A60: ACC | B60: =SUMIFS('Sales receipt((當天)'!K:K,'Sales receipt((當天)'!A:A,'Sales receipt((當天)'!A2,'Sales receipt((當天)'!B:B,'Sales receipt((當天)'!B5) -> 0 | C60: =SUMIFS('Sales receipt((當天)'!J:J,'Sales receipt((當天)'!A:A,'Sales receipt((當天)'!A2,'Sales receipt((當天)'!B:B,'Sales receipt((當天)'!B5) -> 0 | D60: =SUMIFS('Sales receipt((當天)'!K:K,'Sales receipt((當天)'!A:A,'Sales receipt((當天)'!A3,'Sales receipt((當天)'!B:B,'Sales receipt((當天)'!B5) -> 0 | E60: =SUMIFS('Sales receipt((當天)'!J:J,'Sales receipt((當天)'!A:A,'Sales receipt((當天)'!A3,'Sales receipt((當天)'!B:B,'Sales receipt((當天)'!B5) -> 0 | F60: =SUMIFS('Sales receipt((當天)'!K:K,'Sales receipt((當天)'!A:A,'Sales receipt((當天)'!A7,'Sales receipt((當天)'!B:B,'Sales receipt((當天)'!B5) -> 0 | G60: =SUMIFS('Sales receipt((當天)'!J:J,'Sales receipt((當天)'!A:A,'Sales receipt((當天)'!A7,'Sales receipt((當天)'!B:B,'Sales receipt((當天)'!B5) -> 0 | H60: =SUMIFS('Sales receipt((當天)'!K:K,'Sales receipt((當天)'!A:A,'Sales receipt((當天)'!A6,'Sales receipt((當天)'!B:B,'Sales receipt((當天)'!B5) -> 0 | I60: =SUMIFS('Sales receipt((當天)'!J:J,'Sales receipt((當天)'!A:A,'Sales receipt((當天)'!A6,'Sales receipt((當天)'!B:B,'Sales receipt((當天)'!B5) -> 0 | J60: =SUMIFS('Sales receipt((當天)'!K:K,'Sales receipt((當天)'!A:A,'Sales receipt((當天)'!A8,'Sales receipt((當天)'!B:B,'Sales receipt((當天)'!B5) -> 1673 | K60: =SUMIFS('Sales receipt((當天)'!J:J,'Sales receipt((當天)'!A:A,'Sales receipt((當天)'!A8,'Sales receipt((當天)'!B:B,'Sales receipt((當天)'!B5) -> 15 | L60: =SUMIFS('Sales receipt((當天)'!K:K,'Sales receipt((當天)'!A:A,'Sales receipt((當天)'!A4,'Sales receipt((當天)'!B:B,'Sales receipt((當天)'!B5) -> 0 | M60: =SUMIFS('Sales receipt((當天)'!J:J,'Sales receipt((當天)'!A:A,'Sales receipt((當天)'!A4,'Sales receipt((當天)'!B:B,'Sales receipt((當天)'!B5) -> 0 | N60: =SUMIFS('Sales receipt((當天)'!K:K,'Sales receipt((當天)'!A:A,'Sales receipt((當天)'!A5,'Sales receipt((當天)'!B:B,'Sales receipt((當天)'!B5) -> 2476 | O60: =SUMIFS('Sales receipt((當天)'!J:J,'Sales receipt((當天)'!A:A,'Sales receipt((當天)'!A5,'Sales receipt((當天)'!B:B,'Sales receipt((當天)'!B5) -> 10
B62: M0989 Susanna | D62: M2172 Janet | F62: M2801 Fanny | H62: M2798 Ryan | J62: M2902 Carmen | L62: M3060 Anson | N62: M1436 Khaki
B63: Sales | C63: Qty | D63: Sales | E63: Qty | F63: Sales | G63: Qty | H63: Sales | I63: Qty | J63: Sales | K63: Qty | L63: Sales | M63: Qty | N63: Sales | O63: Qty
A64: 內衣類 | B64: =SUMIFS('Sales receipt((當天)'!K:K,'Sales receipt((當天)'!A:A,'Sales receipt((當天)'!A2,'Sales receipt((當天)'!B:B,'Sales receipt((當天)'!B4,'Sales receipt((當天)'!C:C,'Sales receipt((當天)'!C2) -> 0 | C64: =SUMIFS('Sales receipt((當天)'!J:J,'Sales receipt((當天)'!A:A,'Sales receipt((當天)'!A2,'Sales receipt((當天)'!B:B,'Sales receipt((當天)'!B4,'Sales receipt((當天)'!C:C,'Sales receipt((當天)'!C2) -> 0 | D64: =SUMIFS('Sales receipt((當天)'!K:K,'Sales receipt((當天)'!A:A,'Sales receipt((當天)'!A3,'Sales receipt((當天)'!B:B,'Sales receipt((當天)'!B4,'Sales receipt((當天)'!C:C,'Sales receipt((當天)'!C2) -> 0 | E64: =SUMIFS('Sales receipt((當天)'!J:J,'Sales receipt((當天)'!A:A,'Sales receipt((當天)'!A3,'Sales receipt((當天)'!B:B,'Sales receipt((當天)'!B4,'Sales receipt((當天)'!C:C,'Sales receipt((當天)'!C2) -> 0 | F64: =SUMIFS('Sales receipt((當天)'!K:K,'Sales receipt((當天)'!A:A,'Sales receipt((當天)'!A7,'Sales receipt((當天)'!B:B,'Sales receipt((當天)'!B4,'Sales receipt((當天)'!C:C,'Sales receipt((當天)'!C2) -> 0 | G64: =SUMIFS('Sales receipt((當天)'!J:J,'Sales receipt((當天)'!A:A,'Sales receipt((當天)'!A7,'Sales receipt((當天)'!B:B,'Sales receipt((當天)'!B4,'Sales receipt((當天)'!C:C,'Sales receipt((當天)'!C2) -> 0 | H64: =SUMIFS('Sales receipt((當天)'!K:K,'Sales receipt((當天)'!A:A,'Sales receipt((當天)'!A6,'Sales receipt((當天)'!B:B,'Sales receipt((當天)'!B4,'Sales receipt((當天)'!C:C,'Sales receipt((當天)'!C2) -> 0 | I64: =SUMIFS('Sales receipt((當天)'!J:J,'Sales receipt((當天)'!A:A,'Sales receipt((當天)'!A6,'Sales receipt((當天)'!B:B,'Sales receipt((當天)'!B4,'Sales receipt((當天)'!C:C,'Sales receipt((當天)'!C2) -> 0 | J64: =SUMIFS('Sales receipt((當天)'!K:K,'Sales receipt((當天)'!A:A,'Sales receipt((當天)'!A8,'Sales receipt((當天)'!B:B,'Sales receipt((當天)'!B4,'Sales receipt((當天)'!C:C,'Sales receipt((當天)'!C2) -> 0 | K64: =SUMIFS('Sales receipt((當天)'!J:J,'Sales receipt((當天)'!A:A,'Sales receipt((當天)'!A8,'Sales receipt((當天)'!B:B,'Sales receipt((當天)'!B4,'Sales receipt((當天)'!C:C,'Sales receipt((當天)'!C2) -> 0 | L64: =SUMIFS('Sales receipt((當天)'!K:K,'Sales receipt((當天)'!A:A,'Sales receipt((當天)'!A4,'Sales receipt((當天)'!B:B,'Sales receipt((當天)'!B4,'Sales receipt((當天)'!C:C,'Sales receipt((當天)'!C2) -> 0 | M64: =SUMIFS('Sales receipt((當天)'!J:J,'Sales receipt((當天)'!A:A,'Sales receipt((當天)'!A4,'Sales receipt((當天)'!B:B,'Sales receipt((當天)'!B4,'Sales receipt((當天)'!C:C,'Sales receipt((當天)'!C2) -> 0 | N64: =SUMIFS('Sales receipt((當天)'!K:K,'Sales receipt((當天)'!A:A,'Sales receipt((當天)'!A5,'Sales receipt((當天)'!B:B,'Sales receipt((當天)'!B4,'Sales receipt((當天)'!C:C,'Sales receipt((當天)'!C2) -> 0 | O64: =SUMIFS('Sales receipt((當天)'!J:J,'Sales receipt((當天)'!A:A,'Sales receipt((當天)'!A5,'Sales receipt((當天)'!B:B,'Sales receipt((當天)'!B4,'Sales receipt((當天)'!C:C,'Sales receipt((當天)'!C2) -> 0
A65: 內搭 | B65: =SUMIFS('Sales receipt((當天)'!K:K,'Sales receipt((當天)'!A:A,'Sales receipt((當天)'!A2,'Sales receipt((當天)'!B:B,'Sales receipt((當天)'!B4,'Sales receipt((當天)'!C:C,'Sales receipt((當天)'!C3) -> 0 | C65: =SUMIFS('Sales receipt((當天)'!J:J,'Sales receipt((當天)'!A:A,'Sales receipt((當天)'!A2,'Sales receipt((當天)'!B:B,'Sales receipt((當天)'!B4,'Sales receipt((當天)'!C:C,'Sales receipt((當天)'!C3) -> 0 | D65: =SUMIFS('Sales receipt((當天)'!K:K,'Sales receipt((當天)'!A:A,'Sales receipt((當天)'!A3,'Sales receipt((當天)'!B:B,'Sales receipt((當天)'!B4,'Sales receipt((當天)'!C:C,'Sales receipt((當天)'!C3) -> 2358 | E65: =SUMIFS('Sales receipt((當天)'!J:J,'Sales receipt((當天)'!A:A,'Sales receipt((當天)'!A3,'Sales receipt((當天)'!B:B,'Sales receipt((當天)'!B4,'Sales receipt((當天)'!C:C,'Sales receipt((當天)'!C3) -> 2 | F65: =SUMIFS('Sales receipt((當天)'!K:K,'Sales receipt((當天)'!A:A,'Sales receipt((當天)'!A7,'Sales receipt((當天)'!B:B,'Sales receipt((當天)'!B4,'Sales receipt((當天)'!C:C,'Sales receipt((當天)'!C3) -> 2241 | G65: =SUMIFS('Sales receipt((當天)'!J:J,'Sales receipt((當天)'!A:A,'Sales receipt((當天)'!A7,'Sales receipt((當天)'!B:B,'Sales receipt((當天)'!B4,'Sales receipt((當天)'!C:C,'Sales receipt((當天)'!C3) -> 2 | H65: =SUMIFS('Sales receipt((當天)'!K:K,'Sales receipt((當天)'!A:A,'Sales receipt((當天)'!A6,'Sales receipt((當天)'!B:B,'Sales receipt((當天)'!B4,'Sales receipt((當天)'!C:C,'Sales receipt((當天)'!C3) -> 0 | I65: =SUMIFS('Sales receipt((當天)'!J:J,'Sales receipt((當天)'!A:A,'Sales receipt((當天)'!A6,'Sales receipt((當天)'!B:B,'Sales receipt((當天)'!B4,'Sales receipt((當天)'!C:C,'Sales receipt((當天)'!C3) -> 0 | J65: =SUMIFS('Sales receipt((當天)'!K:K,'Sales receipt((當天)'!A:A,'Sales receipt((當天)'!A8,'Sales receipt((當天)'!B:B,'Sales receipt((當天)'!B4,'Sales receipt((當天)'!C:C,'Sales receipt((當天)'!C3) -> 2156 | K65: =SUMIFS('Sales receipt((當天)'!J:J,'Sales receipt((當天)'!A:A,'Sales receipt((當天)'!A8,'Sales receipt((當天)'!B:B,'Sales receipt((當天)'!B4,'Sales receipt((當天)'!C:C,'Sales receipt((當天)'!C3) -> 3 | L65: =SUMIFS('Sales receipt((當天)'!K:K,'Sales receipt((當天)'!A:A,'Sales receipt((當天)'!A4,'Sales receipt((當天)'!B:B,'Sales receipt((當天)'!B4,'Sales receipt((當天)'!C:C,'Sales receipt((當天)'!C3) -> 2764 | M65: =SUMIFS('Sales receipt((當天)'!J:J,'Sales receipt((當天)'!A:A,'Sales receipt((當天)'!A4,'Sales receipt((當天)'!B:B,'Sales receipt((當天)'!B4,'Sales receipt((當天)'!C:C,'Sales receipt((當天)'!C3) -> 3 | N65: =SUMIFS('Sales receipt((當天)'!K:K,'Sales receipt((當天)'!A:A,'Sales receipt((當天)'!A5,'Sales receipt((當天)'!B:B,'Sales receipt((當天)'!B4,'Sales receipt((當天)'!C:C,'Sales receipt((當天)'!C3) -> 3629 | O65: =SUMIFS('Sales receipt((當天)'!J:J,'Sales receipt((當天)'!A:A,'Sales receipt((當天)'!A5,'Sales receipt((當天)'!B:B,'Sales receipt((當天)'!B4,'Sales receipt((當天)'!C:C,'Sales receipt((當天)'!C3) -> 3
A66: 編織衫 | B66: =SUMIFS('Sales receipt((當天)'!K:K,'Sales receipt((當天)'!A:A,'Sales receipt((當天)'!A2,'Sales receipt((當天)'!B:B,'Sales receipt((當天)'!B4,'Sales receipt((當天)'!C:C,'Sales receipt((當天)'!C13) -> 0 | C66: =SUMIFS('Sales receipt((當天)'!J:J,'Sales receipt((當天)'!A:A,'Sales receipt((當天)'!A2,'Sales receipt((當天)'!B:B,'Sales receipt((當天)'!B4,'Sales receipt((當天)'!C:C,'Sales receipt((當天)'!C13) -> 0 | D66: =SUMIFS('Sales receipt((當天)'!K:K,'Sales receipt((當天)'!A:A,'Sales receipt((當天)'!A3,'Sales receipt((當天)'!B:B,'Sales receipt((當天)'!B4,'Sales receipt((當天)'!C:C,'Sales receipt((當天)'!C13) -> 1303 | E66: =SUMIFS('Sales receipt((當天)'!J:J,'Sales receipt((當天)'!A:A,'Sales receipt((當天)'!A3,'Sales receipt((當天)'!B:B,'Sales receipt((當天)'!B4,'Sales receipt((當天)'!C:C,'Sales receipt((當天)'!C13) -> 1 | F66: =SUMIFS('Sales receipt((當天)'!K:K,'Sales receipt((當天)'!A:A,'Sales receipt((當天)'!A7,'Sales receipt((當天)'!B:B,'Sales receipt((當天)'!B4,'Sales receipt((當天)'!C:C,'Sales receipt((當天)'!C13) -> 0 | G66: =SUMIFS('Sales receipt((當天)'!J:J,'Sales receipt((當天)'!A:A,'Sales receipt((當天)'!A7,'Sales receipt((當天)'!B:B,'Sales receipt((當天)'!B4,'Sales receipt((當天)'!C:C,'Sales receipt((當天)'!C13) -> 0 | H66: =SUMIFS('Sales receipt((當天)'!K:K,'Sales receipt((當天)'!A:A,'Sales receipt((當天)'!A6,'Sales receipt((當天)'!B:B,'Sales receipt((當天)'!B4,'Sales receipt((當天)'!C:C,'Sales receipt((當天)'!C13) -> 0 | I66: =SUMIFS('Sales receipt((當天)'!J:J,'Sales receipt((當天)'!A:A,'Sales receipt((當天)'!A6,'Sales receipt((當天)'!B:B,'Sales receipt((當天)'!B4,'Sales receipt((當天)'!C:C,'Sales receipt((當天)'!C13) -> 0 | J66: =SUMIFS('Sales receipt((當天)'!K:K,'Sales receipt((當天)'!A:A,'Sales receipt((當天)'!A8,'Sales receipt((當天)'!B:B,'Sales receipt((當天)'!B4,'Sales receipt((當天)'!C:C,'Sales receipt((當天)'!C13) -> 0 | K66: =SUMIFS('Sales receipt((當天)'!J:J,'Sales receipt((當天)'!A:A,'Sales receipt((當天)'!A8,'Sales receipt((當天)'!B:B,'Sales receipt((當天)'!B4,'Sales receipt((當天)'!C:C,'Sales receipt((當天)'!C13) -> 0 | L66: =SUMIFS('Sales receipt((當天)'!K:K,'Sales receipt((當天)'!A:A,'Sales receipt((當天)'!A4,'Sales receipt((當天)'!B:B,'Sales receipt((當天)'!B4,'Sales receipt((當天)'!C:C,'Sales receipt((當天)'!C13) -> 1091 | M66: =SUMIFS('Sales receipt((當天)'!J:J,'Sales receipt((當天)'!A:A,'Sales receipt((當天)'!A4,'Sales receipt((當天)'!B:B,'Sales receipt((當天)'!B4,'Sales receipt((當天)'!C:C,'Sales receipt((當天)'!C13) -> 1 | N66: =SUMIFS('Sales receipt((當天)'!K:K,'Sales receipt((當天)'!A:A,'Sales receipt((當天)'!A5,'Sales receipt((當天)'!B:B,'Sales receipt((當天)'!B4,'Sales receipt((當天)'!C:C,'Sales receipt((當天)'!C13) -> 0 | O66: =SUMIFS('Sales receipt((當天)'!J:J,'Sales receipt((當天)'!A:A,'Sales receipt((當天)'!A5,'Sales receipt((當天)'!B:B,'Sales receipt((當天)'!B4,'Sales receipt((當天)'!C:C,'Sales receipt((當天)'!C13) -> 0
A67: 襯衫 | B67: =SUMIFS('Sales receipt((當天)'!K:K,'Sales receipt((當天)'!A:A,'Sales receipt((當天)'!A2,'Sales receipt((當天)'!B:B,'Sales receipt((當天)'!B4,'Sales receipt((當天)'!C:C,'Sales receipt((當天)'!C14) -> 0 | C67: =SUMIFS('Sales receipt((當天)'!J:J,'Sales receipt((當天)'!A:A,'Sales receipt((當天)'!A2,'Sales receipt((當天)'!B:B,'Sales receipt((當天)'!B4,'Sales receipt((當天)'!C:C,'Sales receipt((當天)'!C14) -> 0 | D67: =SUMIFS('Sales receipt((當天)'!K:K,'Sales receipt((當天)'!A:A,'Sales receipt((當天)'!A3,'Sales receipt((當天)'!B:B,'Sales receipt((當天)'!B4,'Sales receipt((當天)'!C:C,'Sales receipt((當天)'!C14) -> 0 | E67: =SUMIFS('Sales receipt((當天)'!J:J,'Sales receipt((當天)'!A:A,'Sales receipt((當天)'!A3,'Sales receipt((當天)'!B:B,'Sales receipt((當天)'!B4,'Sales receipt((當天)'!C:C,'Sales receipt((當天)'!C14) -> 0 | F67: =SUMIFS('Sales receipt((當天)'!K:K,'Sales receipt((當天)'!A:A,'Sales receipt((當天)'!A7,'Sales receipt((當天)'!B:B,'Sales receipt((當天)'!B4,'Sales receipt((當天)'!C:C,'Sales receipt((當天)'!C14) -> 0 | G67: =SUMIFS('Sales receipt((當天)'!J:J,'Sales receipt((當天)'!A:A,'Sales receipt((當天)'!A7,'Sales receipt((當天)'!B:B,'Sales receipt((當天)'!B4,'Sales receipt((當天)'!C:C,'Sales receipt((當天)'!C14) -> 0 | H67: =SUMIFS('Sales receipt((當天)'!K:K,'Sales receipt((當天)'!A:A,'Sales receipt((當天)'!A6,'Sales receipt((當天)'!B:B,'Sales receipt((當天)'!B4,'Sales receipt((當天)'!C:C,'Sales receipt((當天)'!C14) -> 0 | I67: =SUMIFS('Sales receipt((當天)'!J:J,'Sales receipt((當天)'!A:A,'Sales receipt((當天)'!A6,'Sales receipt((當天)'!B:B,'Sales receipt((當天)'!B4,'Sales receipt((當天)'!C:C,'Sales receipt((當天)'!C14) -> 0 | J67: =SUMIFS('Sales receipt((當天)'!K:K,'Sales receipt((當天)'!A:A,'Sales receipt((當天)'!A8,'Sales receipt((當天)'!B:B,'Sales receipt((當天)'!B4,'Sales receipt((當天)'!C:C,'Sales receipt((當天)'!C14) -> 1140 | K67: =SUMIFS('Sales receipt((當天)'!J:J,'Sales receipt((當天)'!A:A,'Sales receipt((當天)'!A8,'Sales receipt((當天)'!B:B,'Sales receipt((當天)'!B4,'Sales receipt((當天)'!C:C,'Sales receipt((當天)'!C14) -> 1 | L67: =SUMIFS('Sales receipt((當天)'!K:K,'Sales receipt((當天)'!A:A,'Sales receipt((當天)'!A4,'Sales receipt((當天)'!B:B,'Sales receipt((當天)'!B4,'Sales receipt((當天)'!C:C,'Sales receipt((當天)'!C14) -> 0 | M67: =SUMIFS('Sales receipt((當天)'!J:J,'Sales receipt((當天)'!A:A,'Sales receipt((當天)'!A4,'Sales receipt((當天)'!B:B,'Sales receipt((當天)'!B4,'Sales receipt((當天)'!C:C,'Sales receipt((當天)'!C14) -> 0 | N67: =SUMIFS('Sales receipt((當天)'!K:K,'Sales receipt((當天)'!A:A,'Sales receipt((當天)'!A5,'Sales receipt((當天)'!B:B,'Sales receipt((當天)'!B4,'Sales receipt((當天)'!C:C,'Sales receipt((當天)'!C14) -> 0 | O67: =SUMIFS('Sales receipt((當天)'!J:J,'Sales receipt((當天)'!A:A,'Sales receipt((當天)'!A5,'Sales receipt((當天)'!B:B,'Sales receipt((當天)'!B4,'Sales receipt((當天)'!C:C,'Sales receipt((當天)'!C14) -> 0
A68: 短T類 | B68: =SUMIFS('Sales receipt((當天)'!K:K,'Sales receipt((當天)'!A:A,'Sales receipt((當天)'!A2,'Sales receipt((當天)'!B:B,'Sales receipt((當天)'!B4,'Sales receipt((當天)'!C:C,'Sales receipt((當天)'!C10) -> 0 | C68: =SUMIFS('Sales receipt((當天)'!J:J,'Sales receipt((當天)'!A:A,'Sales receipt((當天)'!A2,'Sales receipt((當天)'!B:B,'Sales receipt((當天)'!B4,'Sales receipt((當天)'!C:C,'Sales receipt((當天)'!C10) -> 0 | D68: =SUMIFS('Sales receipt((當天)'!K:K,'Sales receipt((當天)'!A:A,'Sales receipt((當天)'!A3,'Sales receipt((當天)'!B:B,'Sales receipt((當天)'!B4,'Sales receipt((當天)'!C:C,'Sales receipt((當天)'!C10) -> 0 | E68: =SUMIFS('Sales receipt((當天)'!J:J,'Sales receipt((當天)'!A:A,'Sales receipt((當天)'!A3,'Sales receipt((當天)'!B:B,'Sales receipt((當天)'!B4,'Sales receipt((當天)'!C:C,'Sales receipt((當天)'!C10) -> 0 | F68: =SUMIFS('Sales receipt((當天)'!K:K,'Sales receipt((當天)'!A:A,'Sales receipt((當天)'!A7,'Sales receipt((當天)'!B:B,'Sales receipt((當天)'!B4,'Sales receipt((當天)'!C:C,'Sales receipt((當天)'!C10) -> 0 | G68: =SUMIFS('Sales receipt((當天)'!J:J,'Sales receipt((當天)'!A:A,'Sales receipt((當天)'!A7,'Sales receipt((當天)'!B:B,'Sales receipt((當天)'!B4,'Sales receipt((當天)'!C:C,'Sales receipt((當天)'!C10) -> 0 | H68: =SUMIFS('Sales receipt((當天)'!K:K,'Sales receipt((當天)'!A:A,'Sales receipt((當天)'!A6,'Sales receipt((當天)'!B:B,'Sales receipt((當天)'!B4,'Sales receipt((當天)'!C:C,'Sales receipt((當天)'!C10) -> 0 | I68: =SUMIFS('Sales receipt((當天)'!J:J,'Sales receipt((當天)'!A:A,'Sales receipt((當天)'!A6,'Sales receipt((當天)'!B:B,'Sales receipt((當天)'!B4,'Sales receipt((當天)'!C:C,'Sales receipt((當天)'!C10) -> 0 | J68: =SUMIFS('Sales receipt((當天)'!K:K,'Sales receipt((當天)'!A:A,'Sales receipt((當天)'!A8,'Sales receipt((當天)'!B:B,'Sales receipt((當天)'!B4,'Sales receipt((當天)'!C:C,'Sales receipt((當天)'!C10) -> 0 | K68: =SUMIFS('Sales receipt((當天)'!J:J,'Sales receipt((當天)'!A:A,'Sales receipt((當天)'!A8,'Sales receipt((當天)'!B:B,'Sales receipt((當天)'!B4,'Sales receipt((當天)'!C:C,'Sales receipt((當天)'!C10) -> 0 | L68: =SUMIFS('Sales receipt((當天)'!K:K,'Sales receipt((當天)'!A:A,'Sales receipt((當天)'!A4,'Sales receipt((當天)'!B:B,'Sales receipt((當天)'!B4,'Sales receipt((當天)'!C:C,'Sales receipt((當天)'!C10) -> 0 | M68: =SUMIFS('Sales receipt((當天)'!J:J,'Sales receipt((當天)'!A:A,'Sales receipt((當天)'!A4,'Sales receipt((當天)'!B:B,'Sales receipt((當天)'!B4,'Sales receipt((當天)'!C:C,'Sales receipt((當天)'!C10) -> 0 | N68: =SUMIFS('Sales receipt((當天)'!K:K,'Sales receipt((當天)'!A:A,'Sales receipt((當天)'!A5,'Sales receipt((當天)'!B:B,'Sales receipt((當天)'!B4,'Sales receipt((當天)'!C:C,'Sales receipt((當天)'!C10) -> 651 | O68: =SUMIFS('Sales receipt((當天)'!J:J,'Sales receipt((當天)'!A:A,'Sales receipt((當天)'!A5,'Sales receipt((當天)'!B:B,'Sales receipt((當天)'!B4,'Sales receipt((當天)'!C:C,'Sales receipt((當天)'!C10) -> 1
A69: 外套 | B69: =SUM(SUMIFS('Sales receipt((當天)'!K:K,'Sales receipt((當天)'!A:A,'Sales receipt((當天)'!A2,'Sales receipt((當天)'!B:B,'Sales receipt((當天)'!B4,'Sales receipt((當天)'!C:C,{"針織上衣","梭織上衣"})) -> 0 | C69: =SUM(SUMIFS('Sales receipt((當天)'!J:J,'Sales receipt((當天)'!A:A,'Sales receipt((當天)'!A2,'Sales receipt((當天)'!B:B,'Sales receipt((當天)'!B4,'Sales receipt((當天)'!C:C,{"針織上衣","梭織上衣"})) -> 0 | D69: =SUM(SUMIFS('Sales receipt((當天)'!K:K,'Sales receipt((當天)'!A:A,'Sales receipt((當天)'!A3,'Sales receipt((當天)'!B:B,'Sales receipt((當天)'!B4,'Sales receipt((當天)'!C:C,{"針織上衣","梭織上衣"})) -> 1302 | E69: =SUM(SUMIFS('Sales receipt((當天)'!J:J,'Sales receipt((當天)'!A:A,'Sales receipt((當天)'!A3,'Sales receipt((當天)'!B:B,'Sales receipt((當天)'!B4,'Sales receipt((當天)'!C:C,{"針織上衣","梭織上衣"})) -> 1 | F69: =SUM(SUMIFS('Sales receipt((當天)'!K:K,'Sales receipt((當天)'!A:A,'Sales receipt((當天)'!A7,'Sales receipt((當天)'!B:B,'Sales receipt((當天)'!B4,'Sales receipt((當天)'!C:C,{"針織上衣","梭織上衣"})) -> 4681 | G69: =SUM(SUMIFS('Sales receipt((當天)'!J:J,'Sales receipt((當天)'!A:A,'Sales receipt((當天)'!A7,'Sales receipt((當天)'!B:B,'Sales receipt((當天)'!B4,'Sales receipt((當天)'!C:C,{"針織上衣","梭織上衣"})) -> 2 | H69: =SUM(SUMIFS('Sales receipt((當天)'!K:K,'Sales receipt((當天)'!A:A,'Sales receipt((當天)'!A6,'Sales receipt((當天)'!B:B,'Sales receipt((當天)'!B4,'Sales receipt((當天)'!C:C,{"針織上衣","梭織上衣"})) -> 0 | I69: =SUM(SUMIFS('Sales receipt((當天)'!J:J,'Sales receipt((當天)'!A:A,'Sales receipt((當天)'!A6,'Sales receipt((當天)'!B:B,'Sales receipt((當天)'!B4,'Sales receipt((當天)'!C:C,{"針織上衣","梭織上衣"})) -> 0 | J69: =SUM(SUMIFS('Sales receipt((當天)'!K:K,'Sales receipt((當天)'!A:A,'Sales receipt((當天)'!A8,'Sales receipt((當天)'!B:B,'Sales receipt((當天)'!B4,'Sales receipt((當天)'!C:C,{"針織上衣","梭織上衣"})) -> 3757 | K69: =SUM(SUMIFS('Sales receipt((當天)'!J:J,'Sales receipt((當天)'!A:A,'Sales receipt((當天)'!A8,'Sales receipt((當天)'!B:B,'Sales receipt((當天)'!B4,'Sales receipt((當天)'!C:C,{"針織上衣","梭織上衣"})) -> 2 | L69: =SUM(SUMIFS('Sales receipt((當天)'!K:K,'Sales receipt((當天)'!A:A,'Sales receipt((當天)'!A4,'Sales receipt((當天)'!B:B,'Sales receipt((當天)'!B4,'Sales receipt((當天)'!C:C,{"針織上衣","梭織上衣"})) -> 0 | M69: =SUM(SUMIFS('Sales receipt((當天)'!J:J,'Sales receipt((當天)'!A:A,'Sales receipt((當天)'!A4,'Sales receipt((當天)'!B:B,'Sales receipt((當天)'!B4,'Sales receipt((當天)'!C:C,{"針織上衣","梭織上衣"})) -> 0 | N69: =SUM(SUMIFS('Sales receipt((當天)'!K:K,'Sales receipt((當天)'!A:A,'Sales receipt((當天)'!A5,'Sales receipt((當天)'!B:B,'Sales receipt((當天)'!B4,'Sales receipt((當天)'!C:C,{"針織上衣","梭織上衣"})) -> 1360 | O69: =SUM(SUMIFS('Sales receipt((當天)'!J:J,'Sales receipt((當天)'!A:A,'Sales receipt((當天)'!A5,'Sales receipt((當天)'!B:B,'Sales receipt((當天)'!B4,'Sales receipt((當天)'!C:C,{"針織上衣","梭織上衣"})) -> 1
A70: 羽絨服 | B70: =SUM(SUMIFS('Sales receipt((當天)'!K:K,'Sales receipt((當天)'!A:A,'Sales receipt((當天)'!A2,'Sales receipt((當天)'!B:B,'Sales receipt((當天)'!B4,'Sales receipt((當天)'!C:C,{"滑雪服","羽絨服","棉服","棉羽類"})) -> 0 | C70: =SUM(SUMIFS('Sales receipt((當天)'!J:J,'Sales receipt((當天)'!A:A,'Sales receipt((當天)'!A2,'Sales receipt((當天)'!B:B,'Sales receipt((當天)'!B4,'Sales receipt((當天)'!C:C,{"滑雪服","羽絨服","棉服","棉羽類"})) -> 0 | D70: =SUM(SUMIFS('Sales receipt((當天)'!K:K,'Sales receipt((當天)'!A:A,'Sales receipt((當天)'!A3,'Sales receipt((當天)'!B:B,'Sales receipt((當天)'!B4,'Sales receipt((當天)'!C:C,{"滑雪服","羽絨服","棉服","棉羽類"})) -> 9125 | E70: =SUM(SUMIFS('Sales receipt((當天)'!J:J,'Sales receipt((當天)'!A:A,'Sales receipt((當天)'!A3,'Sales receipt((當天)'!B:B,'Sales receipt((當天)'!B4,'Sales receipt((當天)'!C:C,{"滑雪服","羽絨服","棉服","棉羽類"})) -> 3 | F70: =SUM(SUMIFS('Sales receipt((當天)'!K:K,'Sales receipt((當天)'!A:A,'Sales receipt((當天)'!A7,'Sales receipt((當天)'!B:B,'Sales receipt((當天)'!B4,'Sales receipt((當天)'!C:C,{"滑雪服","羽絨服","棉服","棉羽類"})) -> 1712 | G70: =SUM(SUMIFS('Sales receipt((當天)'!J:J,'Sales receipt((當天)'!A:A,'Sales receipt((當天)'!A7,'Sales receipt((當天)'!B:B,'Sales receipt((當天)'!B4,'Sales receipt((當天)'!C:C,{"滑雪服","羽絨服","棉服","棉羽類"})) -> 1 | H70: =SUM(SUMIFS('Sales receipt((當天)'!K:K,'Sales receipt((當天)'!A:A,'Sales receipt((當天)'!A6,'Sales receipt((當天)'!B:B,'Sales receipt((當天)'!B4,'Sales receipt((當天)'!C:C,{"滑雪服","羽絨服","棉服","棉羽類"})) -> 0 | I70: =SUM(SUMIFS('Sales receipt((當天)'!J:J,'Sales receipt((當天)'!A:A,'Sales receipt((當天)'!A6,'Sales receipt((當天)'!B:B,'Sales receipt((當天)'!B4,'Sales receipt((當天)'!C:C,{"滑雪服","羽絨服","棉服","棉羽類"})) -> 0 | J70: =SUM(SUMIFS('Sales receipt((當天)'!K:K,'Sales receipt((當天)'!A:A,'Sales receipt((當天)'!A8,'Sales receipt((當天)'!B:B,'Sales receipt((當天)'!B4,'Sales receipt((當天)'!C:C,{"滑雪服","羽絨服","棉服","棉羽類"})) -> 1955 | K70: =SUM(SUMIFS('Sales receipt((當天)'!J:J,'Sales receipt((當天)'!A:A,'Sales receipt((當天)'!A8,'Sales receipt((當天)'!B:B,'Sales receipt((當天)'!B4,'Sales receipt((當天)'!C:C,{"滑雪服","羽絨服","棉服","棉羽類"})) -> 1 | L70: =SUM(SUMIFS('Sales receipt((當天)'!K:K,'Sales receipt((當天)'!A:A,'Sales receipt((當天)'!A4,'Sales receipt((當天)'!B:B,'Sales receipt((當天)'!B4,'Sales receipt((當天)'!C:C,{"滑雪服","羽絨服","棉服","棉羽類"})) -> 8112 | M70: =SUM(SUMIFS('Sales receipt((當天)'!J:J,'Sales receipt((當天)'!A:A,'Sales receipt((當天)'!A4,'Sales receipt((當天)'!B:B,'Sales receipt((當天)'!B4,'Sales receipt((當天)'!C:C,{"滑雪服","羽絨服","棉服","棉羽類"})) -> 3 | N70: =SUM(SUMIFS('Sales receipt((當天)'!K:K,'Sales receipt((當天)'!A:A,'Sales receipt((當天)'!A5,'Sales receipt((當天)'!B:B,'Sales receipt((當天)'!B4,'Sales receipt((當天)'!C:C,{"滑雪服","羽絨服","棉服","棉羽類"})) -> 0 | O70: =SUM(SUMIFS('Sales receipt((當天)'!J:J,'Sales receipt((當天)'!A:A,'Sales receipt((當天)'!A5,'Sales receipt((當天)'!B:B,'Sales receipt((當天)'!B4,'Sales receipt((當天)'!C:C,{"滑雪服","羽絨服","棉服","棉羽類"})) -> 0
A71: 上身 | B71: =SUM(B64:B70) -> 0 | C71: 0 | D71: 14088 | E71: 7 | F71: 8634 | G71: 5 | H71: 0 | I71: 0 | J71: 9008 | K71: 7 | L71: 11967 | M71: 7 | N71: 5640 | O71: 5
A72: 褲類 | B72: =SUM(SUMIFS('Sales receipt((當天)'!K:K,'Sales receipt((當天)'!A:A,'Sales receipt((當天)'!A2,'Sales receipt((當天)'!B:B,'Sales receipt((當天)'!B4,'Sales receipt((當天)'!C:C,{"針織褲","梭織褲"})) -> 0 | C72: =SUM(SUMIFS('Sales receipt((當天)'!J:J,'Sales receipt((當天)'!A:A,'Sales receipt((當天)'!A2,'Sales receipt((當天)'!B:B,'Sales receipt((當天)'!B4,'Sales receipt((當天)'!C:C,{"針織褲","梭織褲"})) -> 0 | D72: =SUM(SUMIFS('Sales receipt((當天)'!K:K,'Sales receipt((當天)'!A:A,'Sales receipt((當天)'!A3,'Sales receipt((當天)'!B:B,'Sales receipt((當天)'!B4,'Sales receipt((當天)'!C:C,{"針織褲","梭織褲"})) -> 1026 | E72: =SUM(SUMIFS('Sales receipt((當天)'!J:J,'Sales receipt((當天)'!A:A,'Sales receipt((當天)'!A3,'Sales receipt((當天)'!B:B,'Sales receipt((當天)'!B4,'Sales receipt((當天)'!C:C,{"針織褲","梭織褲"})) -> 1 | F72: =SUM(SUMIFS('Sales receipt((當天)'!K:K,'Sales receipt((當天)'!A:A,'Sales receipt((當天)'!A7,'Sales receipt((當天)'!B:B,'Sales receipt((當天)'!B4,'Sales receipt((當天)'!C:C,{"針織褲","梭織褲"})) -> 2077 | G72: =SUM(SUMIFS('Sales receipt((當天)'!J:J,'Sales receipt((當天)'!A:A,'Sales receipt((當天)'!A7,'Sales receipt((當天)'!B:B,'Sales receipt((當天)'!B4,'Sales receipt((當天)'!C:C,{"針織褲","梭織褲"})) -> 2 | H72: =SUM(SUMIFS('Sales receipt((當天)'!K:K,'Sales receipt((當天)'!A:A,'Sales receipt((當天)'!A6,'Sales receipt((當天)'!B:B,'Sales receipt((當天)'!B4,'Sales receipt((當天)'!C:C,{"針織褲","梭織褲"})) -> 0 | I72: =SUM(SUMIFS('Sales receipt((當天)'!J:J,'Sales receipt((當天)'!A:A,'Sales receipt((當天)'!A6,'Sales receipt((當天)'!B:B,'Sales receipt((當天)'!B4,'Sales receipt((當天)'!C:C,{"針織褲","梭織褲"})) -> 0 | J72: =SUM(SUMIFS('Sales receipt((當天)'!K:K,'Sales receipt((當天)'!A:A,'Sales receipt((當天)'!A8,'Sales receipt((當天)'!B:B,'Sales receipt((當天)'!B4,'Sales receipt((當天)'!C:C,{"針織褲","梭織褲"})) -> 3429 | K72: =SUM(SUMIFS('Sales receipt((當天)'!J:J,'Sales receipt((當天)'!A:A,'Sales receipt((當天)'!A8,'Sales receipt((當天)'!B:B,'Sales receipt((當天)'!B4,'Sales receipt((當天)'!C:C,{"針織褲","梭織褲"})) -> 4 | L72: =SUM(SUMIFS('Sales receipt((當天)'!K:K,'Sales receipt((當天)'!A:A,'Sales receipt((當天)'!A4,'Sales receipt((當天)'!B:B,'Sales receipt((當天)'!B4,'Sales receipt((當天)'!C:C,{"針織褲","梭織褲"})) -> 5822 | M72: =SUM(SUMIFS('Sales receipt((當天)'!J:J,'Sales receipt((當天)'!A:A,'Sales receipt((當天)'!A4,'Sales receipt((當天)'!B:B,'Sales receipt((當天)'!B4,'Sales receipt((當天)'!C:C,{"針織褲","梭織褲"})) -> 6 | N72: =SUM(SUMIFS('Sales receipt((當天)'!K:K,'Sales receipt((當天)'!A:A,'Sales receipt((當天)'!A5,'Sales receipt((當天)'!B:B,'Sales receipt((當天)'!B4,'Sales receipt((當天)'!C:C,{"針織褲","梭織褲"})) -> 758 | O72: =SUM(SUMIFS('Sales receipt((當天)'!J:J,'Sales receipt((當天)'!A:A,'Sales receipt((當天)'!A5,'Sales receipt((當天)'!B:B,'Sales receipt((當天)'!B4,'Sales receipt((當天)'!C:C,{"針織褲","梭織褲"})) -> 1
A73: 裙類 | B73: =SUMIFS('Sales receipt((當天)'!K:K,'Sales receipt((當天)'!A:A,'Sales receipt((當天)'!A2,'Sales receipt((當天)'!B:B,'Sales receipt((當天)'!B4,'Sales receipt((當天)'!C:C,'Sales receipt((當天)'!C12) -> 0 | C73: =SUMIFS('Sales receipt((當天)'!J:J,'Sales receipt((當天)'!A:A,'Sales receipt((當天)'!A2,'Sales receipt((當天)'!B:B,'Sales receipt((當天)'!B4,'Sales receipt((當天)'!C:C,'Sales receipt((當天)'!C12) -> 0 | D73: =SUMIFS('Sales receipt((當天)'!K:K,'Sales receipt((當天)'!A:A,'Sales receipt((當天)'!A3,'Sales receipt((當天)'!B:B,'Sales receipt((當天)'!B4,'Sales receipt((當天)'!C:C,'Sales receipt((當天)'!C12) -> 0 | E73: =SUMIFS('Sales receipt((當天)'!J:J,'Sales receipt((當天)'!A:A,'Sales receipt((當天)'!A3,'Sales receipt((當天)'!B:B,'Sales receipt((當天)'!B4,'Sales receipt((當天)'!C:C,'Sales receipt((當天)'!C12) -> 0 | F73: =SUMIFS('Sales receipt((當天)'!K:K,'Sales receipt((當天)'!A:A,'Sales receipt((當天)'!A7,'Sales receipt((當天)'!B:B,'Sales receipt((當天)'!B4,'Sales receipt((當天)'!C:C,'Sales receipt((當天)'!C12) -> 0 | G73: =SUMIFS('Sales receipt((當天)'!J:J,'Sales receipt((當天)'!A:A,'Sales receipt((當天)'!A7,'Sales receipt((當天)'!B:B,'Sales receipt((當天)'!B4,'Sales receipt((當天)'!C:C,'Sales receipt((當天)'!C12) -> 0 | H73: =SUMIFS('Sales receipt((當天)'!K:K,'Sales receipt((當天)'!A:A,'Sales receipt((當天)'!A6,'Sales receipt((當天)'!B:B,'Sales receipt((當天)'!B4,'Sales receipt((當天)'!C:C,'Sales receipt((當天)'!C12) -> 0 | I73: =SUMIFS('Sales receipt((當天)'!J:J,'Sales receipt((當天)'!A:A,'Sales receipt((當天)'!A6,'Sales receipt((當天)'!B:B,'Sales receipt((當天)'!B4,'Sales receipt((當天)'!C:C,'Sales receipt((當天)'!C12) -> 0 | J73: =SUMIFS('Sales receipt((當天)'!K:K,'Sales receipt((當天)'!A:A,'Sales receipt((當天)'!A8,'Sales receipt((當天)'!B:B,'Sales receipt((當天)'!B4,'Sales receipt((當天)'!C:C,'Sales receipt((當天)'!C12) -> 0 | K73: =SUMIFS('Sales receipt((當天)'!J:J,'Sales receipt((當天)'!A:A,'Sales receipt((當天)'!A8,'Sales receipt((當天)'!B:B,'Sales receipt((當天)'!B4,'Sales receipt((當天)'!C:C,'Sales receipt((當天)'!C12) -> 0 | L73: =SUMIFS('Sales receipt((當天)'!K:K,'Sales receipt((當天)'!A:A,'Sales receipt((當天)'!A4,'Sales receipt((當天)'!B:B,'Sales receipt((當天)'!B4,'Sales receipt((當天)'!C:C,'Sales receipt((當天)'!C12) -> 0 | M73: =SUMIFS('Sales receipt((當天)'!J:J,'Sales receipt((當天)'!A:A,'Sales receipt((當天)'!A4,'Sales receipt((當天)'!B:B,'Sales receipt((當天)'!B4,'Sales receipt((當天)'!C:C,'Sales receipt((當天)'!C12) -> 0 | N73: =SUMIFS('Sales receipt((當天)'!K:K,'Sales receipt((當天)'!A:A,'Sales receipt((當天)'!A5,'Sales receipt((當天)'!B:B,'Sales receipt((當天)'!B4,'Sales receipt((當天)'!C:C,'Sales receipt((當天)'!C12) -> 0 | O73: =SUMIFS('Sales receipt((當天)'!J:J,'Sales receipt((當天)'!A:A,'Sales receipt((當天)'!A5,'Sales receipt((當天)'!B:B,'Sales receipt((當天)'!B4,'Sales receipt((當天)'!C:C,'Sales receipt((當天)'!C12) -> 0
A74: 下身 | B74: =SUM(B72:B73) -> 0 | C74: 0 | D74: 1026 | E74: 1 | F74: 2077 | G74: 2 | H74: 0 | I74: 0 | J74: 3429 | K74: 4 | L74: 5822 | M74: 6 | N74: 758 | O74: 1
A75: 鞋 | B75: =SUMIFS('Sales receipt((當天)'!K:K,'Sales receipt((當天)'!A:A,'Sales receipt((當天)'!A2,'Sales receipt((當天)'!B:B,'Sales receipt((當天)'!B6) -> 0 | C75: =SUMIFS('Sales receipt((當天)'!J:J,'Sales receipt((當天)'!A:A,'Sales receipt((當天)'!A2,'Sales receipt((當天)'!B:B,'Sales receipt((當天)'!B6) -> 0 | D75: =SUMIFS('Sales receipt((當天)'!K:K,'Sales receipt((當天)'!A:A,'Sales receipt((當天)'!A3,'Sales receipt((當天)'!B:B,'Sales receipt((當天)'!B6) -> 3519 | E75: =SUMIFS('Sales receipt((當天)'!J:J,'Sales receipt((當天)'!A:A,'Sales receipt((當天)'!A3,'Sales receipt((當天)'!B:B,'Sales receipt((當天)'!B6) -> 4 | F75: =SUMIFS('Sales receipt((當天)'!K:K,'Sales receipt((當天)'!A:A,'Sales receipt((當天)'!A7,'Sales receipt((當天)'!B:B,'Sales receipt((當天)'!B6) -> 2705 | G75: =SUMIFS('Sales receipt((當天)'!J:J,'Sales receipt((當天)'!A:A,'Sales receipt((當天)'!A7,'Sales receipt((當天)'!B:B,'Sales receipt((當天)'!B6) -> 3 | H75: =SUMIFS('Sales receipt((當天)'!K:K,'Sales receipt((當天)'!A:A,'Sales receipt((當天)'!A6,'Sales receipt((當天)'!B:B,'Sales receipt((當天)'!B6) -> 0 | I75: =SUMIFS('Sales receipt((當天)'!J:J,'Sales receipt((當天)'!A:A,'Sales receipt((當天)'!A6,'Sales receipt((當天)'!B:B,'Sales receipt((當天)'!B6) -> 0 | J75: =SUMIFS('Sales receipt((當天)'!K:K,'Sales receipt((當天)'!A:A,'Sales receipt((當天)'!A8,'Sales receipt((當天)'!B:B,'Sales receipt((當天)'!B6) -> 1140 | K75: =SUMIFS('Sales receipt((當天)'!J:J,'Sales receipt((當天)'!A:A,'Sales receipt((當天)'!A8,'Sales receipt((當天)'!B:B,'Sales receipt((當天)'!B6) -> 1 | L75: =SUMIFS('Sales receipt((當天)'!K:K,'Sales receipt((當天)'!A:A,'Sales receipt((當天)'!A4,'Sales receipt((當天)'!B:B,'Sales receipt((當天)'!B6) -> 0 | M75: =SUMIFS('Sales receipt((當天)'!J:J,'Sales receipt((當天)'!A:A,'Sales receipt((當天)'!A4,'Sales receipt((當天)'!B:B,'Sales receipt((當天)'!B6) -> 0 | N75: =SUMIFS('Sales receipt((當天)'!K:K,'Sales receipt((當天)'!A:A,'Sales receipt((當天)'!A5,'Sales receipt((當天)'!B:B,'Sales receipt((當天)'!B6) -> 4266 | O75: =SUMIFS('Sales receipt((當天)'!J:J,'Sales receipt((當天)'!A:A,'Sales receipt((當天)'!A5,'Sales receipt((當天)'!B:B,'Sales receipt((當天)'!B6) -> 4
A76: 配件 | B76: =SUMIFS('Sales receipt((當天)'!K:K,'Sales receipt((當天)'!A:A,'Sales receipt((當天)'!A2,'Sales receipt((當天)'!B:B,'Sales receipt((當天)'!B5) -> 0 | C76: =SUMIFS('Sales receipt((當天)'!J:J,'Sales receipt((當天)'!A:A,'Sales receipt((當天)'!A2,'Sales receipt((當天)'!B:B,'Sales receipt((當天)'!B5) -> 0 | D76: =SUMIFS('Sales receipt((當天)'!K:K,'Sales receipt((當天)'!A:A,'Sales receipt((當天)'!A3,'Sales receipt((當天)'!B:B,'Sales receipt((當天)'!B5) -> 0 | E76: =SUMIFS('Sales receipt((當天)'!J:J,'Sales receipt((當天)'!A:A,'Sales receipt((當天)'!A3,'Sales receipt((當天)'!B:B,'Sales receipt((當天)'!B5) -> 0 | F76: =SUMIFS('Sales receipt((當天)'!K:K,'Sales receipt((當天)'!A:A,'Sales receipt((當天)'!A7,'Sales receipt((當天)'!B:B,'Sales receipt((當天)'!B5) -> 0 | G76: =SUMIFS('Sales receipt((當天)'!J:J,'Sales receipt((當天)'!A:A,'Sales receipt((當天)'!A7,'Sales receipt((當天)'!B:B,'Sales receipt((當天)'!B5) -> 0 | H76: =SUMIFS('Sales receipt((當天)'!K:K,'Sales receipt((當天)'!A:A,'Sales receipt((當天)'!A6,'Sales receipt((當天)'!B:B,'Sales receipt((當天)'!B5) -> 0 | I76: =SUMIFS('Sales receipt((當天)'!J:J,'Sales receipt((當天)'!A:A,'Sales receipt((當天)'!A6,'Sales receipt((當天)'!B:B,'Sales receipt((當天)'!B5) -> 0 | J76: =SUMIFS('Sales receipt((當天)'!K:K,'Sales receipt((當天)'!A:A,'Sales receipt((當天)'!A8,'Sales receipt((當天)'!B:B,'Sales receipt((當天)'!B5) -> 1673 | K76: =SUMIFS('Sales receipt((當天)'!J:J,'Sales receipt((當天)'!A:A,'Sales receipt((當天)'!A8,'Sales receipt((當天)'!B:B,'Sales receipt((當天)'!B5) -> 15 | L76: =SUMIFS('Sales receipt((當天)'!K:K,'Sales receipt((當天)'!A:A,'Sales receipt((當天)'!A4,'Sales receipt((當天)'!B:B,'Sales receipt((當天)'!B5) -> 0 | M76: =SUMIFS('Sales receipt((當天)'!J:J,'Sales receipt((當天)'!A:A,'Sales receipt((當天)'!A4,'Sales receipt((當天)'!B:B,'Sales receipt((當天)'!B5) -> 0 | N76: =SUMIFS('Sales receipt((當天)'!K:K,'Sales receipt((當天)'!A:A,'Sales receipt((當天)'!A5,'Sales receipt((當天)'!B:B,'Sales receipt((當天)'!B5) -> 2476 | O76: =SUMIFS('Sales receipt((當天)'!J:J,'Sales receipt((當天)'!A:A,'Sales receipt((當天)'!A5,'Sales receipt((當天)'!B:B,'Sales receipt((當天)'!B5) -> 10
A77: 店鋪事項

Sheet 個人KPI
A1: 10月20-24號 個人品類銷售
A2: 個人數KPI | I2: 個人數KPI
A3: Susanna | B3: TW 4日 | C3: MTD | D3: ATV | E3: UPT | F3: NO | G3: QTY | I3: LW | J3: MTD | K3: ATV | L3: UPT | M3: NO | N3: QTY
C4: 49271 | D4: 2492 | E4: 3.4 | F4: 18 | G4: 62 | J4: 113747 | K4: 2917 | L4: 4.0 | M4: 39 | N4: 161
B5: VSLW | C5: =C4-J4 -> -64476 | D5: =D4-K4 -> -425 | E5: =E4-L4 -> -0.6 | F5: =F4-M4 -> -21 | G5: =G4-N4 -> -99
B7: 中類 | C7: 件數 | D7: 金額 | E7: VSLW尚欠 | I7: 中類 | J7: 件數 | K7: 金額
B8: 內搭 | C8: 15 | D8: 12360 | E8: =C8-J8 -> 0 | I8: 內搭 | J8: 15 | K8: 12360 | L8: =J8-Q8 -> 15
B9: 針織上衣 | C9: 4 | D9: 5301 | E9: 0 | I9: 針織上衣 | J9: 4 | K9: 5301 | L9: 4
B10: 針織褲 | C10: 19 | D10: 16123 | E10: 0 | I10: 針織褲 | J10: 19 | K10: 16123 | L10: 19
B11: 梭織上衣 | C11: 4 | D11: 6389 | E11: 0 | I11: 梭織上衣 | J11: 4 | K11: 6389 | L11: 4
B12: 梭織褲 | C12: =SUMIFS('個人KPISales receipt(MTD）'!J:J,'個人KPISales receipt(MTD）'!A:A,'個人KPISales receipt(MTD）'!A2,'個人KPISales receipt(MTD）'!B:B,'個人KPISales receipt(MTD）'!B4,'個人KPISales receipt(MTD）'!C:C,'個人KPISales receipt(MTD）'!C8) -> 0 | D12: =SUMIFS('個人KPISales receipt(MTD）'!K:K,'個人KPISales receipt(MTD）'!A:A,'個人KPISales receipt(MTD）'!A2,'個人KPISales receipt(MTD）'!B:B,'個人KPISales receipt(MTD）'!B4,'個人KPISales receipt(MTD）'!C:C,'個人KPISales receipt(MTD）'!C8) -> 0 | E12: 0 | I12: 梭織褲 | J12: =SUMIFS('個人KPISales receipt(MTD）'!Q:Q,'個人KPISales receipt(MTD）'!H:H,'個人KPISales receipt(MTD）'!H2,'個人KPISales receipt(MTD）'!I:I,'個人KPISales receipt(MTD）'!I4,'個人KPISales receipt(MTD）'!J:J,'個人KPISales receipt(MTD）'!J8) -> 0 | K12: =SUMIFS('個人KPISales receipt(MTD）'!R:R,'個人KPISales receipt(MTD）'!H:H,'個人KPISales receipt(MTD）'!H2,'個人KPISales receipt(MTD）'!I:I,'個人KPISales receipt(MTD）'!I4,'個人KPISales receipt(MTD）'!J:J,'個人KPISales receipt(MTD）'!J8) -> 0 | L12: 0
B13: 短T類 | C13: 3 | D13: 1594 | E13: 0 | I13: 短T類 | J13: 3 | K13: 1594 | L13: 3
B14: 裙裝 | C14: =SUMIFS('個人KPISales receipt(MTD）'!J:J,'個人KPISales receipt(MTD）'!A:A,'個人KPISales receipt(MTD）'!A2,'個人KPISales receipt(MTD）'!C:C,'個人KPISales receipt(MTD）'!C12) -> 0 | D14: =SUMIFS('個人KPISales receipt(MTD）'!K:K,'個人KPISales receipt(MTD）'!A:A,'個人KPISales receipt(MTD）'!A2,'個人KPISales receipt(MTD）'!B:B,'個人KPISales receipt(MTD）'!B4,'個人KPISales receipt(MTD）'!C:C,'個人KPISales receipt(MTD）'!C12) -> 0 | E14: 0 | I14: 裙裝 | J14: =SUMIFS('個人KPISales receipt(MTD）'!Q:Q,'個人KPISales receipt(MTD）'!H:H,'個人KPISales receipt(MTD）'!H2,'個人KPISales receipt(MTD）'!J:J,'個人KPISales receipt(MTD）'!J12) -> 0 | K14: =SUMIFS('個人KPISales receipt(MTD）'!R:R,'個人KPISales receipt(MTD）'!H:H,'個人KPISales receipt(MTD）'!H2,'個人KPISales receipt(MTD）'!I:I,'個人KPISales receipt(MTD）'!I4,'個人KPISales receipt(MTD）'!J:J,'個人KPISales receipt(MTD）'!J12) -> 0 | L14: 0
B15: 編織衫 | C15: 4 | D15: 4537 | E15: 0 | I15: 編織衫 | J15: 4 | K15: 4537 | L15: 4
B16: 襯衫 | C16: =SUMIFS('個人KPISales receipt(MTD）'!J:J,'個人KPISales receipt(MTD）'!A:A,'個人KPISales receipt(MTD）'!A2,'個人KPISales receipt(MTD）'!B:B,'個人KPISales receipt(MTD）'!B4,'個人KPISales receipt(MTD）'!C:C,'個人KPISales receipt(MTD）'!C14) -> 0 | D16: =SUMIFS('個人KPISales receipt(MTD）'!K:K,'個人KPISales receipt(MTD）'!A:A,'個人KPISales receipt(MTD）'!A2,'個人KPISales receipt(MTD）'!B:B,'個人KPISales receipt(MTD）'!B4,'個人KPISales receipt(MTD）'!C:C,'個人KPISales receipt(MTD）'!C14) -> 0 | E16: 0 | I16: 襯衫 | J16: =SUMIFS('個人KPISales receipt(MTD）'!Q:Q,'個人KPISales receipt(MTD）'!H:H,'個人KPISales receipt(MTD）'!H2,'個人KPISales receipt(MTD）'!I:I,'個人KPISales receipt(MTD）'!I4,'個人KPISales receipt(MTD）'!J:J,'個人KPISales receipt(MTD）'!J14) -> 0 | K16: =SUMIFS('個人KPISales receipt(MTD）'!R:R,'個人KPISales receipt(MTD）'!H:H,'個人KPISales receipt(MTD）'!H2,'個人KPISales receipt(MTD）'!I:I,'個人KPISales receipt(MTD）'!I4,'個人KPISales receipt(MTD）'!J:J,'個人KPISales receipt(MTD）'!J14) -> 0 | L16: 0
B17: 棉服 | C17: 1 | D17: 2406 | E17: =C17-J17 -> 0 | I17: 棉服 | J17: 1 | K17: 2406 | L17: =J17-Q17 -> 1
B18: 羽絨服 | C18: 21 | D18: 45228 | E18: =C18-J18 -> 0 | I18: 羽絨服 | J18: 21 | K18: 45228 | L18: =J18-Q18 -> 21
B19: 鞋 | C19: 21 | D19: 18209 | E19: 0 | I19: 鞋 | J19: 21 | K19: 18209 | L19: =J19-Q19 -> 21
A21: JANET | B21: TW 5日 | C21: MTD | D21: ATV | E21: UPT | F21: NO | G21: QTY | I21: LW | J21: MTD | K21: ATV | L21: UPT | M21: NO | N21: QTY
C22: 121093 | D22: 2676 | E22: 4.2 | F22: 48 | G22: 202 | J22: 108127 | K22: 2301 | L22: 3.0 | M22: 47 | N22: 157
B23: VSLW | C23: =C22-J22 -> 12966 | D23: =D22-K22 -> 375 | E23: =E22-L22 -> 1.2 | F23: =F22-M22 -> 1 | G23: =G22-N22 -> 45
B25: 中類 | C25: 件數 | D25: 金額 | E25: VSLW尚欠 | I25: 中類 | J25: 件數 | K25: 金額
B26: 內搭 | C26: 20 | D26: =SUMIFS('個人KPISales receipt(MTD）'!K:K,'個人KPISales receipt(MTD）'!A:A,'個人KPISales receipt(MTD）'!A3,'個人KPISales receipt(MTD）'!B:B,'個人KPISales receipt(MTD）'!B4,'個人KPISales receipt(MTD）'!C:C,'個人KPISales receipt(MTD）'!C2) -> 22143 | E26: =C26-J26 -> 0 | I26: 內搭 | J26: 20 | K26: 17510
B27: 針織上衣 | C27: 5 | D27: =SUMIFS('個人KPISales receipt(MTD）'!K:K,'個人KPISales receipt(MTD）'!A:A,'個人KPISales receipt(MTD）'!A3,'個人KPISales receipt(MTD）'!B:B,'個人KPISales receipt(MTD）'!B4,'個人KPISales receipt(MTD）'!C:C,'個人KPISales receipt(MTD）'!C5) -> 10282 | E27: 0 | I27: 針織上衣 | J27: 5 | K27: 6882
B28: 針織褲 | C28: 16 | D28: =SUMIFS('個人KPISales receipt(MTD）'!K:K,'個人KPISales receipt(MTD）'!A:A,'個人KPISales receipt(MTD）'!A3,'個人KPISales receipt(MTD）'!B:B,'個人KPISales receipt(MTD）'!B4,'個人KPISales receipt(MTD）'!C:C,'個人KPISales receipt(MTD）'!C6) -> 20809 | E28: 0 | I28: 針織褲 | J28: 16 | K28: 12405
B29: 梭織上衣 | C29: =SUMIFS('個人KPISales receipt(MTD）'!J:J,'個人KPISales receipt(MTD）'!A:A,'個人KPISales receipt(MTD）'!A3,'個人KPISales receipt(MTD）'!B:B,'個人KPISales receipt(MTD）'!B4,'個人KPISales receipt(MTD）'!C:C,'個人KPISales receipt(MTD）'!C7) -> 2 | D29: =SUMIFS('個人KPISales receipt(MTD）'!K:K,'個人KPISales receipt(MTD）'!A:A,'個人KPISales receipt(MTD）'!A3,'個人KPISales receipt(MTD）'!C:C,'個人KPISales receipt(MTD）'!C7) -> 3149 | E29: -3 | I29: 梭織上衣 | J29: 5 | K29: 7981
B30: 梭織褲 | C30: 2 | D30: =SUMIFS('個人KPISales receipt(MTD）'!K:K,'個人KPISales receipt(MTD）'!A:A,'個人KPISales receipt(MTD）'!A3,'個人KPISales receipt(MTD）'!B:B,'個人KPISales receipt(MTD）'!B4,'個人KPISales receipt(MTD）'!C:C,'個人KPISales receipt(MTD）'!C8) -> 3736 | E30: 0 | I30: 梭織褲 | J30: 2 | K30: 2787
B31: 短T類 | D31: =SUMIFS('個人KPISales receipt(MTD）'!K:K,'個人KPISales receipt(MTD）'!A:A,'個人KPISales receipt(MTD）'!A3,'個人KPISales receipt(MTD）'!B:B,'個人KPISales receipt(MTD）'!B4,'個人KPISales receipt(MTD）'!C:C,'個人KPISales receipt(MTD）'!C10) -> 1049 | E31: 0 | I31: 短T類 | J31: 0 | K31: 0
B32: 裙裝 | C32: =SUMIFS('個人KPISales receipt(MTD）'!J:J,'個人KPISales receipt(MTD）'!A:A,'個人KPISales receipt(MTD）'!A3,'個人KPISales receipt(MTD）'!C:C,'個人KPISales receipt(MTD）'!C12) -> 0 | D32: =SUMIFS('個人KPISales receipt(MTD）'!K:K,'個人KPISales receipt(MTD）'!A:A,'個人KPISales receipt(MTD）'!A3,'個人KPISales receipt(MTD）'!B:B,'個人KPISales receipt(MTD）'!B4,'個人KPISales receipt(MTD）'!C:C,'個人KPISales receipt(MTD）'!C12) -> 0 | E32: 0 | I32: 裙裝 | J32: 0 | K32: 0
B33: 編織衫 | C33: 3 | D33: =SUMIFS('個人KPISales receipt(MTD）'!K:K,'個人KPISales receipt(MTD）'!A:A,'個人KPISales receipt(MTD）'!A3,'個人KPISales receipt(MTD）'!B:B,'個人KPISales receipt(MTD）'!B4,'個人KPISales receipt(MTD）'!C:C,'個人KPISales receipt(MTD）'!C13) -> 7454 | E33: 0 | I33: 編織衫 | J33: 3 | K33: 3250
B34: 襯衫 | C34: =SUMIFS('個人KPISales receipt(MTD）'!J:J,'個人KPISales receipt(MTD）'!A:A,'個人KPISales receipt(MTD）'!A3,'個人KPISales receipt(MTD）'!B:B,'個人KPISales receipt(MTD）'!B4,'個人KPISales receipt(MTD）'!C:C,'個人KPISales receipt(MTD）'!C14) -> 0 | D34: =SUMIFS('個人KPISales receipt(MTD）'!K:K,'個人KPISales receipt(MTD）'!A:A,'個人KPISales receipt(MTD）'!A3,'個人KPISales receipt(MTD）'!B:B,'個人KPISales receipt(MTD）'!B4,'個人KPISales receipt(MTD）'!C:C,'個人KPISales receipt(MTD）'!C14) -> 0 | E34: 0 | I34: 襯衫 | J34: 0 | K34: 0
B35: 棉服 | C35: =SUMIFS('個人KPISales receipt(MTD）'!J:J,'個人KPISales receipt(MTD）'!A:A,'個人KPISales receipt(MTD）'!A3,'個人KPISales receipt(MTD）'!B:B,'個人KPISales receipt(MTD）'!B4,'個人KPISales receipt(MTD）'!C:C,'個人KPISales receipt(MTD）'!C9) -> 2 | D35: =SUMIFS('個人KPISales receipt(MTD）'!K:K,'個人KPISales receipt(MTD）'!A:A,'個人KPISales receipt(MTD）'!A3,'個人KPISales receipt(MTD）'!B:B,'個人KPISales receipt(MTD）'!B4,'個人KPISales receipt(MTD）'!C:C,'個人KPISales receipt(MTD）'!C9) -> 5710 | E35: 1 | I35: 棉服 | J35: 1 | K35: 2564
B36: 羽絨服 | C36: 17 | D36: =SUMIFS('個人KPISales receipt(MTD）'!K:K,'個人KPISales receipt(MTD）'!A:A,'個人KPISales receipt(MTD）'!A3,'個人KPISales receipt(MTD）'!B:B,'個人KPISales receipt(MTD）'!B4,'個人KPISales receipt(MTD）'!C:C,'個人KPISales receipt(MTD）'!C4) -> 25785 | E36: 0 | I36: 羽絨服 | J36: 17 | K36: 34701
B37: 鞋 | C37: 21 | D37: =SUMIFS('個人KPISales receipt(MTD）'!K:K,'個人KPISales receipt(MTD）'!A:A,'個人KPISales receipt(MTD）'!A3,'個人KPISales receipt(MTD）'!B:B,'個人KPISales receipt(MTD）'!B6) -> 19126 | E37: 0 | I37: 鞋 | J37: 21 | K37: 17622
A40: khaki | B40: TW 5日 | C40: MTD | D40: ATV | E40: UPT | F40: NO | G40: QTY | I40: LW | J40: MTD | K40: ATV | L40: UPT | M40: NO | N40: QTY
C41: 61209 | D41: 1993 | E41: 3.1 | F41: 30 | G41: 94 | J41: 98678 | K41: 2361 | L41: 3.3 | M41: 41 | N41: 136
B42: VSLW | C42: =C41-J41 -> -37469 | D42: =D41-K41 -> -368 | E42: =E41-L41 -> -0.2 | F42: =F41-M41 -> -11 | G42: =G41-N41 -> -42
B44: 中類 | C44: 件數 | D44: 金額 | E44: VSLW尚欠 | I44: 中類 | J44: 件數 | K44: 金額
B45: 內搭 | C45: 9 | D45: 7059 | E45: =C45-J45 -> -5 | I45: 內搭 | J45: 14 | K45: 13489
B46: 針織上衣 | C46: 3 | D46: 3723 | E46: -1 | I46: 針織上衣 | J46: 4 | K46: 5076
B47: 針織褲 | C47: 6 | D47: 4622 | E47: -3 | I47: 針織褲 | J47: 9 | K47: 7374
B48: 梭織上衣 | C48: 2 | D48: 2660 | E48: -4 | I48: 梭織上衣 | J48: 6 | K48: 10007
B49: 梭織褲 | C49: 0 | D49: 0 | E49: -1 | I49: 梭織褲 | J49: 1 | K49: 1172
B50: 短T類 | C50: =SUMIFS('個人KPISales receipt(MTD）'!J:J,'個人KPISales receipt(MTD）'!A:A,'個人KPISales receipt(MTD）'!A5,'個人KPISales receipt(MTD）'!B:B,'個人KPISales receipt(MTD）'!B4,'個人KPISales receipt(MTD）'!C:C,'個人KPISales receipt(MTD）'!C10) -> 0 | D50: =SUMIFS('個人KPISales receipt(MTD）'!K:K,'個人KPISales receipt(MTD）'!A:A,'個人KPISales receipt(MTD）'!A5,'個人KPISales receipt(MTD）'!B:B,'個人KPISales receipt(MTD）'!B4,'個人KPISales receipt(MTD）'!C:C,'個人KPISales receipt(MTD）'!C10) -> 0 | E50: 0 | I50: 短T類 | J50: 0 | K50: 0
B51: 裙裝 | C51: 0 | D51: 0 | E51: -2 | I51: 裙裝 | J51: 2 | K51: 2855
B52: 編織衫 | C52: 3 | D52: 2790 | E52: 2 | I52: 編織衫 | J52: 1 | K52: 1437
B53: 襯衫 | C53: =SUMIFS('個人KPISales receipt(MTD）'!J:J,'個人KPISales receipt(MTD）'!A:A,'個人KPISales receipt(MTD）'!A5,'個人KPISales receipt(MTD）'!B:B,'個人KPISales receipt(MTD）'!B4,'個人KPISales receipt(MTD）'!C:C,'個人KPISales receipt(MTD）'!C14) -> 0 | D53: =SUMIFS('個人KPISales receipt(MTD）'!K:K,'個人KPISales receipt(MTD）'!A:A,'個人KPISales receipt(MTD）'!A5,'個人KPISales receipt(MTD）'!B:B,'個人KPISales receipt(MTD）'!B4,'個人KPISales receipt(MTD）'!C:C,'個人KPISales receipt(MTD）'!C14) -> 0 | E53: 0 | I53: 襯衫 | J53: 0 | K53: 0
B54: 棉服 | C54: 0 | D54: 0 | E54: 0 | I54: 棉服 | J54: 0 | K54: 0
B55: 羽絨服 | C55: 9 | D55: 22023 | E55: -7 | I55: 羽絨服 | J55: 16 | K55: 33849
B56: 鞋 | C56: 19 | D56: 16738 | E56: 3 | I56: 鞋 | J56: 16 | K56: 16104
A59: RYAN | B59: TW 4日 | C59: MTD | D59: ATV | E59: UPT | F59: NO | G59: QTY | I59: LW | J59: MTD | K59: ATV | L59: UPT | M59: NO | N59: QTY
C60: 152152 | D60: 3381 | E60: 4.0 | F60: 45 | G60: 200 | J60: 117140 | K60: 3167 | L60: 4.5 | M60: 37 | N60: 170
B61: VSLW | C61: =C60-J60 -> 35012 | D61: =D60-K60 -> 214 | E61: =E60-L60 -> -0.5 | F61: =F60-M60 -> 8 | G61: =G60-N60 -> 30
B63: 中類 | C63: 件數 | D63: 金額 | E63: VSLW尚欠 | I63: 中類 | J63: 件數 | K63: 金額
B64: 內搭 | C64: 23 | D64: 19025 | E64: =C64-J64 -> 1 | I64: 內搭 | J64: 22 | K64: 19396
B65: 針織上衣 | C65: 10 | D65: 12870 | E65: 7 | I65: 針織上衣 | J65: 3 | K65: 3708
B66: 針織褲 | C66: 29 | D66: 24931 | E66: 15 | I66: 針織褲 | J66: 14 | K66: 13610
B67: 梭織上衣 | C67: 7 | D67: 12934 | E67: 2 | I67: 梭織上衣 | J67: 5 | K67: 7293
B68: 梭織褲 | C68: 5 | D68: 4997 | E68: 5 | I68: 梭織褲 | J68: 0 | K68: 0
B69: 短T類 | C69: 2 | D69: 1064 | E69: -3 | I69: 短T類 | J69: 5 | K69: 2553
B70: 裙裝 | C70: =SUMIFS('個人KPISales receipt(MTD）'!J:J,'個人KPISales receipt(MTD）'!A:A,'個人KPISales receipt(MTD）'!A6,'個人KPISales receipt(MTD）'!C:C,'個人KPISales receipt(MTD）'!C12) -> 0 | D70: =SUMIFS('個人KPISales receipt(MTD）'!K:K,'個人KPISales receipt(MTD）'!A:A,'個人KPISales receipt(MTD）'!A6,'個人KPISales receipt(MTD）'!B:B,'個人KPISales receipt(MTD）'!B4,'個人KPISales receipt(MTD）'!C:C,'個人KPISales receipt(MTD）'!C12) -> 0 | E70: 0 | I70: 裙裝 | J70: 0 | K70: 0
B71: 編織衫 | C71: 4 | D71: 4141 | E71: -2 | I71: 編織衫 | J71: 6 | K71: 7230
B72: 襯衫 | C72: =SUMIFS('個人KPISales receipt(MTD）'!J:J,'個人KPISales receipt(MTD）'!A:A,'個人KPISales receipt(MTD）'!A6,'個人KPISales receipt(MTD）'!B:B,'個人KPISales receipt(MTD）'!B4,'個人KPISales receipt(MTD）'!C:C,'個人KPISales receipt(MTD）'!C14) -> 0 | D72: =SUMIFS('個人KPISales receipt(MTD）'!K:K,'個人KPISales receipt(MTD）'!A:A,'個人KPISales receipt(MTD）'!A6,'個人KPISales receipt(MTD）'!B:B,'個人KPISales receipt(MTD）'!B4,'個人KPISales receipt(MTD）'!C:C,'個人KPISales receipt(MTD）'!C14) -> 0 | E72: 0 | I72: 襯衫 | J72: 0 | K72: 0
B73: 棉服 | C73: =SUMIFS('個人KPISales receipt(MTD）'!J:J,'個人KPISales receipt(MTD）'!A:A,'個人KPISales receipt(MTD）'!A6,'個人KPISales receipt(MTD）'!B:B,'個人KPISales receipt(MTD）'!B4,'個人KPISales receipt(MTD）'!C:C,'個人KPISales receipt(MTD）'!C9) -> 0 | D73: =SUMIFS('個人KPISales receipt(MTD）'!K:K,'個人KPISales receipt(MTD）'!A:A,'個人KPISales receipt(MTD）'!A6,'個人KPISales receipt(MTD）'!B:B,'個人KPISales receipt(MTD）'!B4,'個人KPISales receipt(MTD）'!C:C,'個人KPISales receipt(MTD）'!C9) -> 0 | E73: -1 | I73: 棉服 | J73: 1 | K73: 3074
B74: 羽絨服 | C74: 21 | D74: 52565 | E74: 6 | I74: 羽絨服 | J74: 15 | K74: 39517
B75: 鞋 | C75: 19 | D75: 16882 | E75: -3 | I75: 鞋 | J75: 22 | K75: 18405
A78: FANNY | B78: TW 6日 | C78: MTD | D78: ATV | E78: UPT | F78: NO | G78: QTY | I78: LW | J78: MTD | K78: ATV | L78: UPT | M78: NO | N78: QTY
C79: 187748 | D79: 3237 | E79: 4.7 | F79: 49 | G79: 225 | J79: 112080 | K79: 3187 | L79: 4.1 | M79: 33 | N79: 143
B80: VSLW | C80: =C79-J79 -> 75668 | D80: =D79-K79 -> 50 | E80: =E79-L79 -> 0.6 | F80: =F79-M79 -> 16 | G80: =G79-N79 -> 82
B82: 中類 | C82: 件數 | D82: 金額 | E82: VSLW尚欠 | I82: 中類 | J82: 件數 | K82: 金額
B83: 內搭 | C83: 32 | D83: 24815 | E83: -14 | I83: 內搭 | J83: 18 | K83: 16029
B84: 針織上衣 | C84: 13 | D84: 16289 | E84: =C84-J84 -> 10 | I84: 針織上衣 | J84: 3 | K84: 3867
B85: 針織褲 | C85: 38 | D85: 30014 | E85: 20 | I85: 針織褲 | J85: 18 | K85: 15002
B86: 梭織上衣 | C86: 5 | D86: 8016 | E86: 3 | I86: 梭織上衣 | J86: 2 | K86: 3298
B87: 梭織褲 | C87: 4 | D87: 5359 | E87: 0 | I87: 梭織褲 | J87: 4 | K87: 5676
B88: 短T類 | C88: 3 | D88: 1573 | E88: 2 | I88: 短T類 | J88: 1 | K88: 510
B89: 裙裝 | C89: 0 | D89: 0 | E89: 0 | I89: 裙裝 | J89: 0 | K89: 0
B90: 編織衫 | C90: 13 | D90: 13645 | E90: 6 | I90: 編織衫 | J90: 7 | K90: 8213
B91: 襯衫 | C91: =SUMIFS('個人KPISales receipt(MTD）'!J:J,'個人KPISales receipt(MTD）'!A:A,'個人KPISales receipt(MTD）'!A7,'個人KPISales receipt(MTD）'!B:B,'個人KPISales receipt(MTD）'!B4,'個人KPISales receipt(MTD）'!C:C,'個人KPISales receipt(MTD）'!C14) -> 0 | D91: =SUMIFS('個人KPISales receipt(MTD）'!K:K,'個人KPISales receipt(MTD）'!A:A,'個人KPISales receipt(MTD）'!A7,'個人KPISales receipt(MTD）'!B:B,'個人KPISales receipt(MTD）'!B4,'個人KPISales receipt(MTD）'!C:C,'個人KPISales receipt(MTD）'!C14) -> 0 | E91: -1 | I91: 襯衫 | J91: 1 | K91: 969
B92: 棉服 | C92: 1 | D92: 3380 | E92: 0 | I92: 棉服 | J92: 1 | K92: 3213
B93: 羽絨服 | C93: 30 | D93: 59680 | E93: 15 | I93: 羽絨服 | J93: 15 | K93: 34913
B94: 鞋 | C94: 24 | D94: 20700 | E94: 8 | I94: 鞋 | J94: 16 | K94: 17862
A97: CARMEN | B97: TW 4日 | C97: MTD | D97: ATV | E97: UPT | F97: NO | G97: QTY | I97: LW | J97: MTD | K97: ATV | L97: UPT | M97: NO | N97: QTY
C98: 100295 | D98: 2711 | E98: 5.0 | F98: 37 | G98: 170 | J98: 117588 | K98: 2739 | L98: 4.4 | M98: 43 | N98: 188
B99: VSLW | C99: =C98-J98 -> -17293 | D99: =D98-K98 -> -28 | E99: =E98-L98 -> 0.6 | F99: =F98-M98 -> -6 | G99: =G98-N98 -> -18
C100: 56244 | D100: 2017 | E100: 3.4 | F100: 28 | G100: 97
B101: 中類 | C101: 件數 | D101: 金額 | E101: VSLW尚欠 | I101: 中類 | J101: 件數 | K101: 金額
B102: 內搭 | C102: 20 | D102: 15839 | E102: =C102-J102 -> -5 | I102: 內搭 | J102: 25 | K102: 20838
B103: 針織上衣 | C103: 5 | D103: 6603 | E103: 2 | I103: 針織上衣 | J103: 3 | K103: 4459
B104: 針織褲 | C104: 10 | D104: 8503 | E104: -4 | I104: 針織褲 | J104: 14 | K104: 12555
B105: 梭織上衣 | C105: 4 | D105: 6991 | E105: -4 | I105: 梭織上衣 | J105: 8 | K105: 13560
B106: 梭織褲 | C106: 2 | D106: 2720 | E106: 0 | I106: 梭織褲 | J106: 2 | K106: 2307
B107: 短T類 | C107: 4 | D107: 1998 | E107: 0 | I107: 短T類 | J107: 4 | K107: 2119
B108: 裙裝 | C108: =SUMIFS('個人KPISales receipt(MTD）'!J:J,'個人KPISales receipt(MTD）'!A:A,'個人KPISales receipt(MTD）'!A8,'個人KPISales receipt(MTD）'!C:C,'個人KPISales receipt(MTD）'!C12) -> 0 | D108: =SUMIFS('個人KPISales receipt(MTD）'!K:K,'個人KPISales receipt(MTD）'!A:A,'個人KPISales receipt(MTD）'!A8,'個人KPISales receipt(MTD）'!B:B,'個人KPISales receipt(MTD）'!B4,'個人KPISales receipt(MTD）'!C:C,'個人KPISales receipt(MTD）'!C12) -> 0 | E108: 0 | I108: 裙裝 | J108: 0 | K108: 0
B109: 編織衫 | C109: 3 | D109: 3884 | E109: -3 | I109: 編織衫 | J109: 6 | K109: 7580
B110: 襯衫 | C110: =SUMIFS('個人KPISales receipt(MTD）'!J:J,'個人KPISales receipt(MTD）'!A:A,'個人KPISales receipt(MTD）'!A8,'個人KPISales receipt(MTD）'!B:B,'個人KPISales receipt(MTD）'!B4,'個人KPISales receipt(MTD）'!C:C,'個人KPISales receipt(MTD）'!C14) -> 0 | D110: =SUMIFS('個人KPISales receipt(MTD）'!K:K,'個人KPISales receipt(MTD）'!A:A,'個人KPISales receipt(MTD）'!A8,'個人KPISales receipt(MTD）'!B:B,'個人KPISales receipt(MTD）'!B4,'個人KPISales receipt(MTD）'!C:C,'個人KPISales receipt(MTD）'!C14) -> 0 | E110: 0 | I110: 襯衫 | J110: 0 | K110: 0
B111: 棉服 | C111: =SUMIFS('個人KPISales receipt(MTD）'!J:J,'個人KPISales receipt(MTD）'!A:A,'個人KPISales receipt(MTD）'!A8,'個人KPISales receipt(MTD）'!B:B,'個人KPISales receipt(MTD）'!B4,'個人KPISales receipt(MTD）'!C:C,'個人KPISales receipt(MTD）'!C9) -> 0 | D111: =SUMIFS('個人KPISales receipt(MTD）'!K:K,'個人KPISales receipt(MTD）'!A:A,'個人KPISales receipt(MTD）'!A8,'個人KPISales receipt(MTD）'!B:B,'個人KPISales receipt(MTD）'!B4,'個人KPISales receipt(MTD）'!C:C,'個人KPISales receipt(MTD）'!C9) -> 0 | E111: -1 | I111: 棉服 | J111: 1 | K111: 3298
B112: 羽絨服 | C112: 13 | D112: 28069 | E112: 1 | I112: 羽絨服 | J112: 12 | K112: 24010
B113: 鞋 | C113: 19 | D113: 16414 | E113: -9 | I113: 鞋 | J113: 28 | K113: 23774
A115: Anson | B115: TW 4日 | C115: MTD | D115: ATV | E115: UPT | F115: NO | G115: QTY | I115: LW | J115: MTD | K115: ATV | L115: UPT | M115: NO | N115: QTY
C116: 100295 | D116: 2711 | E116: 5.0 | F116: 37 | G116: 170 | J116: 117588 | K116: 2739 | L116: 4.4 | M116: 43 | N116: 188
B117: VSLW | C117: =C116-J116 -> -17293 | D117: =D116-K116 -> -28 | E117: =E116-L116 -> 0.6 | F117: =F116-M116 -> -6 | G117: =G116-N116 -> -18
C118: 56244 | D118: 2017 | E118: 3.4 | F118: 28 | G118: 97
B119: 中類 | C119: 件數 | D119: 金額 | E119: VSLW尚欠 | I119: 中類 | J119: 件數 | K119: 金額
B120: 內搭 | C120: 20 | D120: 15839 | E120: =C120-J120 -> -5 | I120: 內搭 | J120: 25 | K120: 20838
B121: 針織上衣 | C121: 5 | D121: 6603 | E121: 2 | I121: 針織上衣 | J121: 3 | K121: 4459
B122: 針織褲 | C122: 10 | D122: 8503 | E122: -4 | I122: 針織褲 | J122: 14 | K122: 12555
B123: 梭織上衣 | C123: 4 | D123: 6991 | E123: -4 | I123: 梭織上衣 | J123: 8 | K123: 13560
B124: 梭織褲 | C124: 2 | D124: 2720 | E124: 0 | I124: 梭織褲 | J124: 2 | K124: 2307
B125: 短T類 | C125: 4 | D125: 1998 | E125: 0 | I125: 短T類 | J125: 4 | K125: 2119
B126: 裙裝 | C126: =SUMIFS('個人KPISales receipt(MTD）'!J:J,'個人KPISales receipt(MTD）'!A:A,'個人KPISales receipt(MTD）'!A26,'個人KPISales receipt(MTD）'!C:C,'個人KPISales receipt(MTD）'!C30) -> 0 | D126: =SUMIFS('個人KPISales receipt(MTD）'!K:K,'個人KPISales receipt(MTD）'!A:A,'個人KPISales receipt(MTD）'!A26,'個人KPISales receipt(MTD）'!B:B,'個人KPISales receipt(MTD）'!B22,'個人KPISales receipt(MTD）'!C:C,'個人KPISales receipt(MTD）'!C30) -> 0 | E126: 0 | I126: 裙裝 | J126: 0 | K126: 0
B127: 編織衫 | C127: 3 | D127: 3884 | E127: -3 | I127: 編織衫 | J127: 6 | K127: 7580
B128: 襯衫 | C128: =SUMIFS('個人KPISales receipt(MTD）'!J:J,'個人KPISales receipt(MTD）'!A:A,'個人KPISales receipt(MTD）'!A26,'個人KPISales receipt(MTD）'!B:B,'個人KPISales receipt(MTD）'!B22,'個人KPISales receipt(MTD）'!C:C,'個人KPISales receipt(MTD）'!C32) -> 0 | D128: =SUMIFS('個人KPISales receipt(MTD）'!K:K,'個人KPISales receipt(MTD）'!A:A,'個人KPISales receipt(MTD）'!A26,'個人KPISales receipt(MTD）'!B:B,'個人KPISales receipt(MTD）'!B22,'個人KPISales receipt(MTD）'!C:C,'個人KPISales receipt(MTD）'!C32) -> 0 | E128: 0 | I128: 襯衫 | J128: 0 | K128: 0
B129: 棉服 | C129: =SUMIFS('個人KPISales receipt(MTD）'!J:J,'個人KPISales receipt(MTD）'!A:A,'個人KPISales receipt(MTD）'!A26,'個人KPISales receipt(MTD）'!B:B,'個人KPISales receipt(MTD）'!B22,'個人KPISales receipt(MTD）'!C:C,'個人KPISales receipt(MTD）'!C27) -> 0 | D129: =SUMIFS('個人KPISales receipt(MTD）'!K:K,'個人KPISales receipt(MTD）'!A:A,'個人KPISales receipt(MTD）'!A26,'個人KPISales receipt(MTD）'!B:B,'個人KPISales receipt(MTD）'!B22,'個人KPISales receipt(MTD）'!C:C,'個人KPISales receipt(MTD）'!C27) -> 0 | E129: -1 | I129: 棉服 | J129: 1 | K129: 3298
B130: 羽絨服 | C130: 13 | D130: 28069 | E130: 1 | I130: 羽絨服 | J130: 12 | K130: 24010
B131: 鞋 | C131: 19 | D131: 16414 | E131: -9 | I131: 鞋 | J131: 28 | K131: 23774

Sheet Sales receipt((當天)
A1: 營業員 | B1: 大類 | C1: 中類 | D1: 商品名稱 | E1: 季節 | F1: 系列 | G1: 子系列 | H1: 性別 | I1: 上市日期 | J1: 銷售數量 | K1: 結算金額 | L1: 銷售日期 | M1: 注冊時間 | N1: 回流判斷
A2: M0989 Susanna | B2: 广宣用品 | C2: 內衣類 | D2: DOWN JKT | E2: 冬季 | F2: ATHLETICS | G2: A.P. | H2: FEMALE | N2: 回流
A3: M2172 Janet | B3: 其它 | C3: 內搭 | D3: PAD JKT | E3: 春季 | F3: FASHION | G3: BLUE | H3: MALE | N3: 新注册
A4: M3060 Anson | B4: 服装 | C4: 羽絨服 | D4: PAD VEST | E4: 秋季 | F4: LIFESTYLE | G4: EXPLORE | H4: UNISEX | N4: (空白)
A5: M1436 Khaki | B5: 配件 | C5: 針織上衣 | D5: SKIRT | E5: 夏季 | F5: (空白) | G5: FILA MILANO | H5: (空白)
A6: M2798 Ryan | B6: 鞋类 | C6: 針織褲 | D6: SWEAT | E6: 常青 | G6: FILA ORIGINALE
A7: M2801 Fanny | B7: (空白) | C7: 梭織上衣 | D7: WOVEN JKT | E7: (空白) | G7: FITNESS
A8: M2902 Carmen | C8: 梭織褲 | D8: WOVEN PANTS | G8: GOLF
C9: 棉服 | D9: 上衣两件套 | G9: HERITAGE
C10: 短T類 | D10: 中长款羽绒服 | G10: ICONA
C11: 滑雪服 | D11: 长款羽绒服 | G11: MODERN HERITAGE
C12: 裙裝 | D12: 休闲西装 | G12: MODERNO
C13: 編織衫 | D13: 冲锋衣 | G13: ORIGINALE
C14: 襯衫 | D14: 冲锋衣两件套 | G14: SKI
D15: 羽绒马甲 | G15: SPORT PERFORMANCE
D16: 羽绒服 | G16: TENNIS
D17: 羽绒服两件套 | G17: WHITE
D18: 男装上衣 | G18: (空白)
D19: 针织马甲
D20: 针织打底裤
D21: 针织长袖POLO衫
D22: 针织长袖上衣
D23: 针织长袖外套
D24: 针织长袖衫
D25: 针织长裤
D26: 针织连帽上衣
D27: 针织连帽外套
D28: 针织背心
D29: 针织套头衫
D30: 针织短袖POLO衫
D31: 针织短袖连帽上衣
D32: 针织短袖衫
D33: 针织裙
D34: 呢子外套
D35: 连衣裙
D36: 轻薄羽绒服
D37: 梭织九分裤
D38: 梭织马甲
D39: 梭织五分裤
D40: 梭织外套
D41: 梭织长袖衬衫
D42: 梭织长裤
D43: 梭织裙
D44: 棉马甲
D45: 棉服
D46: 短裙（含短裤）
D47: 编织外套
D48: 编织连衣裙
D49: 编织衫
D50: 编织衫两件套
D51: 滑雪服
A96: 請把要分析的小票複製在以下
A97: M1436 Khaki | B97: 鞋类 | C97: 戶外鞋 | D97: EXPLORE户外鞋 | E97: 春季 | F97: ATHLETICS | G97: EXPLORE | H97: 男 | I97: 2025-12-04 | J97: 1 | K97: 1390 | L97: 2025-12-06 | M97: 斐樂大貨
A98: M2801 Fanny | B98: 鞋类 | C98: 運動鞋 | D98: 摩登运动鞋 | E98: 冬季 | F98: FASHION | G98: ORIGINALE | H98: 男 | I98: 2025-09-04 | J98: 1 | K98: 863 | L98: 2025-12-06 | M98: 斐樂大貨
A99: M2172 Janet | B99: 鞋类 | C99: 運動鞋 | D99: 复古运动鞋 | E99: 冬季 | F99: FASHION | G99: ORIGINALE | H99: 男 | I99: 2025-10-09 | J99: 2 | K99: 1549 | L99: 2025-12-06 | M99: 斐樂大貨
A100: M2801 Fanny | B100: 鞋类 | C100: 運動鞋 | D100: 摩登运动鞋 | E100: 冬季 | F100: FASHION | G100: ORIGINALE | H100: 女 | I100: 2025-09-04 | J100: 1 | K100: 862 | L100: 2025-12-06 | M100: 斐樂大貨
A101: M1436 Khaki | B101: 鞋类 | C101: 板鞋 | D101: 摩登板鞋 | E101: 冬季 | F101: FASHION | G101: MODERNO | H101: MALE | I101: 2025-11-06 | J101: 1 | K101: 982 | L101: 2025-12-06 | M101: 斐樂大貨 | N101: 回流
A102: M1436 Khaki | B102: 鞋类 | C102: 板鞋 | D102: 摩登板鞋 | E102: 冬季 | F102: FASHION | G102: HERITAGE | H102: 男 | I102: 2025-11-06 | J102: 1 | K102: 1004 | L102: 2025-12-06 | M102: 斐樂大貨
A103: M2902 Carmen | B103: 鞋类 | C103: 板鞋 | D103: 摩登板鞋 | E103: 冬季 | F103: FASHION | G103: MODERNO | H103: FEMALE | I103: 2025-11-06 | J103: 1 | K103: 1140 | L103: 2025-12-06 | M103: 斐樂大貨
A104: M2172 Janet | B104: 鞋类 | C104: 跑步鞋 | D104: 路跑鞋 | E104: 冬季 | F104: ATHLETICS | G104: FITNESS | H104: 男 | I104: 2025-10-09 | J104: 1 | K104: 980 | L104: 2025-12-06 | M104: 斐樂大貨
A105: M2172 Janet | B105: 鞋类 | C105: 跑步鞋 | D105: FITNESS跑步鞋 | E105: 春季 | F105: ATHLETICS | G105: FITNESS | H105: 男 | I105: 2025-12-04 | J105: 1 | K105: 990 | L105: 2025-12-06 | M105: 斐樂大貨
A106: M2801 Fanny | B106: 鞋类 | C106: 跑步鞋 | D106: 路跑鞋 | E106: 冬季 | F106: ATHLETICS | G106: FITNESS | H106: 女 | I106: 2025-10-09 | J106: 1 | K106: 980 | L106: 2025-12-06 | M106: 斐樂大貨
A107: M1436 Khaki | B107: 鞋类 | C107: 網球鞋 | D107: TENNIS网球生活鞋 | E107: 春季 | F107: ATHLETICS | G107: TENNIS | H107: 女 | I107: 2025-12-04 | J107: 1 | K107: 890 | L107: 2025-12-06 | M107: 斐樂大貨
A108: M2172 Janet | B108: 服装 | C108: 編織衫 | D108: 编织衫 | E108: 春季 | F108: ATHLETICS | G108: GOLF | H108: 女 | I108: 2025-12-04 | J108: 1 | K108: 1303 | L108: 2025-12-06 | M108: 斐樂大貨
A109: M3060 Anson | B109: 服装 | C109: 編織衫 | D109: 编织外套 | E109: 冬季 | F109: LIFESTYLE | G109: WHITE | H109: FEMALE | I109: 2025-09-23 | J109: 1 | K109: 1091 | L109: 2025-12-06 | M109: 斐樂大貨 | N109: 回流
A110: M2902 Carmen | B110: 服装 | C110: 襯衫 | D110: 梭织长袖衬衫 | E110: 冬季 | F110: LIFESTYLE | G110: HERITAGE | H110: 男 | I110: 2025-09-04 | J110: 1 | K110: 1140 | L110: 2025-12-06 | M110: 斐樂大貨
A111: M1436 Khaki | B111: 服装 | C111: 短T類 | D111: 针织短袖POLO衫 | E111: 冬季 | F111: LIFESTYLE | G111: HERITAGE | H111: 男 | I111: 2025-09-04 | J111: 1 | K111: 651 | L111: 2025-12-06 | M111: 斐樂大貨
A112: M3060 Anson | B112: 服装 | C112: 棉服 | D112: 棉服 | E112: 春季 | F112: ATHLETICS | G112: GOLF | H112: 男 | I112: 2025-12-04 | J112: 1 | K112: 2511 | L112: 2025-12-06 | M112: 斐樂大貨 | N112: 回流
A113: M3060 Anson | B113: 服装 | C113: 內搭 | D113: 针织长袖上衣 | E113: 冬季 | F113: ATHLETICS | G113: FITNESS | H113: 男 | I113: 2025-09-04 | J113: 1 | K113: 780 | L113: 2025-12-06 | M113: 斐樂大貨
A114: M1436 Khaki | B114: 服装 | C114: 內搭 | D114: 针织套头衫 | E114: 冬季 | F114: ATHLETICS | G114: FITNESS | H114: 男 | I114: 2025-10-23 | J114: 1 | K114: 880 | L114: 2025-12-06 | M114: 斐樂大貨
A115: M2172 Janet | B115: 服装 | C115: 內搭 | D115: 针织长袖上衣 | E115: 冬季 | F115: ATHLETICS | G115: GOLF | H115: 男 | I115: 2025-10-23 | J115: 1 | K115: 1478 | L115: 2025-12-06 | M115: 斐樂大貨 | N115: 回流
A116: M2801 Fanny | B116: 服装 | C116: 內搭 | D116: 针织长袖上衣 | E116: 春季 | F116: ATHLETICS | G116: FITNESS | H116: 男 | I116: 2025-12-04 | J116: 1 | K116: 763 | L116: 2025-12-06 | M116: 斐樂大貨 | N116: 回流
A117: M3060 Anson | B117: 服装 | C117: 內搭 | D117: 针织长袖POLO衫 | E117: 春季 | F117: ATHLETICS | G117: GOLF | H117: 男 | I117: 2025-12-04 | J117: 1 | K117: 1304 | L117: 2025-12-06 | M117: 斐樂大貨 | N117: 回流
A118: M1436 Khaki | B118: 服装 | C118: 內搭 | D118: 针织长袖POLO衫 | E118: 春季 | F118: ATHLETICS | G118: GOLF | H118: 男 | I118: 2025-12-04 | J118: 1 | K118: 1287 | L118: 2025-12-06 | M118: 斐樂大貨 | N118: 回流
A119: M2801 Fanny | B119: 服装 | C119: 內搭 | D119: 针织长袖衫 | E119: 春季 | F119: ATHLETICS | G119: GOLF | H119: 男 | I119: 2025-12-04 | J119: 1 | K119: 1478 | L119: 2025-12-06 | M119: 斐樂大貨 | N119: 回流
A120: M1436 Khaki | B120: 服装 | C120: 內搭 | D120: 针织长袖衫 | E120: 春季 | F120: ATHLETICS | G120: GOLF | H120: 男 | I120: 2025-12-04 | J120: 1 | K120: 1462 | L120: 2025-12-06 | M120: 斐樂大貨 | N120: 回流
A121: M2172 Janet | B121: 服装 | C121: 內搭 | D121: 针织套头衫 | E121: 冬季 | F121: LIFESTYLE | G121: WHITE | H121: MALE | I121: 2025-09-23 | J121: 1 | K121: 880 | L121: 2025-12-06 | M121: 斐樂大貨
A122: M3060 Anson | B122: 服装 | C122: 內搭 | D122: 针织长袖衫 | E122: 冬季 | F122: LIFESTYLE | G122: FILA ORIGINALE | H122: MALE | I122: 2025-09-23 | J122: 1 | K122: 680 | L122: 2025-12-06 | M122: 斐樂大貨
A123: M2902 Carmen | B123: 服装 | C123: 內搭 | D123: 针织长袖衫 | E123: 冬季 | F123: LIFESTYLE | G123: FILA ORIGINALE | H123: MALE | I123: 2025-09-23 | J123: 1 | K123: 603 | L123: 2025-12-06 | M123: 斐樂大貨 | N123: 回流
A124: M2902 Carmen | B124: 服装 | C124: 內搭 | D124: 针织套头衫 | E124: 春季 | F124: LIFESTYLE | G124: HERITAGE | H124: 男 | I124: 2025-12-04 | J124: 1 | K124: 719 | L124: 2025-12-06 | M124: 斐樂大貨 | N124: 回流
A125: M2902 Carmen | B125: 服装 | C125: 內搭 | D125: 针织连帽上衣 | E125: 冬季 | F125: LIFESTYLE | G125: WHITE | H125: 女 | I125: 2025-11-06 | J125: 1 | K125: 834 | L125: 2025-12-06 | M125: 斐樂大貨 | N125: 回流
A126: M3060 Anson | B126: 服装 | C126: 梭織褲 | D126: 梭织长裤 | E126: 冬季 | F126: ATHLETICS | G126: GOLF | H126: 男 | I126: 2025-09-04 | J126: 1 | K126: 1428 | L126: 2025-12-06 | M126: 斐樂大貨 | N126: 回流
A127: M2172 Janet | B127: 服装 | C127: 梭織褲 | D127: 梭织长裤 | E127: 冬季 | F127: ATHLETICS | G127: EXPLORE | H127: 男 | I127: 2025-10-09 | J127: 1 | K127: 1026 | L127: 2025-12-06 | M127: 斐樂大貨 | N127: 回流
A128: M3060 Anson | B128: 服装 | C128: 梭織褲 | D128: 梭织长裤 | E128: 春季 | F128: ATHLETICS | G128: GOLF | H128: 男 | I128: 2025-12-04 | J128: 1 | K128: 1258 | L128: 2025-12-06 | M128: 斐樂大貨 | N128: 回流
A129: M2902 Carmen | B129: 服装 | C129: 梭織上衣 | D129: 梭织外套 | E129: 冬季 | F129: ATHLETICS | G129: GOLF | H129: 男 | I129: 2025-09-04 | J129: 1 | K129: 2353 | L129: 2025-12-06 | M129: 斐樂大貨 | N129: 回流
A130: M2801 Fanny | B130: 服装 | C130: 梭織上衣 | D130: 上衣两件套 | E130: 春季 | F130: ATHLETICS | G130: FITNESS | H130: 男 | I130: 2025-12-04 | J130: 1 | K130: 2497 | L130: 2025-12-06 | M130: 斐樂大貨 | N130: 回流
A131: M3060 Anson | B131: 服装 | C131: 羽絨服 | D131: 羽绒服两件套 | E131: 冬季 | F131: ATHLETICS | G131: GOLF | H131: 男 | I131: 2025-09-04 | J131: 1 | K131: 2752 | L131: 2025-12-06 | M131: 斐樂大貨
A132: M2801 Fanny | B132: 服装 | C132: 羽絨服 | D132: 羽绒马甲 | E132: 冬季 | F132: ATHLETICS | G132: GOLF | H132: 男 | I132: 2025-09-04 | J132: 1 | K132: 1712 | L132: 2025-12-06 | M132: 斐樂大貨 | N132: 回流
A133: M2172 Janet | B133: 服装 | C133: 羽絨服 | D133: 羽绒服 | E133: 冬季 | F133: ATHLETICS | G133: GOLF | H133: 男 | I133: 2025-09-04 | J133: 1 | K133: 2887 | L133: 2025-12-06 | M133: 斐樂大貨 | N133: 回流
A134: M2172 Janet | B134: 服装 | C134: 羽絨服 | D134: 冲锋衣两件套 | E134: 冬季 | F134: ATHLETICS | G134: EXPLORE | H134: 男 | I134: 2025-10-09 | J134: 1 | K134: 3265 | L134: 2025-12-06 | M134: 斐樂大貨 | N134: 回流
A135: M2902 Carmen | B135: 服装 | C135: 羽絨服 | D135: 羽绒马甲 | E135: 春季 | F135: ATHLETICS | G135: GOLF | H135: 女 | I135: 2025-12-04 | J135: 1 | K135: 1955 | L135: 2025-12-06 | M135: 斐樂大貨 | N135: 回流
A136: M2172 Janet | B136: 服装 | C136: 羽絨服 | D136: 羽绒服两件套 | E136: 冬季 | F136: LIFESTYLE | G136: FILA ORIGINALE | H136: 男 | I136: 2025-11-06 | J136: 1 | K136: 2973 | L136: 2025-12-06 | M136: 斐樂大貨 | N136: 回流
A137: M3060 Anson | B137: 服装 | C137: 羽絨服 | D137: 羽绒服两件套 | E137: 冬季 | F137: LIFESTYLE | G137: WHITE | H137: 女 | I137: 2025-09-23 | J137: 1 | K137: 2849 | L137: 2025-12-06 | M137: 斐樂大貨 | N137: 回流
A138: M3060 Anson | B138: 服装 | C138: 針織褲 | D138: 针织长裤 | E138: 冬季 | F138: ATHLETICS | G138: FITNESS | H138: 男 | I138: 2025-09-04 | J138: 1 | K138: 774 | L138: 2025-12-06 | M138: 斐樂大貨 | N138: 回流
A139: M2902 Carmen | B139: 服装 | C139: 針織褲 | D139: 针织长裤 | E139: 春季 | G139: A.P. | H139: 男 | I139: 2025-12-04 | J139: 2 | K139: 1930 | L139: 2025-12-06 | M139: 斐樂大貨 | N139: 回流
A140: M1436 Khaki | B140: 服装 | C140: 針織褲 | D140: 针织长裤 | E140: 春季 | F140: ATHLETICS | G140: FITNESS | H140: 男 | I140: 2025-12-04 | J140: 1 | K140: 758 | L140: 2025-12-06 | M140: 斐樂大貨 | N140: 回流
A141: M2801 Fanny | B141: 服装 | C141: 針織褲 | D141: 针织长裤 | E141: 春季 | F141: ATHLETICS | G141: GOLF | H141: 男 | I141: 2025-12-04 | J141: 1 | K141: 1302 | L141: 2025-12-06 | M141: 斐樂大貨 | N141: 回流
A142: M3060 Anson | B142: 服装 | C142: 針織褲 | D142: 针织长裤 | E142: 冬季 | F142: ATHLETICS | G142: FITNESS | H142: 女 | I142: 2025-09-04 | J142: 1 | K142: 748 | L142: 2025-12-06 | M142: 斐樂大貨 | N142: 回流
A143: M2801 Fanny | B143: 服装 | C143: 針織褲 | D143: 针织长裤 | E143: 冬季 | F143: LIFESTYLE | G143: HERITAGE | H143: 男 | I143: 2025-10-23 | J143: 1 | K143: 775 | L143: 2025-12-06 | M143: 斐樂大貨
A144: M3060 Anson | B144: 服装 | C144: 針織褲 | D144: 针织长裤 | E144: 春季 | F144: LIFESTYLE | G144: HERITAGE | H144: 女 | I144: 2025-12-04 | J144: 1 | K144: 774 | L144: 2025-12-06 | M144: 斐樂大貨 | N144: 回流
A145: M2902 Carmen | B145: 服装 | C145: 針織褲 | D145: 针织长裤 | E145: 春季 | F145: LIFESTYLE | G145: HERITAGE | H145: 女 | I145: 2025-12-04 | J145: 1 | K145: 745 | L145: 2025-12-06 | M145: 斐樂大貨 | N145: 回流
A146: M3060 Anson | B146: 服装 | C146: 針織褲 | D146: 针织长裤 | E146: 春季 | F146: LIFESTYLE | G146: HERITAGE | H146: 女 | I146: 2025-12-04 | J146: 1 | K146: 840 | L146: 2025-12-06 | M146: 斐樂大貨
A147: M2902 Carmen | B147: 服装 | C147: 針織褲 | D147: 针织长裤 | E147: 春季 | F147: LIFESTYLE | G147: HERITAGE | H147: 女 | I147: 2025-12-04 | J147: 1 | K147: 754 | L147: 2025-12-06 | M147: 斐樂大貨 | N147: 回流
A148: M1436 Khaki | B148: 服装 | C148: 針織上衣 | D148: 针织长袖外套 | E148: 冬季 | F148: ATHLETICS | G148: TENNIS | H148: 男 | I148: 2025-11-06 | J148: 1 | K148: 1360 | L148: 2025-12-06 | M148: 斐樂大貨 | N148: 回流
A149: M2902 Carmen | B149: 服装 | C149: 針織上衣 | D149: 针织长袖外套 | E149: 冬季 | F149: ATHLETICS | G149: TENNIS | H149: 男 | I149: 2025-11-06 | J149: 1 | K149: 1404 | L149: 2025-12-06 | M149: 斐樂大貨 | N149: 回流
A150: M2801 Fanny | B150: 服装 | C150: 針織上衣 | D150: 针织长袖外套 | E150: 春季 | F150: ATHLETICS | G150: GOLF | H150: 男 | I150: 2025-12-04 | J150: 1 | K150: 2184 | L150: 2025-12-06 | M150: 斐樂大貨 | N150: 回流
A151: M2172 Janet | B151: 服装 | C151: 針織上衣 | D151: 针织长袖外套 | E151: 春季 | F151: LIFESTYLE | G151: HERITAGE | H151: 女 | I151: 2025-12-04 | J151: 1 | K151: 1302 | L151: 2025-12-06 | M151: 斐樂大貨
A152: M2902 Carmen | B152: 配件 | C152: 包類 | D152: 背包 | E152: 春季 | F152: LIFESTYLE | G152: WHITE | H152: 男 | I152: 2025-12-18 | J152: 1 | K152: 880 | L152: 2025-12-06 | M152: 斐樂大貨
A153: M1436 Khaki | B153: 配件 | C153: 包類 | D153: 背包 | E153: 春季 | F153: LIFESTYLE | G153: HERITAGE | H153: 男 | I153: 2025-12-04 | J153: 1 | K153: 827 | L153: 2025-12-06 | M153: 斐樂大貨
A154: M1436 Khaki | B154: 配件 | C154: 包類 | D154: 挎包 | E154: 春季 | F154: LIFESTYLE | G154: HERITAGE | H154: 男 | I154: 2025-12-04 | J154: 1 | K154: 598 | L154: 2025-12-06 | M154: 斐樂大貨
A155: M1436 Khaki | B155: 配件 | C155: 包類 | D155: 挎包 | E155: 春季 | F155: LIFESTYLE | G155: WHITE | H155: 女 | I155: 2025-12-04 | J155: 1 | K155: 591 | L155: 2025-12-06 | M155: 斐樂大貨 | N155: 回流
A156: M2902 Carmen | B156: 配件 | C156: 襪類 | D156: 中腰袜 | E156: 冬季 | F156: ATHLETICS | G156: FITNESS | H156: 男 | I156: 2025-09-04 | J156: 3 | K156: 176 | L156: 2025-12-06 | M156: 斐樂大貨 | N156: 回流
A157: M2902 Carmen | B157: 配件 | C157: 襪類 | D157: 低腰袜 | E157: 冬季 | F157: ATHLETICS | G157: FITNESS | H157: MALE | I157: 2025-09-04 | J157: 1 | K157: 44 | L157: 2025-12-06 | M157: 斐樂大貨 | N157: 回流
A158: M1436 Khaki | B158: 配件 | C158: 襪類 | D158: 中腰袜 | E158: 春季 | F158: ATHLETICS | G158: FITNESS | H158: 男 | I158: 2025-12-04 | J158: 2 | K158: 140 | L158: 2025-12-06 | M158: 斐樂大貨
A159: M2902 Carmen | B159: 配件 | C159: 襪類 | D159: 中腰袜 | E159: 冬季 | F159: ATHLETICS | G159: FITNESS | H159: 女 | I159: 2025-10-09 | J159: 1 | K159: 60 | L159: 2025-12-06 | M159: 斐樂大貨 | N159: 回流
A160: M2902 Carmen | B160: 配件 | C160: 襪類 | D160: 低腰袜 | E160: 冬季 | F160: ATHLETICS | G160: FITNESS | H160: 女 | I160: 2025-09-04 | J160: 1 | K160: 51 | L160: 2025-12-06 | M160: 斐樂大貨 | N160: 回流
A161: M1436 Khaki | B161: 配件 | C161: 襪類 | D161: 低腰袜 | E161: 秋季 | F161: LIFESTYLE | G161: WHITE | H161: 男 | I161: 2025-06-03 | J161: 3 | K161: 180 | L161: 2025-12-06 | M161: 斐樂大貨
A162: M1436 Khaki | B162: 配件 | C162: 襪類 | D162: 中腰袜 | E162: 秋季 | F162: LIFESTYLE | G162: WHITE | H162: 男 | I162: 2025-06-03 | J162: 2 | K162: 140 | L162: 2025-12-06 | M162: 斐樂大貨
A163: M2902 Carmen | B163: 配件 | C163: 襪類 | D163: 中腰袜 | E163: 冬季 | F163: LIFESTYLE | G163: FILA ORIGINALE | H163: 男 | I163: 2025-09-04 | J163: 1 | K163: 52 | L163: 2025-12-06 | M163: 斐樂大貨 | N163: 回流
A164: M2902 Carmen | B164: 配件 | C164: 襪類 | D164: 低腰袜 | E164: 秋季 | F164: LIFESTYLE | G164: FILA ORIGINALE | H164: 女 | I164: 2025-06-03 | J164: 2 | K164: 106 | L164: 2025-12-06 | M164: 斐樂大貨 | N164: 回流
A165: M2902 Carmen | B165: 配件 | C165: 襪類 | D165: 中腰袜 | E165: 冬季 | F165: LIFESTYLE | G165: WHITE | H165: 女 | I165: 2025-10-09 | J165: 1 | K165: 60 | L165: 2025-12-06 | M165: 斐樂大貨 | N165: 回流
A166: M2902 Carmen | B166: 配件 | C166: 襪類 | D166: 中腰袜 | E166: 冬季 | F166: LIFESTYLE | G166: FILA ORIGINALE | H166: 女 | I166: 2025-09-04 | J166: 2 | K166: 124 | L166: 2025-12-06 | M166: 斐樂大貨 | N166: 回流
A167: M2902 Carmen | B167: 配件 | C167: 襪類 | D167: 中腰袜 | E167: 春季 | F167: LIFESTYLE | G167: HERITAGE | H167: 女 | I167: 2025-12-04 | J167: 1 | K167: 60 | L167: 2025-12-06 | M167: 斐樂大貨 | N167: 回流
A168: M2902 Carmen | B168: 配件 | C168: 襪類 | D168: 中腰袜 | E168: 春季 | F168: LIFESTYLE | G168: FILA ORIGINALE | H168: 女 | I168: 2025-12-04 | J168: 1 | K168: 60 | L168: 2025-12-06 | M168: 斐樂大貨 | N168: 回流
A169: M1436 Khaki | B169: 其它 | C169: 其它 | D169: PLASTIC BAG | E169: 春季 | H169: UNISEX | J169: 5 | K169: 5 | L169: 2025-12-06 | M169: 通用
A170: M2172 Janet | B170: 其它 | C170: 其它 | D170: PLASTIC BAG | E170: 春季 | H170: UNISEX | J170: 4 | K170: 4 | L170: 2025-12-06 | M170: 通用
A171: M2172 Janet | B171: 其它 | C171: 其它 | D171: PLASTIC BAG | E171: 春季 | H171: UNISEX | J171: 2 | K171: 2 | L171: 2025-12-06 | M171: 通用 | N171: 回流
A172: M2801 Fanny | B172: 其它 | C172: 其它 | D172: PLASTIC BAG | E172: 春季 | H172: UNISEX | J172: 1 | K172: 1 | L172: 2025-12-06 | M172: 通用
A173: M2801 Fanny | B173: 其它 | C173: 其它 | D173: PLASTIC BAG | E173: 春季 | H173: UNISEX | J173: 1 | K173: 1 | L173: 2025-12-06 | M173: 通用 | N173: 回流
A174: M2902 Carmen | B174: 其它 | C174: 其它 | D174: PLASTIC BAG | E174: 春季 | H174: UNISEX | J174: 1 | K174: 1 | L174: 2025-12-06 | M174: 通用
A175: M3060 Anson | B175: 其它 | C175: 其它 | D175: PLASTIC BAG | E175: 春季 | H175: UNISEX | J175: 1 | K175: 1 | L175: 2025-12-06 | M175: 通用
A176: M3060 Anson | B176: 其它 | C176: 其它 | D176: PLASTIC BAG | E176: 春季 | H176: UNISEX | J176: 1 | K176: 1 | L176: 2025-12-06 | M176: 通用 | N176: 回流
A177: M1436 Khaki | B177: 其它 | C177: 其它 | D177: PLASTIC BAG | E177: 春季 | H177: UNISEX | J177: 1 | K177: 1 | L177: 2025-12-06 | M177: 通用
A178: M1436 Khaki | B178: 其它 | C178: 其它 | D178: PLASTIC BAG | E178: 春季 | H178: UNISEX | J178: 1 | K178: 1 | L178: 2025-12-06 | M178: 通用 | N178: 回流
A179: M2172 Janet | B179: 其它 | C179: 其它 | D179: PLASTIC BAG | E179: 春季 | H179: UNISEX | J179: 1 | K179: 1 | L179: 2025-12-06 | M179: 通用
A180: M3060 Anson | B180: 其它 | C180: 其它 | D180: PLASTIC BAG | E180: 春季 | H180: UNISEX | J180: 1 | K180: 1 | L180: 2025-12-06 | M180: 通用 | N180: 回流
A181: M1436 Khaki | B181: 其它 | C181: 其它 | D181: PLASTIC BAG | E181: 春季 | H181: UNISEX | J181: 1 | K181: 1 | L181: 2025-12-06 | M181: 通用
A182: M1436 Khaki | B182: 其它 | C182: 其它 | D182: PLASTIC BAG | E182: 春季 | H182: UNISEX | J182: 1 | K182: 1 | L182: 2025-12-06 | M182: 通用 | N182: 回流
A183: M2172 Janet | B183: 其它 | C183: 其它 | D183: PLASTIC BAG | E183: 春季 | H183: UNISEX | J183: 1 | K183: 1 | L183: 2025-12-06 | M183: 通用
A184: M2801 Fanny | B184: 其它 | C184: 其它 | D184: PLASTIC BAG | E184: 春季 | H184: UNISEX | J184: 1 | K184: 1 | L184: 2025-12-06 | M184: 通用
A185: M2801 Fanny | B185: 其它 | C185: 其它 | D185: PLASTIC BAG | E185: 春季 | H185: UNISEX | J185: 1 | K185: 1 | L185: 2025-12-06 | M185: 通用 | N185: 回流
A186: M3060 Anson | B186: 其它 | C186: 其它 | D186: PLASTIC BAG | E186: 春季 | H186: UNISEX | J186: 1 | K186: 1 | L186: 2025-12-06 | M186: 通用
A187: M3060 Anson | B187: 其它 | C187: 其它 | D187: PLASTIC BAG | E187: 春季 | H187: UNISEX | J187: 1 | K187: 1 | L187: 2025-12-06 | M187: 通用 | N187: 回流

Sheet 個人KPISales receipt(MTD）
A1: 營業員 | B1: 大類 | C1: 中類 | D1: 商品名稱 | E1: 季節 | F1: 系列 | G1: 子系列 | H1: 性別 | I1: 上市日期 | J1: 銷售數量 | K1: 結算金額 | L1: 銷售日期 | M1: 注冊時間 | N1: 回流判斷
A2: M0989 Susanna | B2: 广宣用品 | C2: 內搭 | D2: DOWN JKT | E2: 冬季 | F2: ATHLETICS | G2: A.P. | H2: FEMALE | N2: 回流
A3: M2172 Janet | B3: 其它 | C3: 內衣類 | D3: PAD JKT | E3: 春季 | F3: FASHION | G3: BLUE | H3: MALE | N3: 新注册
B4: 服装 | C4: 羽絨服 | D4: PAD VEST | E4: 秋季 | F4: LIFESTYLE | G4: EXPLORE | H4: UNISEX | N4: (空白)
A5: M1436 Khaki | B5: 配件 | C5: 針織上衣 | D5: SKIRT | E5: 夏季 | F5: (空白) | G5: FILA MILANO | H5: (空白)
A6: M2798 Ryan | B6: 鞋类 | C6: 針織褲 | D6: SWEAT | E6: 常青 | G6: FILA ORIGINALE
A7: M2801 Fanny | B7: (空白) | C7: 梭織上衣 | D7: WOVEN JKT | E7: (空白) | G7: FITNESS
A8: M2902 Carmen | C8: 梭織褲 | D8: WOVEN PANTS | G8: GOLF
C9: 棉服 | D9: 上衣两件套 | G9: HERITAGE
C10: 短T類 | D10: 中长款羽绒服 | G10: ICONA
C11: 滑雪服 | D11: 长款羽绒服 | G11: MODERN HERITAGE
C12: 裙裝 | D12: 休闲西装 | G12: MODERNO
C13: 編織衫 | D13: 冲锋衣 | G13: ORIGINALE
C14: 襯衫 | D14: 冲锋衣两件套 | G14: SKI
D15: 羽绒马甲 | G15: SPORT PERFORMANCE
D16: 羽绒服 | G16: TENNIS
D17: 羽绒服两件套 | G17: WHITE
D18: 男装上衣 | G18: (空白)
D19: 针织马甲
D20: 针织打底裤
D21: 针织长袖POLO衫
D22: 针织长袖上衣
D23: 针织长袖外套
D24: 针织长袖衫
D25: 针织长裤
D26: 针织连帽上衣
D27: 针织连帽外套
D28: 针织背心
D29: 针织套头衫
D30: 针织短袖POLO衫
D31: 针织短袖连帽上衣
D32: 针织短袖衫
D33: 针织裙
D34: 呢子外套
D35: 连衣裙
D36: 轻薄羽绒服
D37: 梭织九分裤
D38: 梭织马甲
D39: 梭织五分裤
D40: 梭织外套
D41: 梭织长袖衬衫
D42: 梭织长裤
D43: 梭织裙
D44: 棉马甲
D45: 棉服
D46: 短裙（含短裤）
D47: 编织外套
D48: 编织连衣裙
D49: 编织衫
D50: 编织衫两件套
D51: 滑雪服
A96: 請把要分析的小票複製在以下
A97: M2172 Janet | B97: 鞋类 | C97: 運動鞋 | D97: 摩登运动鞋 | E97: 冬季 | F97: FASHION | G97: ORIGINALE | H97: 男 | I97: 2025-09-04 | J97: 1 | K97: 755 | L97: 2025-11-24 | M97: 斐樂大貨
A98: M2172 Janet | B98: 鞋类 | C98: 運動鞋 | D98: 摩登运动鞋 | E98: 冬季 | F98: FASHION | G98: ORIGINALE | H98: 男 | I98: 2025-09-04 | J98: 1 | K98: 755 | L98: 2025-11-24 | M98: 斐樂大貨
A99: M1436 Khaki | B99: 鞋类 | C99: 運動鞋 | D99: 摩登运动鞋 | E99: 冬季 | F99: FASHION | G99: ORIGINALE | H99: 男 | I99: 2025-09-04 | J99: 1 | K99: 755 | L99: 2025-11-24 | M99: 斐樂大貨
A100: M1436 Khaki | B100: 鞋类 | C100: 運動鞋 | D100: 摩登运动鞋 | E100: 冬季 | F100: FASHION | G100: ORIGINALE | H100: 女 | I100: 2025-09-04 | J100: 1 | K100: 755 | L100: 2025-11-24 | M100: 斐樂大貨
A101: M2902 Carmen | B101: 鞋类 | C101: 運動鞋 | D101: 摩登运动鞋 | E101: 冬季 | F101: FASHION | G101: ORIGINALE | H101: 女 | I101: 2025-10-09 | J101: 1 | K101: 755 | L101: 2025-11-24 | M101: 斐樂大貨
A102: M2172 Janet | B102: 鞋类 | C102: 運動鞋 | D102: 摩登运动鞋 | E102: 冬季 | F102: FASHION | G102: ORIGINALE | H102: 女 | I102: 2025-10-09 | J102: 1 | K102: 793 | L102: 2025-11-24 | M102: 斐樂大貨 | N102: 回流
A103: M1436 Khaki | B103: 鞋类 | C103: 運動鞋 | D103: 复古运动鞋 | E103: 冬季 | F103: FASHION | G103: ORIGINALE | H103: 女 | I103: 2025-09-04 | J103: 1 | K103: 880 | L103: 2025-11-24 | M103: 斐樂大貨
A104: M2172 Janet | B104: 鞋类 | C104: 運動鞋 | D104: 复古运动鞋 | E104: 冬季 | F104: FASHION | G104: ORIGINALE | H104: 女 | I104: 2025-09-04 | J104: 1 | K104: 880 | L104: 2025-11-24 | M104: 斐樂大貨
A105: M0989 Susanna | B105: 鞋类 | C105: 運動鞋 | D105: 先锋运动鞋 | E105: 冬季 | F105: FASHION | H105: 女 | I105: 2025-10-09 | J105: 1 | K105: 1054 | L105: 2025-11-24 | M105: 斐樂大貨 | N105: 回流
A106: M2902 Carmen | B106: 鞋类 | C106: 板鞋 | D106: 摩登板鞋 | E106: 冬季 | F106: FASHION | G106: MODERNO | H106: MALE | I106: 2025-11-06 | J106: 1 | K106: 878 | L106: 2025-11-24 | M106: 斐樂大貨
A107: M2902 Carmen | B107: 鞋类 | C107: 板鞋 | D107: 摩登板鞋 | E107: 冬季 | F107: FASHION | G107: HERITAGE | H107: 男 | I107: 2025-11-06 | J107: 1 | K107: 878 | L107: 2025-11-24 | M107: 斐樂大貨
A108: M2172 Janet | B108: 鞋类 | C108: 跑步鞋 | D108: 路跑鞋 | E108: 冬季 | F108: ATHLETICS | G108: FITNESS | H108: 男 | I108: 2025-10-09 | J108: 1 | K108: 793 | L108: 2025-11-24 | M108: 斐樂大貨 | N108: 回流
A109: M0989 Susanna | B109: 鞋类 | C109: 跑步鞋 | D109: 路跑鞋 | E109: 冬季 | F109: ATHLETICS | G109: FITNESS | H109: 男 | I109: 2025-09-04 | J109: 1 | K109: 1054 | L109: 2025-11-24 | M109: 斐樂大貨 | N109: 回流
A110: M0989 Susanna | B110: 鞋类 | C110: 跑步鞋 | D110: 路跑鞋 | E110: 冬季 | F110: ATHLETICS | G110: FITNESS | H110: 男 | I110: 2025-10-09 | J110: 1 | K110: 955 | L110: 2025-11-24 | M110: 斐樂大貨
A111: M0989 Susanna | B111: 鞋类 | C111: 跑步鞋 | D111: 户外鞋 | E111: 冬季 | F111: ATHLETICS | G111: EXPLORE | H111: 女 | I111: 2025-09-04 | J111: 1 | K111: 878 | L111: 2025-11-24 | M111: 斐樂大貨
A112: M0989 Susanna | B112: 鞋类 | C112: 網球鞋 | D112: TENNIS网球生活鞋 | E112: 春季 | F112: ATHLETICS | G112: TENNIS | H112: 男 | I112: 2025-12-04 | J112: 1 | K112: 801 | L112: 2025-11-24 | M112: 斐樂大貨 | N112: 回流
A113: M2902 Carmen | B113: 鞋类 | D113: ORIGINALE老爹鞋 | E113: 春季 | F113: FASHION | G113: ORIGINALE | H113: 女 | I113: 2025-12-04 | J113: 1 | K113: 784 | L113: 2025-11-24 | M113: 斐樂大貨
A114: M2902 Carmen | B114: 鞋类 | D114: ORIGINALE老爹鞋 | E114: 春季 | F114: FASHION | G114: ORIGINALE | H114: 女 | I114: 2025-12-04 | J114: 1 | K114: 783 | L114: 2025-11-24 | M114: 斐樂大貨
A115: M0989 Susanna | B115: 服装 | C115: 編織衫 | D115: 编织衫 | E115: 冬季 | F115: ATHLETICS | G115: GOLF | H115: MALE | I115: 2025-10-23 | J115: 1 | K115: 1512 | L115: 2025-11-24 | M115: 斐樂大貨 | N115: 回流
A116: M1436 Khaki | B116: 服装 | C116: 編織衫 | D116: 编织外套 | E116: 冬季 | F116: LIFESTYLE | G116: WHITE | H116: FEMALE | I116: 2025-09-23 | J116: 1 | K116: 1092 | L116: 2025-11-24 | M116: 斐樂大貨
A117: M2172 Janet | B117: 服装 | C117: 編織衫 | D117: 编织衫 | E117: 冬季 | F117: LIFESTYLE | G117: WHITE | H117: FEMALE | I117: 2025-09-23 | J117: 1 | K117: 863 | L117: 2025-11-24 | M117: 斐樂大貨
A118: M2172 Janet | B118: 服装 | C118: 編織衫 | D118: 编织衫 | E118: 冬季 | F118: LIFESTYLE | G118: HERITAGE | H118: 女 | I118: 2025-10-23 | J118: 1 | K118: 1008 | L118: 2025-11-24 | M118: 斐樂大貨 | N118: 回流
A119: M2902 Carmen | B119: 服装 | C119: 編織衫 | D119: 编织衫 | E119: 冬季 | F119: LIFESTYLE | G119: HERITAGE | H119: 女 | I119: 2025-10-23 | J119: 1 | K119: 980 | L119: 2025-11-24 | M119: 斐樂大貨 | N119: 回流
A120: M2172 Janet | B120: 服装 | C120: 短T類 | D120: 针织短袖衫 | E120: 冬季 | F120: LIFESTYLE | G120: HERITAGE | H120: MALE | I120: 2025-09-04 | J120: 1 | K120: 469 | L120: 2025-11-24 | M120: 斐樂大貨 | N120: 回流
A121: M2172 Janet | B121: 服装 | C121: 短T類 | D121: 针织短袖衫 | E121: 冬季 | F121: LIFESTYLE | G121: HERITAGE | H121: MALE | I121: 2025-09-04 | J121: 1 | K121: 580 | L121: 2025-11-24 | M121: 斐樂大貨
A122: M2172 Janet | B122: 服装 | C122: 棉服 | D122: 棉服 | E122: 冬季 | F122: ATHLETICS | G122: GOLF | H122: 女 | I122: 2025-10-23 | J122: 1 | K122: 3380 | L122: 2025-11-24 | M122: 斐樂大貨 | N122: 回流
A123: M2172 Janet | B123: 服装 | C123: 棉服 | D123: 棉服 | E123: 冬季 | F123: LIFESTYLE | G123: BLUE | H123: 男 | I123: 2025-09-04 | J123: 1 | K123: 2330 | L123: 2025-11-24 | M123: 斐樂大貨 | N123: 回流
A124: M1436 Khaki | B124: 服装 | C124: 內搭 | D124: 针织套头衫 | E124: 冬季 | F124: ATHLETICS | G124: FITNESS | H124: 男 | I124: 2025-10-23 | J124: 1 | K124: 748 | L124: 2025-11-24 | M124: 斐樂大貨 | N124: 回流
A125: M0989 Susanna | B125: 服装 | C125: 內搭 | D125: 针织长袖POLO衫 | E125: 冬季 | F125: ATHLETICS | G125: GOLF | H125: 男 | I125: 2025-09-04 | J125: 1 | K125: 1428 | L125: 2025-11-24 | M125: 斐樂大貨 | N125: 回流
A126: M0989 Susanna | B126: 服装 | C126: 內搭 | D126: 针织长袖POLO衫 | E126: 冬季 | F126: ATHLETICS | G126: GOLF | H126: 男 | I126: 2025-09-04 | J126: 1 | K126: 1434 | L126: 2025-11-24 | M126: 斐樂大貨 | N126: 回流
A127: M0989 Susanna | B127: 服装 | C127: 內搭 | D127: 针织长袖上衣 | E127: 冬季 | F127: ATHLETICS | G127: GOLF | H127: 男 | I127: 2025-10-23 | J127: 1 | K127: 1428 | L127: 2025-11-24 | M127: 斐樂大貨 | N127: 回流
A128: M2172 Janet | B128: 服装 | C128: 內搭 | D128: 针织套头衫 | E128: 冬季 | F128: LIFESTYLE | G128: WHITE | H128: MALE | I128: 2025-09-23 | J128: 1 | K128: 712 | L128: 2025-11-24 | M128: 斐樂大貨 | N128: 回流
A129: M2172 Janet | B129: 服装 | C129: 內搭 | D129: 针织套头衫 | E129: 冬季 | F129: LIFESTYLE | G129: WHITE | H129: 男 | I129: 2025-11-06 | J129: 1 | K129: 774 | L129: 2025-11-24 | M129: 斐樂大貨
A130: M0989 Susanna | B130: 服装 | C130: 內搭 | D130: 针织套头衫 | E130: 冬季 | F130: LIFESTYLE | G130: WHITE | H130: 男 | I130: 2025-11-06 | J130: 1 | K130: 771 | L130: 2025-11-24 | M130: 斐樂大貨 | N130: 回流
A131: M2172 Janet | B131: 服装 | C131: 內搭 | D131: 针织长袖POLO衫 | E131: 冬季 | F131: LIFESTYLE | G131: HERITAGE | H131: 男 | I131: 2025-10-23 | J131: 1 | K131: 739 | L131: 2025-11-24 | M131: 斐樂大貨
A132: M1436 Khaki | B132: 服装 | C132: 內搭 | D132: 针织长袖衫 | E132: 冬季 | F132: LIFESTYLE | G132: FILA ORIGINALE | H132: MALE | I132: 2025-09-23 | J132: 1 | K132: 598 | L132: 2025-11-24 | M132: 斐樂大貨
A133: M1436 Khaki | B133: 服装 | C133: 內搭 | D133: 针织套头衫 | E133: 冬季 | F133: LIFESTYLE | G133: WHITE | H133: 女 | I133: 2025-11-06 | J133: 1 | K133: 769 | L133: 2025-11-24 | M133: 斐樂大貨 | N133: 回流
A134: M1436 Khaki | B134: 服装 | C134: 內搭 | D134: 针织连帽上衣 | E134: 冬季 | F134: LIFESTYLE | G134: HERITAGE | H134: 女 | I134: 2025-10-23 | J134: 1 | K134: 760 | L134: 2025-11-24 | M134: 斐樂大貨 | N134: 回流
A135: M2172 Janet | B135: 服装 | C135: 內搭 | D135: 针织连帽上衣 | E135: 冬季 | F135: LIFESTYLE | G135: HERITAGE | H135: 女 | I135: 2025-10-23 | J135: 1 | K135: 712 | L135: 2025-11-24 | M135: 斐樂大貨 | N135: 回流
A136: M0989 Susanna | B136: 服装 | C136: 內搭 | D136: 针织连帽上衣 | E136: 冬季 | F136: LIFESTYLE | G136: HERITAGE | H136: 女 | I136: 2025-10-23 | J136: 1 | K136: 758 | L136: 2025-11-24 | M136: 斐樂大貨 | N136: 回流
A137: M0989 Susanna | B137: 服装 | C137: 內搭 | D137: 针织套头衫 | E137: 冬季 | F137: LIFESTYLE | G137: HERITAGE | H137: FEMALE | I137: 2025-10-23 | J137: 1 | K137: 714 | L137: 2025-11-24 | M137: 斐樂大貨 | N137: 回流
A138: M0989 Susanna | B138: 服装 | C138: 內搭 | D138: 针织连帽上衣 | E138: 冬季 | F138: LIFESTYLE | G138: HERITAGE | H138: 女 | I138: 2025-09-04 | J138: 1 | K138: 880 | L138: 2025-11-24 | M138: 斐樂大貨
A139: M1436 Khaki | B139: 服装 | C139: 內搭 | D139: 针织连帽上衣 | E139: 冬季 | F139: LIFESTYLE | G139: HERITAGE | H139: 女 | I139: 2025-09-04 | J139: 1 | K139: 880 | L139: 2025-11-24 | M139: 斐樂大貨
A140: M0989 Susanna | B140: 服装 | C140: 內搭 | D140: 针织连帽上衣 | E140: 冬季 | F140: LIFESTYLE | G140: FILA ORIGINALE | H140: 女 | I140: 2025-09-23 | J140: 1 | K140: 723 | L140: 2025-11-24 | M140: 斐樂大貨 | N140: 回流
A141: M2902 Carmen | B141: 服装 | C141: 梭織褲 | D141: 梭织长裤 | E141: 冬季 | F141: ATHLETICS | G141: GOLF | H141: 女 | I141: 2025-10-23 | J141: 1 | K141: 1249 | L141: 2025-11-24 | M141: 斐樂大貨 | N141: 回流
A142: M0989 Susanna | B142: 服装 | C142: 梭織上衣 | D142: 梭织外套 | E142: 冬季 | F142: LIFESTYLE | G142: WHITE | H142: 男 | I142: 2025-09-23 | J142: 1 | K142: 1472 | L142: 2025-11-24 | M142: 斐樂大貨 | N142: 回流
A143: M1436 Khaki | B143: 服装 | C143: 梭織上衣 | D143: 梭织外套 | E143: 冬季 | F143: LIFESTYLE | G143: WHITE | H143: 男 | I143: 2025-09-23 | J143: 1 | K143: 1294 | L143: 2025-11-24 | M143: 斐樂大貨 | N143: 回流
A144: M1436 Khaki | B144: 服装 | C144: 梭織上衣 | D144: 梭织外套 | E144: 冬季 | F144: LIFESTYLE | G144: FILA ORIGINALE | H144: 男 | I144: 2025-09-23 | J144: 1 | K144: 1675 | L144: 2025-11-24 | M144: 斐樂大貨 | N144: 回流
A145: M2902 Carmen | B145: 服装 | C145: 羽絨服 | D145: 羽绒马甲 | E145: 冬季 | F145: ATHLETICS | G145: FITNESS | H145: 男 | I145: 2025-09-04 | J145: 1 | K145: 1272 | L145: 2025-11-24 | M145: 斐樂大貨 | N145: 回流
A146: M2902 Carmen | B146: 服装 | C146: 羽絨服 | D146: 羽绒服两件套 | E146: 冬季 | F146: ATHLETICS | G146: GOLF | H146: 男 | I146: 2025-09-04 | J146: 1 | K146: 2938 | L146: 2025-11-24 | M146: 斐樂大貨 | N146: 回流
A147: M0989 Susanna | B147: 服装 | C147: 羽絨服 | D147: 羽绒马甲 | E147: 冬季 | F147: ATHLETICS | G147: GOLF | H147: 男 | I147: 2025-09-04 | J147: 1 | K147: 1884 | L147: 2025-11-24 | M147: 斐樂大貨
A148: M0989 Susanna | B148: 服装 | C148: 羽絨服 | D148: 羽绒服 | E148: 冬季 | F148: ATHLETICS | G148: GOLF | H148: 男 | I148: 2025-09-04 | J148: 1 | K148: 2872 | L148: 2025-11-24 | M148: 斐樂大貨 | N148: 回流
A149: M2902 Carmen | B149: 服装 | C149: 羽絨服 | D149: 羽绒服 | E149: 冬季 | F149: ATHLETICS | G149: FITNESS | H149: 女 | I149: 2025-10-23 | J149: 1 | K149: 2862 | L149: 2025-11-24 | M149: 斐樂大貨 | N149: 回流
A150: M2902 Carmen | B150: 服装 | C150: 羽絨服 | D150: 羽绒服 | E150: 冬季 | F150: ATHLETICS | G150: GOLF | H150: 女 | I150: 2025-10-23 | J150: 1 | K150: 2685 | L150: 2025-11-24 | M150: 斐樂大貨 | N150: 回流
A151: M0989 Susanna | B151: 服装 | C151: 羽絨服 | D151: 羽绒服 | E151: 冬季 | F151: ATHLETICS | G151: GOLF | H151: 女 | I151: 2025-10-23 | J151: 1 | K151: 2812 | L151: 2025-11-24 | M151: 斐樂大貨 | N151: 回流
A152: M2902 Carmen | B152: 服装 | C152: 羽絨服 | D152: 羽绒马甲 | E152: 冬季 | H152: 男 | I152: 2025-09-23 | J152: 1 | K152: 1690 | L152: 2025-11-24 | M152: 斐樂大貨 | N152: 回流
A153: M0989 Susanna | B153: 服装 | C153: 羽絨服 | D153: 羽绒服 | E153: 冬季 | H153: 男 | I153: 2025-09-23 | J153: 1 | K153: 2550 | L153: 2025-11-24 | M153: 斐樂大貨 | N153: 回流
A154: M2902 Carmen | B154: 服装 | C154: 羽絨服 | D154: 羽绒马甲 | E154: 冬季 | H154: 女 | I154: 2025-09-23 | J154: 1 | K154: 1690 | L154: 2025-11-24 | M154: 斐樂大貨 | N154: 回流
A155: M0989 Susanna | B155: 服装 | C155: 羽絨服 | D155: 羽绒服 | E155: 冬季 | F155: LIFESTYLE | G155: HERITAGE | H155: 女 | I155: 2025-10-23 | J155: 1 | K155: 2278 | L155: 2025-11-24 | M155: 斐樂大貨 | N155: 回流
A156: M1436 Khaki | B156: 服装 | C156: 羽絨服 | D156: 长款羽绒服 | E156: 冬季 | F156: LIFESTYLE | G156: FILA ORIGINALE | H156: 女 | I156: 2025-10-09 | J156: 1 | K156: 2781 | L156: 2025-11-24 | M156: 斐樂大貨 | N156: 回流
A157: M0989 Susanna | B157: 服装 | C157: 針織褲 | D157: 针织长裤 | E157: 冬季 | F157: ATHLETICS | G157: FITNESS | H157: 男 | I157: 2025-09-04 | J157: 1 | K157: 751 | L157: 2025-11-24 | M157: 斐樂大貨 | N157: 回流
A158: M1436 Khaki | B158: 服装 | C158: 針織褲 | D158: 针织长裤 | E158: 冬季 | F158: ATHLETICS | G158: FITNESS | H158: 男 | I158: 2025-09-04 | J158: 1 | K158: 748 | L158: 2025-11-24 | M158: 斐樂大貨 | N158: 回流
A159: M2172 Janet | B159: 服装 | C159: 針織褲 | D159: 针织长裤 | E159: 冬季 | F159: ATHLETICS | G159: FITNESS | H159: 男 | I159: 2025-10-23 | J159: 1 | K159: 775 | L159: 2025-11-24 | M159: 斐樂大貨
A160: M0989 Susanna | B160: 服装 | C160: 針織褲 | D160: 针织长裤 | E160: 冬季 | F160: ATHLETICS | G160: GOLF | H160: 男 | I160: 2025-09-04 | J160: 1 | K160: 1428 | L160: 2025-11-24 | M160: 斐樂大貨 | N160: 回流
A161: M2902 Carmen | B161: 服装 | C161: 針織褲 | D161: 针织长裤 | E161: 冬季 | F161: ATHLETICS | G161: FITNESS | H161: 女 | I161: 2025-10-23 | J161: 1 | K161: 743 | L161: 2025-11-24 | M161: 斐樂大貨 | N161: 回流
A162: M0989 Susanna | B162: 服装 | C162: 針織褲 | D162: 针织长裤 | E162: 冬季 | F162: LIFESTYLE | G162: HERITAGE | H162: 男 | I162: 2025-10-23 | J162: 1 | K162: 717 | L162: 2025-11-24 | M162: 斐樂大貨 | N162: 回流
A163: M0989 Susanna | B163: 服装 | C163: 針織褲 | D163: 针织长裤 | E163: 冬季 | F163: LIFESTYLE | G163: HERITAGE | H163: 男 | I163: 2025-10-23 | J163: 1 | K163: 774 | L163: 2025-11-24 | M163: 斐樂大貨
A164: M1436 Khaki | B164: 服装 | C164: 針織褲 | D164: 针织长裤 | E164: 冬季 | F164: LIFESTYLE | G164: FILA ORIGINALE | H164: 男 | I164: 2025-11-06 | J164: 1 | K164: 725 | L164: 2025-11-24 | M164: 斐樂大貨 | N164: 回流
A165: M2172 Janet | B165: 服装 | C165: 針織褲 | D165: 针织长裤 | E165: 冬季 | F165: LIFESTYLE | G165: FILA ORIGINALE | H165: 男 | I165: 2025-09-23 | J165: 1 | K165: 686 | L165: 2025-11-24 | M165: 斐樂大貨 | N165: 回流
A166: M1436 Khaki | B166: 服装 | C166: 針織褲 | D166: 针织长裤 | E166: 冬季 | F166: LIFESTYLE | G166: WHITE | H166: 女 | I166: 2025-11-06 | J166: 1 | K166: 822 | L166: 2025-11-24 | M166: 斐樂大貨 | N166: 回流
A167: M2172 Janet | B167: 服装 | C167: 針織褲 | D167: 针织长裤 | E167: 冬季 | F167: LIFESTYLE | G167: WHITE | H167: 女 | I167: 2025-09-23 | J167: 1 | K167: 712 | L167: 2025-11-24 | M167: 斐樂大貨 | N167: 回流
A168: M2902 Carmen | B168: 服装 | C168: 針織褲 | D168: 针织长裤 | E168: 冬季 | F168: LIFESTYLE | G168: WHITE | H168: 女 | I168: 2025-09-23 | J168: 1 | K168: 743 | L168: 2025-11-24 | M168: 斐樂大貨 | N168: 回流
A169: M0989 Susanna | B169: 服装 | C169: 針織褲 | D169: 针织长裤 | E169: 冬季 | F169: LIFESTYLE | G169: HERITAGE | H169: 女 | I169: 2025-10-23 | J169: 1 | K169: 809 | L169: 2025-11-24 | M169: 斐樂大貨 | N169: 回流
A170: M2902 Carmen | B170: 服装 | C170: 針織褲 | D170: 针织长裤 | E170: 冬季 | F170: LIFESTYLE | G170: HERITAGE | H170: 女 | I170: 2025-10-23 | J170: 1 | K170: 827 | L170: 2025-11-24 | M170: 斐樂大貨
A171: M0989 Susanna | B171: 服装 | C171: 針織褲 | D171: 针织长裤 | E171: 冬季 | F171: LIFESTYLE | G171: HERITAGE | H171: 女 | I171: 2025-10-23 | J171: 1 | K171: 940 | L171: 2025-11-24 | M171: 斐樂大貨
A172: M0989 Susanna | B172: 服装 | C172: 針織褲 | D172: 针织长裤 | E172: 冬季 | F172: LIFESTYLE | G172: HERITAGE | H172: 女 | I172: 2025-10-23 | J172: 2 | K172: 1609 | L172: 2025-11-24 | M172: 斐樂大貨 | N172: 回流
A173: M2902 Carmen | B173: 服装 | C173: 針織褲 | D173: 针织长裤 | E173: 冬季 | F173: LIFESTYLE | G173: HERITAGE | H173: 女 | I173: 2025-10-23 | J173: 1 | K173: 808 | L173: 2025-11-24 | M173: 斐樂大貨 | N173: 回流
A174: M2172 Janet | B174: 服装 | C174: 針織褲 | D174: 针织长裤 | E174: 冬季 | F174: LIFESTYLE | G174: HERITAGE | H174: 女 | I174: 2025-10-23 | J174: 1 | K174: 761 | L174: 2025-11-24 | M174: 斐樂大貨 | N174: 回流
A175: M2172 Janet | B175: 服装 | C175: 針織褲 | D175: 针织长裤 | E175: 冬季 | F175: LIFESTYLE | G175: HERITAGE | H175: 女 | I175: 2025-10-23 | J175: 1 | K175: 827 | L175: 2025-11-24 | M175: 斐樂大貨 | N175: 回流
A176: M2172 Janet | B176: 服装 | C176: 針織上衣 | D176: 针织长袖外套 | E176: 冬季 | F176: ATHLETICS | G176: FITNESS | H176: 女 | I176: 2025-09-04 | J176: 1 | K176: 1198 | L176: 2025-11-24 | M176: 斐樂大貨 | N176: 回流
A177: M2172 Janet | B177: 服装 | C177: 針織上衣 | D177: 针织连帽外套 | E177: 冬季 | F177: ATHLETICS | G177: GOLF | H177: 女 | I177: 2025-09-23 | J177: 1 | K177: 1884 | L177: 2025-11-24 | M177: 斐樂大貨 | N177: 回流
A178: M2172 Janet | B178: 服装 | C178: 針織上衣 | D178: 针织长袖外套 | E178: 冬季 | F178: LIFESTYLE | G178: WHITE | H178: 男 | I178: 2025-11-06 | J178: 1 | K178: 1310 | L178: 2025-11-24 | M178: 斐樂大貨 | N178: 回流
A179: M0989 Susanna | B179: 服装 | C179: 針織上衣 | D179: 针织长袖外套 | E179: 冬季 | F179: LIFESTYLE | G179: HERITAGE | H179: 男 | I179: 2025-10-23 | J179: 1 | K179: 1297 | L179: 2025-11-24 | M179: 斐樂大貨 | N179: 回流
A180: M1436 Khaki | B180: 服装 | C180: 針織上衣 | D180: 针织长袖外套 | E180: 冬季 | F180: LIFESTYLE | G180: WHITE | H180: 女 | I180: 2025-11-06 | J180: 1 | K180: 1302 | L180: 2025-11-24 | M180: 斐樂大貨
A181: M1436 Khaki | B181: 服装 | C181: 針織上衣 | D181: 针织长袖外套 | E181: 冬季 | F181: LIFESTYLE | G181: WHITE | H181: 女 | I181: 2025-11-06 | J181: 1 | K181: 1294 | L181: 2025-11-24 | M181: 斐樂大貨 | N181: 回流
A182: M1436 Khaki | B182: 服装 | C182: 針織上衣 | D182: 针织长袖外套 | E182: 冬季 | F182: LIFESTYLE | G182: WHITE | H182: 女 | I182: 2025-11-06 | J182: 1 | K182: 1303 | L182: 2025-11-24 | M182: 斐樂大貨
A183: M2172 Janet | B183: 配件 | C183: 襪類 | D183: 低腰袜 | E183: 秋季 | F183: ATHLETICS | G183: FITNESS | H183: 女 | I183: 2025-06-03 | J183: 1 | K183: 60 | L183: 2025-11-24 | M183: 斐樂大貨
A184: M2172 Janet | B184: 配件 | C184: 襪類 | D184: 中腰袜 | E184: 冬季 | F184: ATHLETICS | G184: FITNESS | H184: 女 | I184: 2025-10-09 | J184: 1 | K184: 70 | L184: 2025-11-24 | M184: 斐樂大貨
A185: M2172 Janet | B185: 配件 | C185: 襪類 | D185: 低腰袜 | E185: 冬季 | F185: ATHLETICS | G185: FITNESS | H185: 女 | I185: 2025-10-09 | J185: 1 | K185: 60 | L185: 2025-11-24 | M185: 斐樂大貨 | N185: 回流
A186: M0989 Susanna | B186: 配件 | C186: 襪類 | D186: 中腰袜 | E186: 夏季 | F186: LIFESTYLE | G186: WHITE | H186: 男 | I186: 2025-03-06 | J186: 2 | K186: 120 | L186: 2025-11-24 | M186: 斐樂大貨 | N186: 回流
A187: M1436 Khaki | B187: 配件 | C187: 襪類 | D187: 中腰袜 | E187: 夏季 | F187: LIFESTYLE | G187: WHITE | H187: 男 | I187: 2025-03-06 | J187: 2 | K187: 140 | L187: 2025-11-24 | M187: 斐樂大貨
A188: M2172 Janet | B188: 配件 | C188: 襪類 | D188: 低腰袜 | E188: 冬季 | F188: LIFESTYLE | G188: WHITE | H188: 男 | I188: 2025-09-04 | J188: 2 | K188: 120 | L188: 2025-11-24 | M188: 斐樂大貨
A189: M2172 Janet | B189: 配件 | C189: 襪類 | D189: 低腰袜 | E189: 春季 | F189: LIFESTYLE | G189: HERITAGE | H189: 女 | I189: 2025-01-07 | J189: 1 | K189: 60 | L189: 2025-11-24 | M189: 斐樂大貨 | N189: 回流
A190: M0989 Susanna | B190: 广宣用品 | C190: 促销品 | D190: FILA泡茶便携保温杯（蓝） | E190: 常青 | H190: 不分 | I190: 2025-05-29 | J190: 5 | K190: 0 | L190: 2025-11-24 | M190: 斐樂大貨 | N190: 回流
A191: M1436 Khaki | B191: 广宣用品 | C191: 促销品 | D191: FILA泡茶便携保温杯（蓝） | E191: 常青 | H191: 不分 | I191: 2025-05-29 | J191: 1 | K191: 0 | L191: 2025-11-24 | M191: 斐樂大貨 | N191: 回流
A192: M2172 Janet | B192: 广宣用品 | C192: 促销品 | D192: FILA泡茶便携保温杯（蓝） | E192: 常青 | H192: 不分 | I192: 2025-05-29 | J192: 5 | K192: 0 | L192: 2025-11-24 | M192: 斐樂大貨 | N192: 回流
A193: M2902 Carmen | B193: 广宣用品 | C193: 促销品 | D193: FILA泡茶便携保温杯（蓝） | E193: 常青 | H193: 不分 | I193: 2025-05-29 | J193: 4 | K193: 0 | L193: 2025-11-24 | M193: 斐樂大貨 | N193: 回流
A194: M0989 Susanna | B194: 其它 | C194: 其它 | D194: PLASTIC BAG | E194: 春季 | H194: UNISEX | J194: 2 | K194: 2 | L194: 2025-11-24 | M194: 通用
A195: M0989 Susanna | B195: 其它 | C195: 其它 | D195: PLASTIC BAG | E195: 春季 | H195: UNISEX | J195: 2 | K195: 2 | L195: 2025-11-24 | M195: 通用 | N195: 回流
A196: M1436 Khaki | B196: 其它 | C196: 其它 | D196: PLASTIC BAG | E196: 春季 | H196: UNISEX | J196: 1 | K196: 1 | L196: 2025-11-24 | M196: 通用
A197: M2172 Janet | B197: 其它 | C197: 其它 | D197: PLASTIC BAG | E197: 春季 | H197: UNISEX | J197: 1 | K197: 1 | L197: 2025-11-24 | M197: 通用
A198: M2172 Janet | B198: 其它 | C198: 其它 | D198: PLASTIC BAG | E198: 春季 | H198: UNISEX | J198: 2 | K198: 2 | L198: 2025-11-24 | M198: 通用 | N198: 回流
A199: M2902 Carmen | B199: 其它 | C199: 其它 | D199: PLASTIC BAG | E199: 春季 | H199: UNISEX | J199: 3 | K199: 3 | L199: 2025-11-24 | M199: 通用
A200: M2902 Carmen | B200: 其它 | C200: 其它 | D200: PLASTIC BAG | E200: 春季 | H200: UNISEX | J200: 4 | K200: 4 | L200: 2025-11-24 | M200: 通用 | N200: 回流
A201: M0989 Susanna | B201: 其它 | C201: 其它 | D201: PLASTIC BAG | E201: 春季 | H201: UNISEX | J201: 1 | K201: 1 | L201: 2025-11-24 | M201: 通用
A202: M0989 Susanna | B202: 其它 | C202: 其它 | D202: PLASTIC BAG | E202: 春季 | H202: UNISEX | J202: 2 | K202: 2 | L202: 2025-11-24 | M202: 通用 | N202: 回流
A203: M1436 Khaki | B203: 其它 | C203: 其它 | D203: PLASTIC BAG | E203: 春季 | H203: UNISEX | J203: 1 | K203: 1 | L203: 2025-11-24 | M203: 通用
A204: M1436 Khaki | B204: 其它 | C204: 其它 | D204: PLASTIC BAG | E204: 春季 | H204: UNISEX | J204: 1 | K204: 1 | L204: 2025-11-24 | M204: 通用 | N204: 回流
A205: M2172 Janet | B205: 其它 | C205: 其它 | D205: PLASTIC BAG | E205: 春季 | H205: UNISEX | J205: 1 | K205: 1 | L205: 2025-11-24 | M205: 通用 | N205: 回流
A206: M2902 Carmen | B206: 其它 | C206: 其它 | D206: PLASTIC BAG | E206: 春季 | H206: UNISEX | J206: 1 | K206: 1 | L206: 2025-11-24 | M206: 通用 | N206: 回流
A207: M0989 Susanna | B207: 其它 | C207: 其它 | D207: PLASTIC BAG | E207: 春季 | H207: UNISEX | J207: 1 | K207: 1 | L207: 2025-11-24 | M207: 通用
A208: M0989 Susanna | B208: 其它 | C208: 其它 | D208: PLASTIC BAG | E208: 春季 | H208: UNISEX | J208: 1 | K208: 1 | L208: 2025-11-24 | M208: 通用 | N208: 回流
A209: M1436 Khaki | B209: 其它 | C209: 其它 | D209: PLASTIC BAG | E209: 春季 | H209: UNISEX | J209: 3 | K209: 3 | L209: 2025-11-24 | M209: 通用
A210: M1436 Khaki | B210: 其它 | C210: 其它 | D210: PLASTIC BAG | E210: 春季 | H210: UNISEX | J210: 1 | K210: 1 | L210: 2025-11-24 | M210: 通用 | N210: 回流
A211: M2172 Janet | B211: 其它 | C211: 其它 | D211: PLASTIC BAG | E211: 春季 | H211: UNISEX | J211: 1 | K211: 1 | L211: 2025-11-24 | M211: 通用
A212: M2172 Janet | B212: 其它 | C212: 其它 | D212: PLASTIC BAG | E212: 春季 | H212: UNISEX | J212: 3 | K212: 3 | L212: 2025-11-24 | M212: 通用 | N212: 回流
A213: M2902 Carmen | B213: 其它 | C213: 其它 | D213: PLASTIC BAG | E213: 春季 | H213: UNISEX | J213: 1 | K213: 1 | L213: 2025-11-24 | M213: 通用
A214: M0989 Susanna | B214: 鞋类 | C214: 運動鞋 | D214: 复古运动鞋 | E214: 冬季 | F214: FASHION | G214: ORIGINALE | H214: 男 | I214: 2025-09-04 | J214: 1 | K214: 980 | L214: 2025-11-25 | M214: 斐樂大貨
A215: M1436 Khaki | B215: 鞋类 | C215: 運動鞋 | D215: 复古运动鞋 | E215: 冬季 | F215: FASHION | G215: ORIGINALE | H215: 男 | I215: 2025-09-04 | J215: 2 | K215: 1356 | L215: 2025-11-25 | M215: 斐樂大貨 | N215: 回流
A216: M2798 Ryan | B216: 鞋类 | C216: 運動鞋 | D216: 先锋运动鞋 | E216: 冬季 | F216: FASHION | H216: 男 | I216: 2025-10-09 | J216: 1 | K216: 955 | L216: 2025-11-25 | M216: 斐樂大貨
A217: M1436 Khaki | B217: 鞋类 | C217: 運動鞋 | D217: 先锋运动鞋 | E217: 冬季 | F217: FASHION | H217: 男 | I217: 2025-10-09 | J217: 1 | K217: 955 | L217: 2025-11-25 | M217: 斐樂大貨
A218: M2801 Fanny | B218: 鞋类 | C218: 運動鞋 | D218: 摩登运动鞋 | E218: 冬季 | F218: FASHION | G218: ORIGINALE | H218: 女 | I218: 2025-10-09 | J218: 1 | K218: 980 | L218: 2025-11-25 | M218: 斐樂大貨
A219: M1436 Khaki | B219: 鞋类 | C219: 運動鞋 | D219: 摩登运动鞋 | E219: 冬季 | F219: FASHION | G219: ORIGINALE | H219: 女 | I219: 2025-10-09 | J219: 1 | K219: 755 | L219: 2025-11-25 | M219: 斐樂大貨
A220: M2798 Ryan | B220: 鞋类 | C220: 運動鞋 | D220: 摩登运动鞋 | E220: 冬季 | F220: FASHION | G220: ORIGINALE | H220: 女 | I220: 2025-10-09 | J220: 1 | K220: 755 | L220: 2025-11-25 | M220: 斐樂大貨
A221: M1436 Khaki | B221: 鞋类 | C221: 運動鞋 | D221: 复古运动鞋 | E221: 冬季 | F221: FASHION | G221: ORIGINALE | H221: 女 | I221: 2025-10-09 | J221: 1 | K221: 676 | L221: 2025-11-25 | M221: 斐樂大貨 | N221: 回流
A222: M2801 Fanny | B222: 鞋类 | C222: 運動鞋 | D222: 复古运动鞋 | E222: 冬季 | F222: FASHION | G222: ORIGINALE | H222: 女 | I222: 2025-09-04 | J222: 1 | K222: 755 | L222: 2025-11-25 | M222: 斐樂大貨 | N222: 回流
A223: M2801 Fanny | B223: 鞋类 | C223: 運動鞋 | D223: 复古运动鞋 | E223: 冬季 | F223: FASHION | G223: ORIGINALE | H223: 女 | I223: 2025-09-04 | J223: 1 | K223: 755 | L223: 2025-11-25 | M223: 斐樂大貨 | N223: 回流
A224: M1436 Khaki | B224: 鞋类 | C224: 運動鞋 | D224: 复古运动鞋 | E224: 冬季 | F224: FASHION | G224: ORIGINALE | H224: 女 | I224: 2025-09-04 | J224: 1 | K224: 678 | L224: 2025-11-25 | M224: 斐樂大貨 | N224: 回流
A225: M1436 Khaki | B225: 鞋类 | C225: 運動鞋 | D225: 复古运动鞋 | E225: 冬季 | F225: FASHION | G225: ORIGINALE | H225: 女 | I225: 2025-09-04 | J225: 1 | K225: 678 | L225: 2025-11-25 | M225: 斐樂大貨 | N225: 回流
A226: M1436 Khaki | B226: 鞋类 | C226: 運動鞋 | D226: 复古运动鞋 | E226: 冬季 | F226: FASHION | G226: ORIGINALE | H226: 女 | I226: 2025-09-04 | J226: 1 | K226: 678 | L226: 2025-11-25 | M226: 斐樂大貨 | N226: 回流
A227: M2798 Ryan | B227: 鞋类 | C227: 運動鞋 | D227: 先锋运动鞋 | E227: 冬季 | F227: FASHION | H227: 女 | I227: 2025-10-09 | J227: 1 | K227: 955 | L227: 2025-11-25 | M227: 斐樂大貨
A228: M1436 Khaki | B228: 鞋类 | C228: 運動鞋 | D228: 先锋运动鞋 | E228: 冬季 | F228: FASHION | H228: 女 | I228: 2025-10-09 | J228: 1 | K228: 955 | L228: 2025-11-25 | M228: 斐樂大貨
A229: M1436 Khaki | B229: 鞋类 | C229: 板鞋 | D229: 摩登板鞋 | E229: 冬季 | F229: FASHION | G229: MODERNO | H229: FEMALE | I229: 2025-11-06 | J229: 1 | K229: 878 | L229: 2025-11-25 | M229: 斐樂大貨
A230: M0989 Susanna | B230: 鞋类 | C230: 跑步鞋 | D230: 路跑鞋 | E230: 冬季 | F230: ATHLETICS | G230: FITNESS | H230: 男 | I230: 2025-10-09 | J230: 1 | K230: 956 | L230: 2025-11-25 | M230: 斐樂大貨
A231: M2801 Fanny | B231: 鞋类 | C231: 跑步鞋 | D231: 路跑鞋 | E231: 冬季 | F231: ATHLETICS | G231: FITNESS | H231: 女 | I231: 2025-10-09 | J231: 1 | K231: 754 | L231: 2025-11-25 | M231: 斐樂大貨
A232: M2801 Fanny | B232: 鞋类 | C232: 跑步鞋 | D232: 路跑鞋 | E232: 冬季 | F232: ATHLETICS | G232: FITNESS | H232: 女 | I232: 2025-10-09 | J232: 1 | K232: 755 | L232: 2025-11-25 | M232: 斐樂大貨
A233: M0989 Susanna | B233: 鞋类 | C233: 網球鞋 | D233: 网球生活鞋 | E233: 冬季 | F233: ATHLETICS | G233: TENNIS | H233: 男 | I233: 2025-09-04 | J233: 1 | K233: 678 | L233: 2025-11-25 | M233: 斐樂大貨
A234: M2801 Fanny | B234: 鞋类 | C234: 網球鞋 | D234: 网球生活鞋 | E234: 冬季 | F234: ATHLETICS | G234: TENNIS | H234: 女 | I234: 2025-09-04 | J234: 1 | K234: 678 | L234: 2025-11-25 | M234: 斐樂大貨
A235: M0989 Susanna | B235: 鞋类 | C235: 網球鞋 | D235: 网球生活鞋 | E235: 冬季 | F235: ATHLETICS | G235: TENNIS | H235: 女 | I235: 2025-09-04 | J235: 1 | K235: 678 | L235: 2025-11-25 | M235: 斐樂大貨
A236: M2801 Fanny | B236: 鞋类 | C236: 網球鞋 | D236: TENNIS网球生活鞋 | E236: 春季 | F236: ATHLETICS | G236: TENNIS | H236: 女 | I236: 2025-12-04 | J236: 1 | K236: 783 | L236: 2025-11-25 | M236: 斐樂大貨 | N236: 回流
A237: M1436 Khaki | B237: 鞋类 | C237: 高爾夫球鞋 | D237: 软钉高球鞋 | E237: 冬季 | F237: ATHLETICS | G237: SPORT PERFORMANCE | H237: FEMALE | I237: 2025-10-09 | J237: 1 | K237: 1602 | L237: 2025-11-25 | M237: 斐樂大貨 | N237: 回流
A238: M2801 Fanny | B238: 鞋类 | D238: ORIGINALE老爹鞋 | E238: 春季 | F238: FASHION | G238: ORIGINALE | H238: 女 | I238: 2025-12-04 | J238: 1 | K238: 871 | L238: 2025-11-25 | M238: 斐樂大貨 | N238: 回流
A239: M2801 Fanny | B239: 服装 | C239: 編織衫 | D239: 编织衫 | E239: 冬季 | F239: ATHLETICS | G239: GOLF | H239: MALE | I239: 2025-10-23 | J239: 1 | K239: 1440 | L239: 2025-11-25 | M239: 斐樂大貨
A240: M1436 Khaki | B240: 服装 | C240: 編織衫 | D240: 编织衫 | E240: 冬季 | F240: ATHLETICS | G240: GOLF | H240: FEMALE | I240: 2025-09-04 | J240: 1 | K240: 1280 | L240: 2025-11-25 | M240: 斐樂大貨 | N240: 回流
A241: M1436 Khaki | B241: 服装 | C241: 編織衫 | D241: 编织衫 | E241: 冬季 | F241: LIFESTYLE | G241: HERITAGE | H241: 女 | I241: 2025-10-23 | J241: 1 | K241: 1140 | L241: 2025-11-25 | M241: 斐樂大貨
A242: M1436 Khaki | B242: 服装 | C242: 棉服 | D242: 棉服 | E242: 冬季 | F242: LIFESTYLE | G242: BLUE | H242: 男 | I242: 2025-09-04 | J242: 1 | K242: 2497 | L242: 2025-11-25 | M242: 斐樂大貨 | N242: 回流
A243: M2801 Fanny | B243: 服装 | C243: 內搭 | D243: 针织长袖上衣 | E243: 冬季 | F243: ATHLETICS | G243: FITNESS | H243: 男 | I243: 2025-09-04 | J243: 1 | K243: 686 | L243: 2025-11-25 | M243: 斐樂大貨
A244: M2798 Ryan | B244: 服装 | C244: 內搭 | D244: 针织套头衫 | E244: 冬季 | F244: ATHLETICS | G244: FITNESS | H244: 男 | I244: 2025-10-23 | J244: 1 | K244: 774 | L244: 2025-11-25 | M244: 斐樂大貨
... 581 more rows
